{"text_format":"1","workbook":"xlsx","n_sheets":1,"sheets":["FEBRERO 2022"],"not_rendered":{"charts":0,"images":0,"macros":1,"external_links":0,"defined_names":4,"comments":1,"pivot_tables":0},"unopened":[],"bounds":{"document_bytes":16777216,"sheet_cells":100000,"rows_first":2000,"rows_last":500,"rows_between":2000,"halvings":0,"cell_chars":16384,"cell_head_chars":4096},"cells_cut":0,"cells_raw":0,"read":"whole","date_system":"1900"}

{"sheet":"FEBRERO 2022","index":0,"n_rows":543,"n_cols":14,"rows_kept":543,"cut":false,"hidden":false,"merged":[]}
["No","CEDULA ","NOMBRES APELLIDOS CONTRATISTA","OBJETO DEL CONTRATO","NO.OPS FEBRERO 2023","DIAS","FECHA DE INICIO ","FECHA DE TERMINACION ","VALOR A PAGAR EN FEBRERO 2022","PROCENTAJE \nEJECUCION","RECURSOS TOTALES DESEMBOLSADOS O PAGADOS","RECURSOS PENDIENTES DE EJECUTAR","CANTIDAD DE OTROSIS REALIZADOS","LINK SECOP "]
[1,1129502482,"JAVIER EDUARDO GONZALEZ LIZCANO","CONDUCTOR DE AMBULANCIA","524 -2022",30,"01 de Febrero de 2022","28 de Febrero de 2022",2000000,1,2000000,0,0,"https://www.contratos.gov.co/consultas/detalleProceso.do?numConstancia=22-4-13123391&g"]
[{"$f":"+A2+1","v":2},32825462,"ANAIS DE JESUS RODRIGUEZ DE  LAS AGUAS","PERSONAL DE ASEO Y LIMPIEZA","525 -2022",30,"01 de Febrero de 2022","28 de Febrero de 2022",1400000,1,1400000,0,0,"https://www.contratos.gov.co/consultas/detalleProceso.do?numConstancia=22-4-13123398&g"]
[{"$f":"+A3+1","v":3},1041898122,"MELIZA MORALES PALLARES","AUXILIAR ADMINISTRATIVO  ","526 -2022",30,"01 de Febrero de 2022","28 de Febrero de 2022",2000000,1,2000000,0,0,"https://www.contratos.gov.co/consultas/detalleProceso.do?numConstancia=22-4-13123394&g"]
[4,72290761,"JORGE LUIS CASTRO HERNANDEZ","INGENIERO CIVIL- RECURSOS FISICOS","527 -2022",30,"01 de Febrero de 2022","28 de Febrero de 2022",5000000,1,5000000,0,0,"https://www.contratos.gov.co/consultas/detalleProceso.do?numConstancia=22-4-13123395&g"]
[5,72220231,"SERGIO IVAN KUNCEL MAURY","ASESOR  GERENCIA","528 -2022",30,"01 de Febrero de 2022","28 de Febrero de 2022",4000000,1,4000000,0,0,"https://www.contratos.gov.co/consultas/detalleProceso.do?numConstancia=22-4-13123393&g"]
[6,8680252,"ALVARO SAMUEL PULGAR LEMUS","ORIENTADOR","529 -2022",30,"01 de Febrero de 2022","28 de Febrero de 2022",1270000,1,1270000,0,0,"https://www.contratos.gov.co/consultas/detalleProceso.do?numConstancia=22-4-13123397&g"]
[7,1044801313,"MARTHA KARENA PACHECO LASCANO","AUXILIAR ADMINISTRATIVO VENTANILLA UNICA","530 -2022",30,"01 de Febrero de 2022","28 de Febrero de 2022",2000000,1,2000000,0,0,"https://www.contratos.gov.co/consultas/detalleProceso.do?numConstancia=22-4-13123395&g"]
[8,8532785,"JOSE ANTONIO GUERRERO ORTIZ","ORIENTADOR","531 -2022",30,"01 de Febrero de 2022","28 de Febrero de 2022",1270000,1,1270000,0,0,"https://www.contratos.gov.co/consultas/detalleProceso.do?numConstancia=22-4-13123395&g"]
[9,72236961,"EDUAR  ENRIQUE SANCHEZ URZOLA ","MENSAJERO ","532 -2022",30,"01 de Febrero de 2022","28 de Febrero de 2022",1500000,1,1500000,0,0,"https://www.contratos.gov.co/consultas/detalleProceso.do?numConstancia=22-4-13123395&g"]
[10,72328953,"FRANCISCO ALCIDES CARRANZA MENDOZA","AUXILIAR RECURSOS FISICOS","533 -2022",30,"01 de Febrero de 2022","28 de Febrero de 2022",2000000,1,2000000,0,0,"https://www.contratos.gov.co/consultas/detalleProceso.do?numConstancia=22-4-13123395&g"]
[11,8639410,"CESAR OCTAVIO VARGAS DURAN","APOYO  PROCESO AMBIENTAL ","535 -2022",30,"01 de Febrero de 2022","28 de Febrero de 2022",2000000,1,2000000,0,0,"https://www.contratos.gov.co/consultas/detalleProceso.do?numConstancia=22-4-13123395&g"]
[12,8762665,"ELIECER DE JESUS CALLE QUINTERO","AUXILIAR DE ALMACEN ","537 -2022",30,"01 de Febrero de 2022","28 de Febrero de 2022",1500000,1,1500000,0,0,"https://www.contratos.gov.co/consultas/detalleProceso.do?numConstancia=22-4-13123395&g"]
[13,22562553,"SILVANA BEATRIZ GONZALEZ MORENO ","TECNICO ALMACEN ","538 -2022",30,"01 de Febrero de 2022","28 de Febrero de 2022",1500000,1,1500000,0,0,"https://www.contratos.gov.co/consultas/detalleProceso.do?numConstancia=22-4-13123395&g"]
[14,8632155,"JOSE FRANCISCO  MENDOZA MENDOZA","AUXILIAR DE ALMACEN ","539 -2022",30,"01 de Febrero de 2022","28 de Febrero de 2022",1500000,1,1500000,0,0,"https://www.contratos.gov.co/consultas/detalleProceso.do?numConstancia=22-4-13123393&g"]
[15,8756266,"GEOVANNY  ESCORCIA  JIMENEZ","AUXILIAR DE ARCHIVO ","541 -2022",30,"01 de Febrero de 2022","28 de Febrero de 2022",1400000,1,1400000,0,0,"https://www.contratos.gov.co/consultas/detalleProceso.do?numConstancia=22-4-13124884&g"]
[16,32817343,"MARIELA  ESTER NIEBLES FREILE","AUXILIAR DE ARCHIVO ","542 -2022",30,"01 de Febrero de 2022","28 de Febrero de 2022",1400000,1,1400000,0,0,"https://www.contratos.gov.co/consultas/detalleProceso.do?numConstancia=22-4-13124969&g"]
[17,32862644,"NURYS GARCIA DELGADO","AUXILIAR DE ARCHIVO ","543 -2022",30,"01 de Febrero de 2022","28 de Febrero de 2022",1400000,1,1400000,0,0,"https://www.contratos.gov.co/consultas/detalleProceso.do?numConstancia=22-4-13125039&g-"]
[18,1001878251,"MAYRA ALEJANDRA ESCORCIA DE LA HOZ","AUXILIAR DE ARCHIVO ","544 -2022",30,"01 de Febrero de 2022","28 de Febrero de 2022",1400000,1,1400000,0,0,"https://www.contratos.gov.co/consultas/detalleProceso.do?numConstancia=22-4-13125081&g"]
[19,8511545,"ANTONIO MARIA ARAGON VALENCIA","AUXILIAR DE ARCHIVO ","545 -2022",30,"01 de Febrero de 2022","28 de Febrero de 2022",1400000,1,1400000,0,0,"https://www.contratos.gov.co/consultas/detalleProceso.do?numConstancia=22-4-13125153&g"]
[20,1041890825,"JHOSIMAR GUETTE CANTILLO","GESTION DOCUMENTAL TALENTO HUMANO ","546 -2022",30,"01 de Febrero de 2022","28 de Febrero de 2022",1400000,1,1400000,0,0,"https://www.contratos.gov.co/consultas/detalleProceso.do?numConstancia=22-4-13125198&g"]
[21,22664852,"VILMAIRA JUDITH  BOLAÑO VALENCIA ","GESTION DOCUMENTAL TALENTO HUMANO","547 -2022",30,"01 de Febrero de 2022","28 de Febrero de 2022",1400000,1,1400000,0,0,"https://www.contratos.gov.co/consultas/detalleProceso.do?numConstancia=22-4-13125250&g"]
[22,1041890216,"YAKELIN MARIA BARRIOS GARCIA","PERSONAL DE ASEO Y LIMPIEZA","548 -2022",30,"01 de Febrero de 2022","28 de Febrero de 2022",1400000,1,1400000,0,0,"https://www.contratos.gov.co/consultas/detalleProceso.do?numConstancia=22-4-13125322&g"]
[23,1046815796,"CARINA ANDREA VILORIA DE LA HOZ ","AUXILIAR DE ARCHIVO ","550 -2022",30,"01 de Febrero de 2022","28 de Febrero de 2022",1400000,1,1400000,0,0,"https://www.contratos.gov.co/consultas/detalleProceso.do?numConstancia=22-4-13125551&g"]
[24,45740690,"MARELYS DEL CARMEN RAMIREZ","AUXILIAR DE ARCHIVO ","551 -2022",30,"01 de Febrero de 2022","28 de Febrero de 2022",1400000,1,1400000,0,0,"https://www.contratos.gov.co/consultas/detalleProceso.do?numConstancia=22-4-13125563&g"]
[25,32813366,"ANA GONZALEZ ZAMBRANO","AUXILIAR DE ARCHIVO ","552 -2022",30,"01 de Febrero de 2022","28 de Febrero de 2022",1400000,1,1400000,0,0,"https://www.contratos.gov.co/consultas/detalleProceso.do?numConstancia=22-4-13125588&g"]
[26,22458695,"DIANA  DE JESUS  ORTEGA CONSUEGRA ","AUXILIAR DE ARCHIVO ","553 -2022",30,"01 de Febrero de 2022","28 de Febrero de 2022",1400000,1,1400000,0,0,"https://www.contratos.gov.co/consultas/detalleProceso.do?numConstancia=22-4-13125625&g"]
[27,1043605412,"SANDRA MILENA REALES  ARIZA ","AUXILIAR DE ARCHIVO ","554 -2022",30,"01 de Febrero de 2022","28 de Febrero de 2022",1400000,1,1400000,0,0,"https://www.contratos.gov.co/consultas/detalleProceso.do?numConstancia=22-4-13125658&g"]
[28,1043002864,"JAIRO BARRIOS AVILA ","AUXILIAR DE ARCHIVO ","555 -2022",30,"01 de Febrero de 2022","28 de Febrero de 2022",1400000,1,1400000,0,0,"https://www.contratos.gov.co/consultas/detalleProceso.do?numConstancia=22-4-13125698&g"]
[29,1007045398,"ELIEZER VEGA ARAGON","AUXILIAR DE ARCHIVO ","556 -2022",30,"01 de Febrero de 2022","28 de Febrero de 2022",1400000,1,1400000,0,0,"https://www.contratos.gov.co/consultas/detalleProceso.do?numConstancia=22-4-13125698&g"]
[null,22665666,"ANABEL MUÑOZ LASTRAS ","AUDITOR DE CALIDAAD Y SERVICIOS EN SALUD ","0556-2023",30,"01 de Febrero de 2022","28 de Febrero de 2022",5000000,1,5000000,0,0,"https://www.contratos.gov.co/consultas/detalleProceso.do?numConstancia=22-4-13125698&g"]
[{"$f":"+A30+1","v":30},39142741,"SANDRA MILENA  ARCON PEREZ","AGENTE CALL CENTER","558 -2022",30,"01 de Febrero de 2022","28 de Febrero de 2022",1400000,1,1400000,0,0,"https://www.contratos.gov.co/consultas/detalleProceso.do?numConstancia=22-4-13125698&g"]
[31,1042439971,"ROGER RAFAEL RAMBAO NIEBLES","AGENTE CALL CENTER","559 -2022",30,"01 de Febrero de 2022","28 de Febrero de 2022",1400000,1,1400000,0,0,"https://www.contratos.gov.co/consultas/detalleProceso.do?numConstancia=22-4-13125698&g"]
[32,1143448364,"FABIANA ARGOTE NOGUERA","AGENTE CALL CENTER","560 -2022",30,"01 de Febrero de 2022","28 de Febrero de 2022",1400000,1,1400000,0,0,"https://www.contratos.gov.co/consultas/detalleProceso.do?numConstancia=22-4-13125698&g"]
[33,1083693179,"DAYMAR ANDREINA MATUTE VILLANUEVA","AGENTE CALL CENTER","561 -2022",30,"01 de Febrero de 2022","28 de Febrero de 2022",1400000,1,1400000,0,0,"https://www.contratos.gov.co/consultas/detalleProceso.do?numConstancia=22-4-13125698&g"]
[34,55246887,"CLAUDIA PATRICIA FONTALVO YEPES","AGENTE CALL CENTER","562 -2022",30,"01 de Febrero de 2022","28 de Febrero de 2022",1400000,1,1400000,0,0,"https://www.contratos.gov.co/consultas/detalleProceso.do?numConstancia=22-4-13125698&g"]
[35,1235240838,"JHOANA DEL CARMEN SANCHEZ ORDOÑEZ","AGENTE CALL CENTER","563 -2022",30,"01 de Febrero de 2022","28 de Febrero de 2022",1400000,1,1400000,0,0,"https://www.contratos.gov.co/consultas/detalleProceso.do?numConstancia=22-4-13125698&g"]
[36,1001799547,"LEIDYS JOHANA ARIZA PACHECO ","AGENTE CALL CENTER","564 -2022",30,"01 de Febrero de 2022","28 de Febrero de 2022",1400000,1,1400000,0,0,"https://www.contratos.gov.co/consultas/detalleProceso.do?numConstancia=22-4-13125698&g"]
[37,1043020607,"LUCIA MARGARITA GALVAN BARRIOS","AGENTE CALL CENTER","565 -2022",30,"01 de Febrero de 2022","28 de Febrero de 2022",1400000,1,1400000,0,0,"https://www.contratos.gov.co/consultas/detalleProceso.do?numConstancia=22-4-13125698&g"]
[38,72045625,"HUMBERTO JOSE LIÑAN  BOHORQUEZ","AGENTE CALL CENTER","566 -2022",30,"01 de Febrero de 2022","28 de Febrero de 2022",1400000,1,1400000,0,0,"https://www.contratos.gov.co/consultas/detalleProceso.do?numConstancia=22-4-13125698&g"]
[39,72043527,"MARIANO DE JESUS BARRIOS ELLES ","LIDER CALL CENTER ","567 -2022",30,"01 de Febrero de 2022","28 de Febrero de 2022",2500000,1,2500000,0,0,"https://www.contratos.gov.co/consultas/detalleProceso.do?numConstancia=22-4-13125698&g"]
[40,1042436897,"LIZETH PATRICIA BLANQUICETT FERRER","AGENTE CALL CENTER","568 -2022",30,"01 de Febrero de 2022","28 de Febrero de 2022",1400000,1,1400000,0,0,"https://www.contratos.gov.co/consultas/detalleProceso.do?numConstancia=22-4-13125698&g"]
[41,1042451687,"ADRIANA SOFIA PEREZ CERVANTES","AGENTE CALL CENTER","569 -2022",30,"01 de Febrero de 2022","28 de Febrero de 2022",1400000,1,1400000,0,0,"https://www.contratos.gov.co/consultas/detalleProceso.do?numConstancia=22-4-13125698&g"]
[42,55305321,"GELMIS SARAY MARTINEZ DIPPE","AGENTE CALL CENTER","570 -2022",30,"01 de Febrero de 2022","28 de Febrero de 2022",1400000,1,1400000,0,0,"https://www.contratos.gov.co/consultas/detalleProceso.do?numConstancia=22-4-13125698&g"]
[43,1143436805,"GINNA ALEJANDRA SABOGAL PRIETO","AGENTE CALL CENTER","571 -2022",30,"01 de Febrero de 2022","28 de Febrero de 2022",1400000,1,1400000,0,0,"https://www.contratos.gov.co/consultas/detalleProceso.do?numConstancia=22-4-13125698&g"]
[44,1042440221,"MARIA DEL PILAR DE LA HOZ DE LA HOZ","AGENTE CALL CENTER","572 -2022",30,"01 de Febrero de 2022","28 de Febrero de 2022",1400000,1,1400000,0,0,"https://www.contratos.gov.co/consultas/detalleProceso.do?numConstancia=22-4-13125698&g"]
[45,72203756,"GUILLERMO DE JESUS MEDINA VASQUEZ ","AGENTE CALL CENTER","573 -2022",30,"01 de Febrero de 2022","28 de Febrero de 2022",1400000,1,1400000,0,0,"https://www.contratos.gov.co/consultas/detalleProceso.do?numConstancia=22-4-13125698&g"]
[46,22613175,"RUBIELA ISABEL  CARDENAS ESTRADA ","AGENTE CALL CENTER","574 -2022",30,"01 de Febrero de 2022","28 de Febrero de 2022",1400000,1,1400000,0,0,"https://www.contratos.gov.co/consultas/detalleProceso.do?numConstancia=22-4-13125698&g"]
[47,32825666,"LUZ ESTELA RUIZ SUAREZ","AUXILIAR DE ENFERMERIA  RUTA MATERNO PERINATAL ","576 -2022",30,"01 de Febrero de 2022","28 de Febrero de 2022",1300000,1,1300000,0,0,"https://www.contratos.gov.co/consultas/detalleProceso.do?numConstancia=22-4-13125698&g"]
[48,32862578,"MILDRIS PATRICIA QUIJANO VILORIA","AUXILIAR DE ODONTOLOGIA","577 -2022",30,"01 de Febrero de 2022","28 de Febrero de 2022",1166000,1,1166000,0,0,"https://www.contratos.gov.co/consultas/detalleProceso.do?numConstancia=22-4-13125698&g"]
[49,32869709,"JENECIS BARRERA MIRANDA","ENFERMERA JEFE DE RUTA INTEGRAL MATERNO PERINATAL","578 -2022",30,"01 de Febrero de 2022","28 de Febrero de 2022",2000000,1,2000000,0,0,"https://www.contratos.gov.co/consultas/detalleProceso.do?numConstancia=22-4-13125698&g"]
[50,22644933,"MARGARITA PACHECO GUTIERREZ","HIGIENISTA ORAL","579 -2022",30,"01 de Febrero de 2022","28 de Febrero de 2022",2000000,1,2000000,0,0,"https://www.contratos.gov.co/consultas/detalleProceso.do?numConstancia=22-4-13125698&g"]
[51,72222215,"NILSON ALMARALES GARIZABALO","MEDICO  MATERNIDAD SEGURA Y URGENCIA","580 -2022",30,"01 de Febrero de 2022","28 de Febrero de 2022",6212000,1,6212000,0,0,"https://www.contratos.gov.co/consultas/detalleProceso.do?numConstancia=22-4-13125698&g"]
[52,44153255,"XIMENA ESCORCIA CASTRO","MEDICO DE URGENCIAS ","581 -2022",30,"01 de Febrero de 2022","28 de Febrero de 2022",3072000,1,3072000,0,0,"https://www.contratos.gov.co/consultas/detalleProceso.do?numConstancia=22-4-13125698&g"]
[53,44155518,"YURLEY PATRICIA FONTALVO RIVALDO ","MEDICO DE URGENCIAS ","582 -2022",30,"01 de Febrero de 2022","28 de Febrero de 2022",3072000,1,3072000,0,0,"https://www.contratos.gov.co/consultas/detalleProceso.do?numConstancia=22-4-13125698&g"]
[54,8697543,"ALVARO ARENAS GONZALEZ","MEDICO DE RUTA INTEGRAL MATERNO PERINATAL ","583 -2022",30,"01 de Febrero de 2022","28 de Febrero de 2022",5088000,1,5088000,0,0,"https://www.contratos.gov.co/consultas/detalleProceso.do?numConstancia=22-4-13125698&g"]
[55,1042428171,"ALEX ENRIQUE VILLARREAL IBAÑEZ","ODONTOLOGO","584 -2022",30,"01 de Febrero de 2022","28 de Febrero de 2022",1900000,1,1900000,0,0,"https://www.contratos.gov.co/consultas/detalleProceso.do?numConstancia=22-4-13125698&g"]
[56,72000601,"ALEXIS JAVIER SUAREZ CABALLERO","AUXILIAR FACTURACION","585 -2022",30,"01 de Febrero de 2022","28 de Febrero de 2022",1400000,1,1400000,0,0,"https://www.contratos.gov.co/consultas/detalleProceso.do?numConstancia=22-4-13129909&g"]
[57,8772224,"OLAINER MONTERO CASTRO ","AUXILIAR FACTURACION","586 -2022",30,"01 de Febrero de 2022","28 de Febrero de 2022",1400000,1,1400000,0,0,"https://www.contratos.gov.co/consultas/detalleProceso.do?numConstancia=22-4-13129992&g"]
[58,32818082,"DIVINA LUZ NIETO ZAMBRANO","PERSONAL DE ASEO Y LIMPIEZA URGENCIAS ","587 -2022",30,"01 de Febrero de 2022","28 de Febrero de 2022",1400000,1,1400000,0,0,"https://www.contratos.gov.co/consultas/detalleProceso.do?numConstancia=22-4-13130044&g"]
[59,32879250,"MARIA SEGURA MEJIA","AUXILIAR FACTURACION","588 -2022",30,"01 de Febrero de 2022","28 de Febrero de 2022",1400000,1,1400000,0,0,"https://www.contratos.gov.co/consultas/detalleProceso.do?numConstancia=22-4-13130094&g"]
[60,44161544,"JHOANA CATALINA SANDOVAL ESCORCIA","ENFERMERA JEFE DE URGENCIAS","589 -2022",30,"01 de Febrero de 2022","28 de Febrero de 2022",2280000,1,2280000,0,0,"https://www.contratos.gov.co/consultas/detalleProceso.do?numConstancia=22-4-13130127&g"]
[61,1129578389,"VIOLENIS  PATRICIA MERIÑO CADENA","FISIOTERAPEUTA","590 -2022",30,"01 de Febrero de 2022","28 de Febrero de 2022",2000000,1,2000000,0,0,"https://www.contratos.gov.co/consultas/detalleProceso.do?numConstancia=22-4-13130165&g"]
[62,1002377619,"MARTHA LILIANA MULETH NAZZAR","ENFERMERA JEFE ","591 -2022",30,"01 de Febrero de 2022","16 de Febrero de 2022",1066667,1,1066667,0,0,"https://www.contratos.gov.co/consultas/detalleProceso.do?numConstancia=22-4-13130210&g"]
[63,32861543,"INGRID NAVARRO CARRILLO","FISIOTERAPEUTA ","592 -2022",30,"01 de Febrero de 2022","28 de Febrero de 2022",5800000,1,5800000,0,0,"https://www.contratos.gov.co/consultas/detalleProceso.do?numConstancia=22-4-13130271&g"]
[64,22693401,"EMILIA ANTONIA BARCELO DE PARRA","PERSONAL DE ASEO Y LIMPIEZA URGENCIAS ","593 -2022",30,"01 de Febrero de 2022","28 de Febrero de 2022",1400000,1,1400000,0,0,"https://www.contratos.gov.co/consultas/detalleProceso.do?numConstancia=22-4-13130303&g"]
[65,1042351989,"DAIVELYS BURGOS RUIZ","AUXILIAR DE ENFERMERIA URGENCIAS","594 -2022",30,"01 de Febrero de 2022","28 de Febrero de 2022",1653600,1,1653600,0,0,"https://www.contratos.gov.co/consultas/detalleProceso.do?numConstancia=22-4-13130336&g"]
[66,22613260,"NERIS ISBAEL ACOSTA FRUTO","AUXILIAR DE ENFERMERIA URGENCIAS","595 -2022",30,"01 de Febrero de 2022","28 de Febrero de 2022",1653600,1,1653600,0,0,"https://www.contratos.gov.co/consultas/detalleProceso.do?numConstancia=22-4-13130374&g"]
[{"$f":"+A68+1","v":67},32570971,"ARNIDIS JIMENEZ REALES","AUXILIAR DE ENFERMERIA URGENCIAS","596 -2022",30,"01 de Febrero de 2022","28 de Febrero de 2022",1653600,1,1653600,0,0,"https://www.contratos.gov.co/consultas/detalleProceso.do?numConstancia=22-4-13130401&g"]
[68,32570383,"YEIMIS PAOLA LEMUS VASQUEZ","ENFERMERA JEFE DE URGENCIAS","597 -2022",30,"01 de Febrero de 2022","28 de Febrero de 2022",2280000,1,2280000,0,0,0]
[69,1047359796,"YULY PAULINA GARCIA BARANDICA","TRABAJADORA SOCIAL","598 -2022",30,"01 de Febrero de 2022","28 de Febrero de 2022",2000000,1,2000000,0,0,"https://www.contratos.gov.co/consultas/detalleProceso.do?numConstancia=22-4-13130453&g"]
[70,1047346933,"JOSE MENDOZA FONTALVO ","AUXILIAR FACTURACION","599 -2022",30,"01 de Febrero de 2022","28 de Febrero de 2022",1400000,1,1400000,0,0,"https://www.contratos.gov.co/consultas/detalleProceso.do?numConstancia=22-4-13130498&g"]
[71,57301265,"LILA MARIA VILLA MERIÑO","PERSONAL DE ASEO Y LIMPIEZA URGENCIAS ","600 -2022",30,"01 de Febrero de 2022","28 de Febrero de 2022",1400000,1,1400000,0,0,"https://www.contratos.gov.co/consultas/detalleProceso.do?numConstancia=22-4-13130524&g"]
[72,8634413,"GIL ANTONIO BERDUGO NOVA","AUXILIAR DE ENFERMERIA URGENCIAS","601 -2022",30,"01 de Febrero de 2022","28 de Febrero de 2022",1653600,1,1653600,0,0,"https://www.contratos.gov.co/consultas/detalleProceso.do?numConstancia=22-4-13130548&g"]
[73,32855196,"NINI JHOANA CHARRIS ENRIQUE","AUXILIAR DE ENFERMERIA URGENCIAS","602 -2022",30,"01 de Febrero de 2022","28 de Febrero de 2022",1653600,1,1653600,0,0,"https://www.contratos.gov.co/consultas/detalleProceso.do?numConstancia=22-4-13130621&g"]
[74,92260323,"ADOLFO DAVID TAPIA ANAYA","ENFERMERA JEFE DE URGENCIAS","603 -2022",30,"01 de Febrero de 2022","28 de Febrero de 2022",2280000,1,2280000,0,0,"https://www.contratos.gov.co/consultas/detalleProceso.do?numConstancia=22-4-13130621&g"]
[75,1064976268,"GUSTAVO  ADOLFO ARAUJO GALVAN ","MEDICO DE URGENCIAS ","604 -2022",30,"01 de Febrero de 2022","28 de Febrero de 2022",6144000,1,6144000,0,0,"https://www.contratos.gov.co/consultas/detalleProceso.do?numConstancia=22-4-13130621&g"]
[76,1043017563,"MARIA ANGEL ALMANZA AHUMADA","MEDICO DE URGENCIAS ","605 -2022",30,"01 de Febrero de 2022","28 de Febrero de 2022",6144000,1,6144000,0,0,"https://www.contratos.gov.co/consultas/detalleProceso.do?numConstancia=22-4-13130621&g"]
[77,1140840796,"OLGA  MARIA FRANCO ARTEAGA","MEDICO DE URGENCIAS ","606 -2022",30,"01 de Febrero de 2022","28 de Febrero de 2022",3072000,1,3072000,0,0,"https://www.contratos.gov.co/consultas/detalleProceso.do?numConstancia=22-4-13130621&g"]
[78,32810582,"JOSEFINA CARO VITOLA","AUXILIAR DE ENFERMERIA URGENCIAS","607 -2022",30,"01 de Febrero de 2022","28 de Febrero de 2022",1653600,1,1653600,0,0,"https://www.contratos.gov.co/consultas/detalleProceso.do?numConstancia=22-4-13130621&g"]
[79,32821813,"ESPERANZA SOFIA OROZCO MORENO ","AUXILIAR DE ENFERMERIA URGENCIAS","608 -2022",30,"01 de Febrero de 2022","28 de Febrero de 2022",1653600,1,1653600,0,0,"https://www.contratos.gov.co/consultas/detalleProceso.do?numConstancia=22-4-13130664&g"]
[80,22527122,"RUBY DEL CARMEN BOSSIO HERRERA","AUXILIAR DE ENFERMERIA URGENCIAS","609 -2022",30,"01 de Febrero de 2022","28 de Febrero de 2022",1653600,1,1653600,0,0,"https://www.contratos.gov.co/consultas/detalleProceso.do?numConstancia=22-4-13130683&g"]
[81,1042449720,"YULEIDYS ESTHER BERNAL ANGUILLA","TRABAJADORA SOCIAL","610 -2022",30,"01 de Febrero de 2022","28 de Febrero de 2022",2000000,1,2000000,0,0,"https://www.contratos.gov.co/consultas/detalleProceso.do?numConstancia=22-4-13130708&g"]
[82,1042442926,"ANDRES RAUL ESCORCIA VALDERRAMA","AUXILIAR FACTURACION","611 -2022",30,"01 de Febrero de 2022","28 de Febrero de 2022",1400000,1,1400000,0,0,"https://www.contratos.gov.co/consultas/detalleProceso.do?numConstancia=22-4-13130708&g"]
[83,1048279224,"MAICOL LAURENS FABREGAS","ORIENTADOR","612 -2022",30,"01 de Febrero de 2022","28 de Febrero de 2022",1400000,1,1400000,0,0,"https://www.contratos.gov.co/consultas/detalleProceso.do?numConstancia=22-4-13130708&g"]
[84,1143447904,"STEFFANY BRIGGITTE ALVAREZ LLERENA","DIGITADOR CUENTA DE ALTO COSTO GESTANTE Res. 0273 de 2019","613 -2022",30,"01 de Febrero de 2022","28 de Febrero de 2022",1500000,1,1500000,0,0,"https://www.contratos.gov.co/consultas/detalleProceso.do?numConstancia=22-4-13130708&g"]
[85,1042442558,"DANISA PAOLA BARRIOS DE ALBA","NUTRICIONISTA","614 -2022",30,"01 de Febrero de 2022","28 de Febrero de 2022",2000000,1,2000000,0,0,"https://www.contratos.gov.co/consultas/detalleProceso.do?numConstancia=22-4-13130708&g"]
[86,22646712,"NINI JOHANA SOLANO MORENO","ENFERMERA JEFE DE URGENCIAS","615 -2022",30,"01 de Febrero de 2022","28 de Febrero de 2022",2280000,1,2280000,0,0,"https://www.contratos.gov.co/consultas/detalleProceso.do?numConstancia=22-4-13130708&g"]
[87,55227166,"MARYI  PEREZ CASSIANI","ENFERMERA JEFE DE URGENCIAS","616 -2022",30,"01 de Febrero de 2022","28 de Febrero de 2022",2280000,1,2280000,0,0,"https://www.contratos.gov.co/consultas/detalleProceso.do?numConstancia=22-4-13130708&g"]
[88,8718276,"ENRIQUE PACHECO PACHECO ","MEDICO DE URGENCIAS ","617 -2022",30,"01 de Febrero de 2022","28 de Febrero de 2022",3072000,1,3072000,0,0,"https://www.contratos.gov.co/consultas/detalleProceso.do?numConstancia=22-4-13130708&g"]
[89,1043841968,"KAREN DAYANA FONSECA MUÑOZ","MEDICO DE URGENCIAS ","618 -2022",30,"01 de Febrero de 2022","28 de Febrero de 2022",3072000,1,3072000,0,0,"https://www.contratos.gov.co/consultas/detalleProceso.do?numConstancia=22-4-13130708&g"]
[90,1045697885,"LAURA ALANDETE CASTRO","MEDICO DE URGENCIAS ","619 -2022",30,"01 de Febrero de 2022","28 de Febrero de 2022",3072000,1,3072000,0,0,"https://www.contratos.gov.co/consultas/detalleProceso.do?numConstancia=22-4-13130708&g"]
[91,1042419634,"SUANY DEL CRISTO CADRAZCO  IMBETT","MEDICO DE URGENCIAS ","620 -2022",30,"01 de Febrero de 2022","28 de Febrero de 2022",3072000,1,3072000,0,0,"https://www.contratos.gov.co/consultas/detalleProceso.do?numConstancia=22-4-13130708&g"]
[92,55230396,"YORLETH MALENA FLOREZ ABRIL","MEDICO DE URGENCIAS ","621 -2022",30,"01 de Febrero de 2022","28 de Febrero de 2022",3072000,1,3072000,0,0,"https://www.contratos.gov.co/consultas/detalleProceso.do?numConstancia=22-4-13130708&g"]
[93,1128050440,"MAYRA ALEJANDRA ZAPATA GOMEZ","MEDICO DE URGENCIAS ","622 -2022",30,"01 de Febrero de 2022","28 de Febrero de 2022",3072000,1,3072000,0,0,"https://www.contratos.gov.co/consultas/detalleProceso.do?numConstancia=22-4-13130708&g"]
[94,22468835,"MILAGROS INMACULADA  GUZMAN FERNANDEZ ","ODONTOLOGO","623 -2022",30,"01 de Febrero de 2022","28 de Febrero de 2022",1900000,1,1900000,0,0,"https://www.contratos.gov.co/consultas/detalleProceso.do?numConstancia=22-4-13130708&g"]
[95,1045717077,"DAYANA PAOLA VIDAL  CEPEDA","MEDICO RIPMS Y CONSULTA EXTERNA ","624 -2022",30,"01 de Febrero de 2022","28 de Febrero de 2022",2120000,1,2120000,0,0,"https://www.contratos.gov.co/consultas/detalleProceso.do?numConstancia=22-4-13130708&g"]
[96,22523223,"ALEXANDRA ESTHER MOLINA PEREZ","PERSONAL DE ASEO Y LIMPIEZA URGENCIAS ","625 -2022",30,"01 de Febrero de 2022","28 de Febrero de 2022",1400000,1,1400000,0,0,"https://www.contratos.gov.co/consultas/detalleProceso.do?numConstancia=22-4-13130708&g"]
[97,22532041,"SORAYA  MARIA BACA RODRIGUEZ","PSICOLOGA","626 -2022",30,"01 de Febrero de 2022","28 de Febrero de 2022",2000000,1,2000000,0,0,"https://www.contratos.gov.co/consultas/detalleProceso.do?numConstancia=22-4-13130708&g"]
[98,22570149,"ELENA BAENA PEÑA","AUXILIAR FACTURACION","627 -2022",30,"01 de Febrero de 2022","28 de Febrero de 2022",1400000,1,1400000,0,0,"https://www.contratos.gov.co/consultas/detalleProceso.do?numConstancia=22-4-13130708&g"]
[99,8769094,"HABIT DIAZ ABDO","CONDUCTOR DE AMBULANCIA","628 -2022",30,"01 de Febrero de 2022","28 de Febrero de 2022",2000000,1,2000000,0,0,"https://www.contratos.gov.co/consultas/detalleProceso.do?numConstancia=22-4-13130708&g"]
[100,1140855017,"STEPHANY LORRAINE NIEBLES ZULUAGA ","ENFERMERA JEFE DE PROMOCIÓN Y MANTENIMIENTO DE LA SALUD","629 -2022",30,"01 de Febrero de 2022","28 de Febrero de 2022",2000000,1,2000000,0,0,"https://www.contratos.gov.co/consultas/detalleProceso.do?numConstancia=22-4-13130708&g"]
[101,8788794,"FRAICER JOHANNES CHARRIS RUA ","AUXILIAR FACTURACION","630 -2022",30,"01 de Febrero de 2022","28 de Febrero de 2022",1400000,1,1400000,0,0,"https://www.contratos.gov.co/consultas/detalleProceso.do?numConstancia=22-4-13130708&g"]
[102,72434383,"HUGO ORLANDO BARRAZA GARCIA","AUXILIAR FACTURACION","631 -2022",30,"01 de Febrero de 2022","28 de Febrero de 2022",1400000,1,1400000,0,0,"https://www.contratos.gov.co/consultas/detalleProceso.do?numConstancia=22-4-13130707&g"]
[103,49555306,"GLADYS DIAZ MARIN","AUXILIAR FACTURACION","632 -2022",30,"01 de Febrero de 2022","28 de Febrero de 2022",1400000,1,1400000,0,0,"https://www.contratos.gov.co/consultas/detalleProceso.do?numConstancia=22-4-13130708&g"]
[104,72432974,"EDER JOSE CASTRO PINTO","ORIENTADOR","633 -2022",30,"01 de Febrero de 2022","28 de Febrero de 2022",1400000,1,1400000,0,0,"https://www.contratos.gov.co/consultas/detalleProceso.do?numConstancia=22-4-13130708&g"]
[105,8507626,"MIGUEL ALVAREZ SALCEDO","CONDUCTOR DE AMBULANCIA","634 -2022",30,"01 de Febrero de 2022","28 de Febrero de 2022",2000000,1,2000000,0,0,"https://www.contratos.gov.co/consultas/detalleProceso.do?numConstancia=22-4-13130708&g"]
[106,22615873,"LICETH  ESTHER LAVALLE MORENO","AUXILIAR DE ODONTOLOGIA","635 -2022",30,"01 de Febrero de 2022","28 de Febrero de 2022",1166000,1,1166000,0,0,"https://www.contratos.gov.co/consultas/detalleProceso.do?numConstancia=22-4-13130708&g"]
[107,8737936,"NOE ANIBAL PELAEZ GONZALEZ","REGENTE DE FARMACIA ","636 -2022",30,"01 de Febrero de 2022","28 de Febrero de 2022",2280000,1,2280000,0,0,"https://www.contratos.gov.co/consultas/detalleProceso.do?numConstancia=22-4-13130705&g"]
[108,32819548,"NELLY GALAN HEILBRON","AUXILIAR PROMOTORA EN SALUD","637 -2022",30,"01 de Febrero de 2022","28 de Febrero de 2022",1300000,1,1300000,0,0,"https://www.contratos.gov.co/consultas/detalleProceso.do?numConstancia=22-4-13130708&g"]
[109,1042444925,"JESUS MORENO DE ALBA","AUXILIAR FACTURACION","638 -2022",30,"01 de Febrero de 2022","28 de Febrero de 2022",1400000,1,1400000,0,0,"https://www.contratos.gov.co/consultas/detalleProceso.do?numConstancia=22-4-13130708&g"]
[110,8776312,"JORGE RIVERA MEZA","AUXILIAR RECURSOS FISICOS","639 -2022",30,"01 de Febrero de 2022","28 de Febrero de 2022",1400000,1,1400000,0,0,"https://www.contratos.gov.co/consultas/detalleProceso.do?numConstancia=22-4-13130708&g"]
[111,1082405551,"DESIRETH ESTRADA FERNANDEZ","ENFERMERA JEFE DE PROMOCIÓN Y MANTENIMIENTO DE LA SALUD","640 -2022",30,"01 de Febrero de 2022","28 de Febrero de 2022",2000000,1,2000000,0,0,"https://www.contratos.gov.co/consultas/detalleProceso.do?numConstancia=22-4-13130708&g"]
[112,32712485,"CASILDA LARA SOLANO ","MEDICO DE PROMOCIÓN Y MANTENIMIENTO DE LA SALUD","641 -2022",30,"01 de Febrero de 2022","28 de Febrero de 2022",2120000,1,2120000,0,0,"https://www.contratos.gov.co/consultas/detalleProceso.do?numConstancia=22-4-13130708&g"]
[113,72158729,"MARLON CAMILO JORDAN HERRERA","REFERENCIA Y CONTRAREFERENCIA","642 -2022",30,"01 de Febrero de 2022","28 de Febrero de 2022",1500000,1,1500000,0,0,"https://www.contratos.gov.co/consultas/detalleProceso.do?numConstancia=22-4-13130708&g"]
[114,1129572439,"SHIRLEY CONSUEGRA OLAYA","REFERENCIA Y CONTRAREFERENCIA","643 -2022",30,"01 de Febrero de 2022","28 de Febrero de 2022",1500000,1,1500000,0,0,"https://www.contratos.gov.co/consultas/detalleProceso.do?numConstancia=22-4-13130708&g"]
[115,1143233427,"LAURA VANESSA ALGARIN MACIAS","AUXILIAR  DE ENFERMERIA URGENCIAS ","644 -2022",30,"01 de Febrero de 2022","28 de Febrero de 2022",1653600,1,1653600,0,0,"https://www.contratos.gov.co/consultas/detalleProceso.do?numConstancia=22-4-13130708&g"]
[116,32851260,"DENISE DEL CARMEN POLO AVILA","AUXILIAR DE ENFERMERIA URGENCIAS","645 -2022",30,"01 de Febrero de 2022","28 de Febrero de 2022",1653600,1,1653600,0,0,"https://www.contratos.gov.co/consultas/detalleProceso.do?numConstancia=22-4-13130708&g"]
[117,1041890156,"DIANA PATRICIA OSORIO CANTILLO ","AUXILIAR DE ENFERMERIA -SERVICIOS ESPECIALES","646 -2022",30,"01 de Febrero de 2022","28 de Febrero de 2022",1500000,1,1500000,0,0,"https://www.contratos.gov.co/consultas/detalleProceso.do?numConstancia=22-4-13130708&g"]
[118,22465848,"ADRIANA OROZCO CANTILLO","PERSONAL DE ASEO Y LIMPIEZA","647 -2022",30,"01 de Febrero de 2022","28 de Febrero de 2022",1215000,1,1215000,0,0,"https://www.contratos.gov.co/consultas/detalleProceso.do?numConstancia=22-4-13132644&g"]
[119,22524112,"DIANA SANDOVAL MANGA","ENFERMERA JEFE PROGRAMAS ESPECIALES","648 -2022",30,"01 de Febrero de 2022","28 de Febrero de 2022",2000000,1,2000000,0,0,"https://www.contratos.gov.co/consultas/detalleProceso.do?numConstancia=22-4-13132644&g"]
[120,8754502,"JORGE DE  LA HOZ DE LA HOZ ","ORIENTADOR","649 -2022",30,"01 de Febrero de 2022","28 de Febrero de 2022",1270000,1,1270000,0,0,"https://www.contratos.gov.co/consultas/detalleProceso.do?numConstancia=22-4-13132644&g"]
[121,32878246,"SHIRLY ISABEL  RECIO COLLANTE ","AUXILIAR DE ENFERMERIA -PROGRAMA CARDIOVASCULAR EXTERIOR","650 -2022",30,"01 de Febrero de 2022","28 de Febrero de 2022",1400000,1,1400000,0,0,"https://www.contratos.gov.co/consultas/detalleProceso.do?numConstancia=22-4-13132644&g"]
[122,32876060,"YAKELIN BOLAÑO MIRANDA","AUXILIAR DE ODONTOLOGIA","651 -2022",30,"01 de Febrero de 2022","28 de Febrero de 2022",1166000,1,1166000,0,0,"https://www.contratos.gov.co/consultas/detalleProceso.do?numConstancia=22-4-13132644&g"]
[123,1042430545,"JORGE LUIS BALLESTAS AFRICANO","ORIENTADOR","652 -2022",30,"01 de Febrero de 2022","28 de Febrero de 2022",1400000,1,1400000,0,0,"https://www.contratos.gov.co/consultas/detalleProceso.do?numConstancia=22-4-13132644&g"]
[124,1003076153,"HALISSON QUINTERO HOYOS","PERSONAL DE ASEO Y LIMPIEZA","653 -2022",30,"01 de Febrero de 2022","28 de Febrero de 2022",1400000,1,1400000,0,0,"https://www.contratos.gov.co/consultas/detalleProceso.do?numConstancia=22-4-13132644&g"]
[125,1045688469,"AMY MOVILLA COMAS","ENFERMERA JEFE  RUTA CARDIOVASCULAR ","654 -2022",30,"01 de Febrero de 2022","28 de Febrero de 2022",2000000,1,2000000,0,0,"https://www.contratos.gov.co/consultas/detalleProceso.do?numConstancia=22-4-13132644&g"]
[126,32796648,"LILIANA  CECILIA OROZCO ROJAS ","ODONTOLOGO","655 -2022",30,"01 de Febrero de 2022","28 de Febrero de 2022",1900000,1,1900000,0,0,"https://www.contratos.gov.co/consultas/detalleProceso.do?numConstancia=22-4-13132644&g"]
[127,32866058,"CLAUDIA CABARCAS ARROYO","TRABAJADORA SOCIAL","656 -2022",30,"01 de Febrero de 2022","28 de Febrero de 2022",2000000,1,2000000,0,0,"https://www.contratos.gov.co/consultas/detalleProceso.do?numConstancia=22-4-13132644&g"]
[128,1047358567,"JENNIFER PAULA FRUTO MALDONADO ","MEDICO  RIPMS Y  CONSULTA EXTERNA ","657 -2022",30,"01 de Febrero de 2022","28 de Febrero de 2022",4240000,1,4240000,0,0,"https://www.contratos.gov.co/consultas/detalleProceso.do?numConstancia=22-4-13132644&g"]
[129,32666054,"LUCY CHING ANAYA ","MEDICO CONSULTA EXTERNA ","658 -2022",30,"01 de Febrero de 2022","28 de Febrero de 2022",2120000,1,2120000,0,0,"https://www.contratos.gov.co/consultas/detalleProceso.do?numConstancia=22-4-13132644&g"]
[130,1103109488,"ADRIANA MARCELA CASTAÑO RODELO ","MEDICO PROGRAMA CARDIOVASCULAR","659 -2022",30,"01 de Febrero de 2022","28 de Febrero de 2022",2300000,1,2300000,0,0,"https://www.contratos.gov.co/consultas/detalleProceso.do?numConstancia=22-4-13132644&g"]
[{"$f":"+A132+1","v":131},22738424,"LINA  MARGARITA TORO GARCIA","MEDICO PROGRAMA CARDIOVASCULAR","660 -2022",30,"01 de Febrero de 2022","28 de Febrero de 2022",4600000,1,4600000,0,0,"https://www.contratos.gov.co/consultas/detalleProceso.do?numConstancia=22-4-13138731&g"]
[132,55307582,"PAOLA VALENCIA GUERRERO","MEDICO PROGRAMA CARDIOVASCULAR","661 -2022",30,"01 de Febrero de 2022","28 de Febrero de 2022",2300000,1,2300000,0,0,"https://www.contratos.gov.co/consultas/detalleProceso.do?numConstancia=22-4-13138731&g"]
[133,1007908949,"VERONICA POLET TODARO PEDROZO","MEDICO PROGRAMA CARDIOVASCULAR ","662 -2022",30,"01 de Febrero de 2022","28 de Febrero de 2022",2300000,1,2300000,0,0,"https://www.contratos.gov.co/consultas/detalleProceso.do?numConstancia=22-4-13138731&g"]
[134,1042426937,"NIDIA ESTHER RAMOS MARTINEZ","AUXILIAR DE ENFERMERIA DE PROMOCION Y MANTENIMIENTO DE LA SALUD","663 -2022",30,"01 de Febrero de 2022","28 de Febrero de 2022",1300000,1,1300000,0,0,"https://www.contratos.gov.co/consultas/detalleProceso.do?numConstancia=22-4-13138731&g"]
[135,22692801,"SUNILDA  ESTHER SAURIT ESCORCIA","AUXILIAR DE ENFERMERIA DE PROMOCION Y MANTENIMIENTO DE LA SALUD","664 -2022",30,"01 de Febrero de 2022","28 de Febrero de 2022",1166000,1,1166000,0,0,"https://www.contratos.gov.co/consultas/detalleProceso.do?numConstancia=22-4-13138731&g"]
[136,1042439853,"KERVY DIYAN JINETTE BARRIOS","AUXILIAR ADMINISTRATIVO  -DIGITACION CUENTA DE ALTO COSTO EN LA CONSOLIDACION DE INFORMACION - PROGRAMA CARDIOVASCULAR Res. 2463 de 2014.","665 -2022",30,"01 de Febrero de 2022","28 de Febrero de 2022",1500000,1,1500000,0,0,"https://www.contratos.gov.co/consultas/detalleProceso.do?numConstancia=22-4-13138731&g"]
[137,32896837,"MARYULIS PATRICIA CRUZ JIMENEZ","ENFERMERA JEFE DE PROMOCIÓN Y MANTENIMIENTO DE LA SALUD","666 -2022",30,"01 de Febrero de 2022","28 de Febrero de 2022",2000000,1,2000000,0,0,"https://www.contratos.gov.co/consultas/detalleProceso.do?numConstancia=22-4-13138731&g"]
[138,22444561,"LUZ MARINA DONADO BARRIOS ","AUXILIAR FACTURACION","667 -2022",30,"01 de Febrero de 2022","28 de Febrero de 2022",1400000,1,1400000,0,0,"https://www.contratos.gov.co/consultas/detalleProceso.do?numConstancia=22-4-13138731&g"]
[139,1140853943,"LEIDY VANESSA BUSTILLO FORMARIS","ODONTOLOGO","668 -2022",30,"01 de Febrero de 2022","28 de Febrero de 2022",1900000,1,1900000,0,0,"https://www.contratos.gov.co/consultas/detalleProceso.do?numConstancia=22-4-13138731&g"]
[140,22483625,"LUZ DIVINA CARREÑO ALTAMAR","AUXILIAR FACTURACION ","669 -2022",30,"01 de Febrero de 2022","28 de Febrero de 2022",1400000,1,1400000,0,0,"https://www.contratos.gov.co/consultas/detalleProceso.do?numConstancia=22-4-13138731&g"]
[141,55305408,"YURI PAOLA MOLINARES FERRER","AUXILIAR FACTURACION","670 -2022",30,"01 de Febrero de 2022","28 de Febrero de 2022",1400000,1,1400000,0,0,"https://www.contratos.gov.co/consultas/detalleProceso.do?numConstancia=22-4-13138731&g"]
[142,1047235817,"FABRICIO ANDRES TANUZ SIERRA","AUXILIAR  FACTURACION ","671 -2022",30,"01 de Febrero de 2022","28 de Febrero de 2022",1400000,1,1400000,0,0,"https://www.contratos.gov.co/consultas/detalleProceso.do?numConstancia=22-4-13138731&g"]
[143,1042456964,"MARI CARMEN CASTRO GARCIA ","PSICOLOGA","672 -2022",30,"01 de Febrero de 2022","28 de Febrero de 2022",2000000,1,2000000,0,0,"https://www.contratos.gov.co/consultas/detalleProceso.do?numConstancia=22-4-13139005&g-"]
[144,22693871,"MIRIAM MARIA  VILLARREAL DE ALBA","PERSONAL DE ASEO Y LIMPIEZA","673 -2022",30,"01 de Febrero de 2022","28 de Febrero de 2022",1400000,1,1400000,0,0,"https://www.contratos.gov.co/consultas/detalleProceso.do?numConstancia=22-4-13139018&g"]
[145,1234888398,"STEFANY CECILIA MANOTAS CERDA ","FACTURADOR -DIGITADORES PAIWEB- VACUNACION COVID19","0673-2022-COVID20",30,"01 de Febrero de 2022","28 de Febrero de 2022",1400000,1,1400000,0,0,"https://www.contratos.gov.co/consultas/detalleProceso.do?numConstancia=22-4-13139018&g"]
[146,1002157167,"LEODALIZ  SALGADO GUERRERO","AGENTE CALL CENTER","675 -2022",30,"01 de Febrero de 2022","28 de Febrero de 2022",1400000,1,1400000,0,0,"https://www.contratos.gov.co/consultas/detalleProceso.do?numConstancia=22-4-13139018&g"]
[147,72132608,"MARCO AURELIO CASTRO CAICEDO","AUXILIAR FACTURACION ","676 -2022",30,"01 de Febrero de 2022","28 de Febrero de 2022",1400000,1,1400000,0,0,"https://www.contratos.gov.co/consultas/detalleProceso.do?numConstancia=22-4-13139018&g"]
[148,1143143512,"TAIDETH ALEXANDRA BRACHO DAVILA","AUXILIAR DE ENFERMERIA URGENCIAS","677 -2022",30,"01 de Febrero de 2022","28 de Febrero de 2022",1653600,1,1653600,0,0,"https://www.contratos.gov.co/consultas/detalleProceso.do?numConstancia=22-4-13139018&g"]
[149,55249916,"JAMARIS DEL CARMEN JIMENEZ DIAZ ","ENFERMERA JEFE PYP","678 -2022",30,"01 de Febrero de 2022","28 de Febrero de 2022",2000000,1,2000000,0,0,"https://www.contratos.gov.co/consultas/detalleProceso.do?numConstancia=22-4-13139018&g"]
[150,22533893,"LILIANA MARIA VARGAS MONTERO ","ENFERMERA JEFE DE RUTA INTEGRAL MATERNO PERINATAL","679 -2022",30,"01 de Febrero de 2022","28 de Febrero de 2022",2000000,1,2000000,0,0,"https://www.contratos.gov.co/consultas/detalleProceso.do?numConstancia=22-4-13139018&g"]
[151,1042433548,"MAYRA ALEJANDRA FONTALVO RIVALDO ","MEDICO DE URGENCIAS ","680 -2022",30,"01 de Febrero de 2022","28 de Febrero de 2022",3072000,1,3072000,0,0,"https://www.contratos.gov.co/consultas/detalleProceso.do?numConstancia=22-4-13139018&g"]
[152,7469739,"LEOVALDO MENDOZA PAREJO","ORIENTADOR","681 -2022",30,"01 de Febrero de 2022","28 de Febrero de 2022",1400000,1,1400000,0,0,"https://www.contratos.gov.co/consultas/detalleProceso.do?numConstancia=22-4-13139018&g"]
[153,32623541,"MAGALYS ESPITIA RAMOS","PERSONAL DE ASEO Y LIMPIEZA URGENCIAS ","682 -2022",30,"01 de Febrero de 2022","28 de Febrero de 2022",1400000,1,1400000,0,0,"https://www.contratos.gov.co/consultas/detalleProceso.do?numConstancia=22-4-13139018&g"]
[154,72238499,"CARLOS ANTONIO MATTOS MIRANDA","REFERENCIA Y CONTRAREFERENCIA","683 -2022",30,"01 de Febrero de 2022","28 de Febrero de 2022",1500000,1,1500000,0,0,"https://www.contratos.gov.co/consultas/detalleProceso.do?numConstancia=22-4-13139018&g"]
[155,1143443161,"SANDRA PAOLA DE LA HOZ ","AUXILIAR DE ENFERMERIA URGENCIAS","684 -2022",30,"01 de Febrero de 2022","28 de Febrero de 2022",1653600,1,1653600,0,0,"https://www.contratos.gov.co/consultas/detalleProceso.do?numConstancia=22-4-13139018&g"]
[156,1085110564,"LISBETH JOHANA VIVIC GARCIA","AUXILIAR DE ODONTOLOGIA","685 -2022",30,"01 de Febrero de 2022","28 de Febrero de 2022",1166000,1,1166000,0,0,"https://www.contratos.gov.co/consultas/detalleProceso.do?numConstancia=22-4-13139018&g"]
[157,1104384890,"NASLY MARIA HERNANDEZ VEGA","PERSONAL DE ASEO Y LIMPIEZA URGENCIAS ","686 -2022",30,"01 de Febrero de 2022","28 de Febrero de 2022",1400000,1,1400000,0,0,"https://www.contratos.gov.co/consultas/detalleProceso.do?numConstancia=22-4-13139018&g"]
[158,72436677,"DANILO ENRIQUE GRAVINI DE LA HOZ ","AUXILIAR DE ENFERMERIA URGENCIAS","687 -2022",30,"01 de Febrero de 2022","28 de Febrero de 2022",1653600,1,1653600,0,0,"https://www.contratos.gov.co/consultas/detalleProceso.do?numConstancia=22-4-13139018&g"]
[159,1143125983,"ESTEFANY DAYANA  PANTOJA CABALLERO ","AUXILIAR DE ENFERMERIA URGENCIAS","688 -2022",30,"01 de Febrero de 2022","28 de Febrero de 2022",1653600,1,1653600,0,0,"https://www.contratos.gov.co/consultas/detalleProceso.do?numConstancia=22-4-13139018&g"]
[160,22588480,"ANA DISNERY DIAZ GARCIA","AUXILIAR DE ENFERMERIA URGENCIAS","689 -2022",30,"01 de Febrero de 2022","28 de Febrero de 2022",1653600,1,1653600,0,0,"https://www.contratos.gov.co/consultas/detalleProceso.do?numConstancia=22-4-13139018&g"]
[161,32583031,"YENIS MARMOL HURTADO","AUXILIAR DE ENFERMERIA URGENCIAS","690 -2022",30,"01 de Febrero de 2022","28 de Febrero de 2022",1653600,1,1653600,0,0,"https://www.contratos.gov.co/consultas/detalleProceso.do?numConstancia=22-4-13140346&g"]
[162,22665409,"YURLEY VANESSA MERCADO BOCANEGRA","AUXILIAR DE ENFERMERIA URGENCIAS","691 -2022",30,"01 de Febrero de 2022","28 de Febrero de 2022",1653600,1,1653600,0,0,"https://www.contratos.gov.co/consultas/detalleProceso.do?numConstancia=22-4-13140346&g"]
[163,50959927,"CONSUELO YAZMIN LOBO RAMIREZ","AUXILIAR DE ENFERMERIA URGENCIAS","692 -2022",30,"01 de Febrero de 2022","28 de Febrero de 2022",1653600,1,1653600,0,0,"https://www.contratos.gov.co/consultas/detalleProceso.do?numConstancia=22-4-13140346&g"]
[164,1041892368,"DANIELA PAOLA GUTIERREZ RUEDA","AUXILIAR DE ENFERMERIA URGENCIAS","693 -2022",30,"01 de Febrero de 2022","28 de Febrero de 2022",1653600,1,1653600,0,0,"https://www.contratos.gov.co/consultas/detalleProceso.do?numConstancia=22-4-13140346&g"]
[165,1041901753,"MAIRA ALEJANDRA FONTALVO RUA","AUXILIAR DE ENFERMERIA URGENCIAS","694 -2022",30,"01 de Febrero de 2022","28 de Febrero de 2022",1653600,1,1653600,0,0,"https://www.contratos.gov.co/consultas/detalleProceso.do?numConstancia=22-4-13140346&g"]
[166,1043851034,"ASTRID GONZALEZ CABALLERO","AUXILIAR DE ODONTOLOGIA","695 -2022",30,"01 de Febrero de 2022","28 de Febrero de 2022",1166000,1,1166000,0,0,"https://www.contratos.gov.co/consultas/detalleProceso.do?numConstancia=22-4-13140346&g"]
[167,72159573,"JUAN CARLOS MEDINA HERRERA","CONDUCTOR DE AMBULANCIA","696 -2022",30,"01 de Febrero de 2022","28 de Febrero de 2022",2000000,1,2000000,0,0,"https://www.contratos.gov.co/consultas/detalleProceso.do?numConstancia=22-4-13140346&g"]
[168,1045675074,"SAYURI ANGELICA SERRANO FIGUEROA","ENFERMERA JEFE DE URGENCIAS","697 -2022",30,"01 de Febrero de 2022","28 de Febrero de 2022",2280000,1,2280000,0,0,"https://www.contratos.gov.co/consultas/detalleProceso.do?numConstancia=22-4-13140346&g"]
[169,1045166310,"MARTINA VIZCAINO VENENCIA","ENFERMERA JEFE DE URGENCIAS","698 -2022",30,"01 de Febrero de 2022","28 de Febrero de 2022",2280000,1,2280000,0,0,"https://www.contratos.gov.co/consultas/detalleProceso.do?numConstancia=22-4-13140346&g"]
[170,55302261,"VANESSA PAOLA DURAN PEÑARANDA","FISIOTERAPEUTA","699 -2022",30,"01 de Febrero de 2022","28 de Febrero de 2022",2000000,1,2000000,0,0,"https://www.contratos.gov.co/consultas/detalleProceso.do?numConstancia=22-4-13140346&g"]
[171,8725711,"AURELIO JOSE MARTELO GUERRERO ","ORIENTADOR","700 -2022",30,"01 de Febrero de 2022","28 de Febrero de 2022",1400000,1,1400000,0,0,"https://www.contratos.gov.co/consultas/detalleProceso.do?numConstancia=22-4-13140346&g"]
[172,1001912778,"CHRISTIAN ENRIQUE NARVAEZ MEDINA ","AUXILIAR FACTURACION","701 -2022",30,"01 de Febrero de 2022","28 de Febrero de 2022",1400000,1,1400000,0,0,"https://www.contratos.gov.co/consultas/detalleProceso.do?numConstancia=22-4-13140346&g"]
[173,1143138743,"LUIS RAFAEL VASQUEZ MARMOL","AUXILIAR FACTURACION","702 -2022",30,"01 de Febrero de 2022","28 de Febrero de 2022",1400000,1,1400000,0,0,"https://www.contratos.gov.co/consultas/detalleProceso.do?numConstancia=22-4-13140346&g"]
[174,1010067974,"FERNANDO RAFAEL LEON BARRAZA","AUXILIAR FACTURACION","703 -2022",30,"01 de Febrero de 2022","28 de Febrero de 2022",1400000,1,1400000,0,0,"https://www.contratos.gov.co/consultas/detalleProceso.do?numConstancia=22-4-13140346&g"]
[175,1042972523,"YUNEIS PAHOLA ORTIZ ESCOBAR","PERSONAL DE ASEO Y LIMPIEZA URGENCIAS ","704 -2022",30,"01 de Febrero de 2022","28 de Febrero de 2022",1400000,1,1400000,0,0,"https://www.contratos.gov.co/consultas/detalleProceso.do?numConstancia=22-4-13140346&g"]
[176,32853526,"LEYLA DEL SOCORRO SOSA POLO","AUXILIAR DE ENFERMERIA URGENCIAS","705 -2022",30,"01 de Febrero de 2022","28 de Febrero de 2022",1653600,1,1653600,0,0,"https://www.contratos.gov.co/consultas/detalleProceso.do?numConstancia=22-4-13140346&g"]
[177,1140877960,"NICAULIS RODRIGUEZ GOMEZ","AUXILIAR FACTURACION","706 -2022",30,"01 de Febrero de 2022","28 de Febrero de 2022",1400000,1,1400000,0,0,"https://www.contratos.gov.co/consultas/detalleProceso.do?numConstancia=22-4-13140346&g"]
[178,32891063,"LILIBETH PACHECO ACERO","ODONTOLOGO","707 -2022",30,"01 de Febrero de 2022","28 de Febrero de 2022",1900000,1,1900000,0,0,"https://www.contratos.gov.co/consultas/detalleProceso.do?numConstancia=22-4-13140964&g"]
[179,1047352134,"JEIFFRYD JOSE DE MOYA CHARRIS ","MEDICO RIMPS Y CONSULTA EXTERNA ","708 -2022",30,"01 de Febrero de 2022","28 de Febrero de 2022",3180000,1,3180000,0,0,"https://www.contratos.gov.co/consultas/detalleProceso.do?numConstancia=22-4-13140988&g"]
[180,72167075,"ALEXI CRISTOBAL TAPIAS MAESTRE","MEDICO DE URGENCIAS ","709 -2022",30,"01 de Febrero de 2022","28 de Febrero de 2022",3072000,1,3072000,0,0,"https://www.contratos.gov.co/consultas/detalleProceso.do?numConstancia=22-4-13141008&g"]
[181,9112184,"NESTOR ALBERTO MALO YEPES","MEDICO DE URGENCIAS ","710 -2022",30,"01 de Febrero de 2022","28 de Febrero de 2022",3072000,1,3072000,0,0,"https://www.contratos.gov.co/consultas/detalleProceso.do?numConstancia=22-4-13141033&g"]
[182,32712489,"JULIA ESTELLA RIVERA RIVERA TREJOS ","MEDICO DE URGENCIAS ","711 -2022",30,"01 de Febrero de 2022","28 de Febrero de 2022",3072000,1,3072000,0,0,"https://www.contratos.gov.co/consultas/detalleProceso.do?numConstancia=22-4-13141061&g-"]
[183,1129570673,"JOSE ANTONIO ZAMORA CERA","MEDICO DE URGENCIAS ","712 -2022",30,"01 de Febrero de 2022","28 de Febrero de 2022",3072000,1,3072000,0,0,"https://www.contratos.gov.co/consultas/detalleProceso.do?numConstancia=22-4-13141061&g-"]
[184,8721729,"ROGER ALBERTO ARAUJO RAMOS","MEDICO DE URGENCIAS ","713 -2022",30,"01 de Febrero de 2022","28 de Febrero de 2022",3072000,1,3072000,0,0,"https://www.contratos.gov.co/consultas/detalleProceso.do?numConstancia=22-4-13141061&g-"]
[185,32780077,"BELKIS  BOSSIO ESCORCIA","MEDICO DE URGENCIAS ","714 -2022",30,"01 de Febrero de 2022","28 de Febrero de 2022",3072000,1,3072000,0,0,"https://www.contratos.gov.co/consultas/detalleProceso.do?numConstancia=22-4-13141061&g-"]
[186,32756610,"GENNY SOFIA GUZMAN NAVARRO","MEDICO DE URGENCIAS ","715 -2022",30,"01 de Febrero de 2022","28 de Febrero de 2022",3072000,1,3072000,0,0,"https://www.contratos.gov.co/consultas/detalleProceso.do?numConstancia=22-4-13141061&g-"]
[187,1041897051,"ELIZABETH PLAZAS BARRAZA","MEDICO DE URGENCIAS ","716 -2022",30,"01 de Febrero de 2022","28 de Febrero de 2022",3072000,1,3072000,0,0,"https://www.contratos.gov.co/consultas/detalleProceso.do?numConstancia=22-4-13141061&g-"]
[188,1048267612,"OLGA DE AVILA ARRIETA","MEDICO DE RUTA INTEGRAL MATERNO PERINATAL ","717 -2022",30,"01 de Febrero de 2022","28 de Febrero de 2022",5088000,1,5088000,0,0,"https://www.contratos.gov.co/consultas/detalleProceso.do?numConstancia=22-4-13141061&g-"]
[189,1042436213,"DESIRET PAOLA PINTO NARVAEZ","ENFERMERA JEFE DE URGENCIAS","718 -2022",30,"01 de Febrero de 2022","28 de Febrero de 2022",2280000,1,2280000,0,0,"https://www.contratos.gov.co/consultas/detalleProceso.do?numConstancia=22-4-13141061&g-"]
[190,1052949649,"DILIANA GARCIA JIMENEZ","ENFERMERA JEFE DE URGENCIAS","719 -2022",30,"01 de Febrero de 2022","28 de Febrero de 2022",2280000,1,2280000,0,0,"https://www.contratos.gov.co/consultas/detalleProceso.do?numConstancia=22-4-13141061&g-"]
[191,1042446319,"BRUNYS DEL CARMEN RAMIREZ MUÑOZ","AUXILIAR PROMOTORA EN SALUD","720 -2022",30,"01 de Febrero de 2022","28 de Febrero de 2022",1300000,1,1300000,0,0,"https://www.contratos.gov.co/consultas/detalleProceso.do?numConstancia=22-4-13141061&g-"]
[192,72072808,"JARID BERDUGO COBO ","REFERENCIA Y CONTRAREFERENCIA","721 -2022",30,"01 de Febrero de 2022","28 de Febrero de 2022",1500000,1,1500000,0,0,"https://www.contratos.gov.co/consultas/detalleProceso.do?numConstancia=22-4-13141061&g-"]
[193,1047230116,"NORIS MARIA GUTIERREZ ACOSTA","AUXILIAR FACTURACION","722 -2022",30,"01 de Febrero de 2022","28 de Febrero de 2022",1400000,1,1400000,0,0,"https://www.contratos.gov.co/consultas/detalleProceso.do?numConstancia=22-4-13141061&g-"]
[194,1047337864,"MARTHA MARÍA ARIZA FONTALVO","DIGITADOR CUENTA DE ALTO COSTO GESTANTE Res. 0273 de 2019","723 -2022",30,"01 de Febrero de 2022","28 de Febrero de 2022",1500000,1,1500000,0,0,"https://www.contratos.gov.co/consultas/detalleProceso.do?numConstancia=22-4-13141061&g-"]
[{"$f":"+A196+1","v":195},72181563,"EDGARDO THORNE GLENN","ODONTOLOGO","724 -2022",30,"01 de Febrero de 2022","28 de Febrero de 2022",1900000,1,1900000,0,0,"https://www.contratos.gov.co/consultas/detalleProceso.do?numConstancia=22-4-13141061&g-"]
[196,8501206,"AUGUSTO  RAFAEL VALENCIA OCAMPO","AUXILIAR FACTURACION","725 -2022",30,"01 de Febrero de 2022","28 de Febrero de 2022",1400000,1,1400000,0,0,"https://www.contratos.gov.co/consultas/detalleProceso.do?numConstancia=22-4-13141061&g-"]
[197,44157204,"ESTHER  CECILIA SOLANO BARROS ","MEDICO DE URGENCIAS ","726 -2022",30,"01 de Febrero de 2022","28 de Febrero de 2022",3072000,1,3072000,0,0,"https://www.contratos.gov.co/consultas/detalleProceso.do?numConstancia=22-4-13141061&g-"]
[198,44157619,"KAREN MARIA  GOETTE MONTERO ","PERSONAL DE ASEO Y LIMPIEZA URGENCIAS ","727 -2022",30,"01 de Febrero de 2022","28 de Febrero de 2022",1400000,1,1400000,0,0,"https://www.contratos.gov.co/consultas/detalleProceso.do?numConstancia=22-4-13142570&g"]
[199,1042444265,"KATERIN JULIETH HERNANDEZ FRIA","AUXILIAR DE ENFERMERIA DE PROMOCION Y MANTENIMIENTO DE LA SALUD","728 -2022",30,"01 de Febrero de 2022","28 de Febrero de 2022",1400000,1,1400000,0,0,"https://www.contratos.gov.co/consultas/detalleProceso.do?numConstancia=22-4-13142587&g"]
[200,1001821798,"ANGELA JUDITH BARRIOS MEJIA","AUXILIAR DE ENFERMERIA RUTA MATERNO PREINATAL ","729 -2022",30,"01 de Febrero de 2022","13 de Febrero de 2022",1400000,1,1400000,0,0,0]
[201,22443679,"MONICA PEREZ RODRIGUEZ ","FISIOTERAPEUTA ","730 -2022",30,"01 de Febrero de 2022","28 de Febrero de 2022",2000000,1,2000000,0,0,"https://www.contratos.gov.co/consultas/detalleProceso.do?numConstancia=22-4-13142612&g"]
[202,1129577577,"YAILETH MARIA UTRIA GARCIA ","TRABAJADORA SOCIAL","731 -2022",30,"01 de Febrero de 2022","28 de Febrero de 2022",2000000,1,2000000,0,0,"https://www.contratos.gov.co/consultas/detalleProceso.do?numConstancia=22-4-13142631&g"]
[203,32668810,"MARIA ISABEL ALVARADO LOBOS","ASISTENTE ADMINISTRATIVO COORDINACION  MEDICA ","732 -2022",30,"01 de Febrero de 2022","28 de Febrero de 2022",1800000,1,1800000,0,0,"https://www.contratos.gov.co/consultas/detalleProceso.do?numConstancia=22-4-13142653&g"]
[204,1083433669,"KARLA MARIA SUAREZ MUÑOZ","AUXILIAR DE ENFERMERIA URGENCIAS","733 -2022",30,"01 de Febrero de 2022","28 de Febrero de 2022",1653600,1,1653600,0,0,"https://www.contratos.gov.co/consultas/detalleProceso.do?numConstancia=22-4-13142685&g"]
[205,1129581013,"KERLY JHOVELIS PITRE MORENO","ENFERMERA JEFE DE PROMOCIÓN Y MANTENIMIENTO DE LA SALUD","734 -2022",30,"01 de Febrero de 2022","28 de Febrero de 2022",2000000,1,2000000,0,0,"https://www.contratos.gov.co/consultas/detalleProceso.do?numConstancia=22-4-13142709&g"]
[206,1129569382,"DAVID ALEJANDRO MIRANDA TORO","MEDICO DE URGENCIAS ","735 -2022",30,"01 de Febrero de 2022","28 de Febrero de 2022",3072000,1,3072000,0,0,"https://www.contratos.gov.co/consultas/detalleProceso.do?numConstancia=22-4-13142892&g"]
[207,72147873,"RAMIRO ANTONIO SALAS LARA ","REGENTE DE FARMACIA ","736 -2022",30,"01 de Febrero de 2022","28 de Febrero de 2022",2280000,1,2280000,0,0,"https://www.contratos.gov.co/consultas/detalleProceso.do?numConstancia=22-4-13142922&g"]
[208,1047341586,"MARIA GUADALUPE MUÑOZ","ODONTOLOGO","737 -2022",30,"01 de Febrero de 2022","28 de Febrero de 2022",1900000,1,1900000,0,0,"https://www.contratos.gov.co/consultas/detalleProceso.do?numConstancia=22-4-13142953&g"]
[209,55309225,"ADRIANA LIANET BALLESTAS MARTINE","MEDICO DE URGENCIA ","738 -2022",30,"01 de Febrero de 2022","28 de Febrero de 2022",3072000,1,3072000,0,0,"https://www.contratos.gov.co/consultas/detalleProceso.do?numConstancia=22-4-13142978&g"]
[210,1042436934,"DAYANA PAOLA TORRES SOLANO","MEDICO  RIPMS Y  CONSULTA EXTERNA ","739 -2022",30,"01 de Febrero de 2022","28 de Febrero de 2022",2120000,1,2120000,0,0,"https://www.contratos.gov.co/consultas/detalleProceso.do?numConstancia=22-4-13142978&g"]
[211,22531673,"VIVIANA LUZ OYOLA ARRIETA","PERSONAL DE ASEO Y LIMPIEZA","740 -2022",30,"01 de Febrero de 2022","28 de Febrero de 2022",1400000,1,1400000,0,0,"https://www.contratos.gov.co/consultas/detalleProceso.do?numConstancia=22-4-13142978&g"]
[212,32731770,"MONICA SOFIA MARIN MIRANDA","FISIOTERAPEUTA","741 -2022",30,"01 de Febrero de 2022","28 de Febrero de 2022",2000000,1,2000000,0,0,"https://www.contratos.gov.co/consultas/detalleProceso.do?numConstancia=22-4-13142978&g"]
[213,1045704276,"ANA MILENA HERRERA ALVIS ","ENFERMERA JEFE DE PROMOCIÓN Y MANTENIMIENTO DE LA SALUD","742 -2022",30,"01 de Febrero de 2022","28 de Febrero de 2022",3200000,1,3200000,0,0,"https://www.contratos.gov.co/consultas/detalleProceso.do?numConstancia=22-4-13142978&g"]
[214,36755636,"MELBA RUBIELA JATIVA SALAZAR","TRABAJADORA SOCIAL","743 -2022",30,"01 de Febrero de 2022","28 de Febrero de 2022",2000000,1,2000000,0,0,"https://www.contratos.gov.co/consultas/detalleProceso.do?numConstancia=22-4-13142978&g"]
[215,1043009939,"MARIA JOSE AHUMADA RODRIGUEZ","MEDICO CONSULTA EXTERNA","744 -2022",30,"01 de Febrero de 2022","28 de Febrero de 2022",4240000,1,4240000,0,0,"https://www.contratos.gov.co/consultas/detalleProceso.do?numConstancia=22-4-13142978&g"]
[216,8721508,"ALONSO JOSÉ RIQUETT DE LA HOZ","MEDICO CONSULTA EXTERNA ","745 -2022",30,"01 de Febrero de 2022","28 de Febrero de 2022",2120000,1,2120000,0,0,"https://www.contratos.gov.co/consultas/detalleProceso.do?numConstancia=22-4-13142978&g"]
[217,1045680952,"WILLIAM RAFAEL DAVIDSON URIETA","MEDICO CONSULTA EXTERNA ","746 -2022",30,"01 de Febrero de 2022","28 de Febrero de 2022",4240000,1,4240000,0,0,"https://www.contratos.gov.co/consultas/detalleProceso.do?numConstancia=22-4-13142978&g"]
[218,32865503,"ZULAI YAZMIN DONADO PARODIS ","AUXILIAR DE ENFERMERIA  RUTA MATERNO PERINATAL ","747 -2022",30,"01 de Febrero de 2022","28 de Febrero de 2022",1400000,1,1400000,0,0,"https://www.contratos.gov.co/consultas/detalleProceso.do?numConstancia=22-4-13142978&g"]
[219,1001872916,"YURLEIDYS VANESSA  BECERRA CANTILLO","AUXILIAR DE ENFERMERIA CONSULTA EXTERNA","748 -2022",30,"01 de Febrero de 2022","28 de Febrero de 2022",1166000,1,1166000,0,0,"https://www.contratos.gov.co/consultas/detalleProceso.do?numConstancia=22-4-13142978&g"]
[220,22647051,"EDELMIRA DUQUE LAMADRID","FISIOTERAPEUTA","749 -2022",30,"01 de Febrero de 2022","28 de Febrero de 2022",1900000,1,1900000,0,0,"https://www.contratos.gov.co/consultas/detalleProceso.do?numConstancia=22-4-13142978&g"]
[221,60311278,"EVA FLOREZ PARRA ","MEDICO CONSULTA EXTERNA ","750 -2022",30,"01 de Febrero de 2022","28 de Febrero de 2022",4620000,1,4620000,0,0,"https://www.contratos.gov.co/consultas/detalleProceso.do?numConstancia=22-4-13143518&g"]
[222,32769312,"DORIS PADILLA MOLINA ","AUXILIAR DE ODONTOLOGIA","751 -2022",30,"01 de Febrero de 2022","28 de Febrero de 2022",1166000,1,1166000,0,0,"https://www.contratos.gov.co/consultas/detalleProceso.do?numConstancia=22-4-13143594&g"]
[223,1140845475,"LAURY DEL CARMEN PACHECO SANCHEZ","ODONTOLOGO","752 -2022",30,"01 de Febrero de 2022","28 de Febrero de 2022",3800000,1,3800000,0,0,"https://www.contratos.gov.co/consultas/detalleProceso.do?numConstancia=22-4-13143629&g"]
[224,1143269204,"YERLIS ANDREA MAYORAL CESPEDES","AUXILIAR FACTURACION","753 -2022",30,"01 de Febrero de 2022","28 de Febrero de 2022",1400000,1,1400000,0,0,"https://www.contratos.gov.co/consultas/detalleProceso.do?numConstancia=22-4-13143667&g"]
[225,22551160,"GISELL MILENA HERRERA ZUÑIGA","MEDICO CONSULTA EXTERNA ","754 -2022",30,"01 de Febrero de 2022","28 de Febrero de 2022",2120000,1,2120000,0,0,"https://www.contratos.gov.co/consultas/detalleProceso.do?numConstancia=22-4-13143705&g"]
[226,22457575,"MELBA MEZA PERDOMO","TRABAJADORA SOCIAL","755 -2022",30,"01 de Febrero de 2022","28 de Febrero de 2022",2000000,1,2000000,0,0,"https://www.contratos.gov.co/consultas/detalleProceso.do?numConstancia=22-4-13143788&g"]
[227,8749064,"OSVALDO ANTONIO CUENTAS DE LAS SALAS","ODONTOLOGO","756 -2022",30,"01 de Febrero de 2022","28 de Febrero de 2022",2660000,1,2660000,0,0,"https://www.contratos.gov.co/consultas/detalleProceso.do?numConstancia=22-4-13143788&g"]
[228,22633549,"ANA MARCELA VALENCIA HERNANDEZ","PERSONAL DE ASEO Y LIMPIEZA","757 -2022",30,"01 de Febrero de 2022","28 de Febrero de 2022",1400000,1,1400000,0,0,"https://www.contratos.gov.co/consultas/detalleProceso.do?numConstancia=22-4-13143788&g"]
[229,8638052,"MARTIN RAFAEL  CORONADO PACHECO ","ORIENTADOR","758 -2022",30,"01 de Febrero de 2022","28 de Febrero de 2022",1400000,1,1400000,0,0,"https://www.contratos.gov.co/consultas/detalleProceso.do?numConstancia=22-4-13143788&g"]
[230,1042444832,"JHONNATAN ALFONSO DE LA HOZ BARRIOS","MEDICO CONSULTA EXTERNA ","759 -2022",30,"01 de Febrero de 2022","28 de Febrero de 2022",4240000,1,4240000,0,0,"https://www.contratos.gov.co/consultas/detalleProceso.do?numConstancia=22-4-13143788&g"]
[231,32703101,"JANETH DEL CARMEN GUZMAN CANTILLO ","AUXILIAR FACTURACION","760 -2022",30,"01 de Febrero de 2022","28 de Febrero de 2022",1400000,1,1400000,0,0,"https://www.contratos.gov.co/consultas/detalleProceso.do?numConstancia=22-4-13143788&g"]
[232,1047228049,"MARIA FERNANDA DE LA HOZ DE MOYA","ENFERMERA JEFE DE PROMOCIÓN Y MANTENIMIENTO DE LA SALUD","761 -2022",30,"01 de Febrero de 2022","28 de Febrero de 2022",2000000,1,2000000,0,0,"https://www.contratos.gov.co/consultas/detalleProceso.do?numConstancia=22-4-13143788&g"]
[233,1001934574,"CARLOS MARIO HERAS CORCHO","MEDICO CONSULTA EXTERNA","762 -2022",30,"01 de Febrero de 2022","28 de Febrero de 2022",5600000,1,5600000,0,0,"https://www.contratos.gov.co/consultas/detalleProceso.do?numConstancia=22-4-13143788&g"]
[234,1143449271,"HELEN YIRE MALDONADO MIRANDA","AUXILIAR DE ODONTOLOGIA","763 -2022",30,"01 de Febrero de 2022","28 de Febrero de 2022",1166000,1,1166000,0,0,"https://www.contratos.gov.co/consultas/detalleProceso.do?numConstancia=22-4-13143788&g"]
[235,72155587,"CARLOS ARTURO QUINTANA BORELLY","ORIENTADOR","764 -2022",30,"01 de Febrero de 2022","28 de Febrero de 2022",1400000,1,1400000,0,0,"https://www.contratos.gov.co/consultas/detalleProceso.do?numConstancia=22-4-13143788&g"]
[236,1042420928,"DINA DEL CARMEN CUELLO DONADO ","AUXILIAR FACTURACION","766 -2022",30,"01 de Febrero de 2022","28 de Febrero de 2022",1400000,1,1400000,0,0,"https://www.contratos.gov.co/consultas/detalleProceso.do?numConstancia=22-4-13143788&g"]
[237,32866918,"ZULMA LEONOR MARTINEZ IGLESIAS","ODONTOLOGO","767 -2022",30,"01 de Febrero de 2022","28 de Febrero de 2022",1900000,1,1900000,0,0,"https://www.contratos.gov.co/consultas/detalleProceso.do?numConstancia=22-4-13143788&g"]
[238,3732705,"FREDDY  ORLANDO MARIMON LOZANO ","ORIENTADOR","768 -2022",30,"01 de Febrero de 2022","28 de Febrero de 2022",1400000,1,1400000,0,0,"https://www.contratos.gov.co/consultas/detalleProceso.do?numConstancia=22-4-13145564&g"]
[239,22664903,"SORELYS COLPAS VILORIA ","PERSONAL DE ASEO Y LIMPIEZA","769 -2022",30,"01 de Febrero de 2022","28 de Febrero de 2022",1400000,1,1400000,0,0,"https://www.contratos.gov.co/consultas/detalleProceso.do?numConstancia=22-4-13145616&g"]
[240,1045747916,"LEIDY DIANA PAEZ OROZCO","ENFERMERA JEFE  CONSULTA EXTRA Y SERVICIOS ESPECIALES","770 -2022",30,"01 de Febrero de 2022","28 de Febrero de 2022",2000000,1,2000000,0,0,"https://www.contratos.gov.co/consultas/detalleProceso.do?numConstancia=22-4-13145674&g"]
[241,32819834,"MARIBEL NIEBLES ESCORCIA","AUXILIAR DE ODONTOLOGIA","771 -2022",30,"01 de Febrero de 2022","28 de Febrero de 2022",1166000,1,1166000,0,0,"https://www.contratos.gov.co/consultas/detalleProceso.do?numConstancia=22-4-13145720&g"]
[242,32758673,"LILIANA  MORALES  LOPEZ","TRABAJADORA SOCIAL","772 -2022",30,"01 de Febrero de 2022","28 de Febrero de 2022",2000000,1,2000000,0,0,"https://www.contratos.gov.co/consultas/detalleProceso.do?numConstancia=22-4-13145760&g"]
[243,1046816174,"ROSA MARIA  PONCE  PINEDA",{"$f":"+#REF!","v":{"$error":"#REF!"}},"773 -2022",30,"01 de Febrero de 2022","28 de Febrero de 2022",1400000,1,1400000,0,0,"https://www.contratos.gov.co/consultas/detalleProceso.do?numConstancia=22-4-13146052&g"]
[244,1045729651,"KAROLAY PAOLA GARCIA OSPINO","MEDICO  RIPMS Y  CONSULTA EXTERNA ","774 -2022",30,"01 de Febrero de 2022","28 de Febrero de 2022",2120000,1,2120000,0,0,"https://www.contratos.gov.co/consultas/detalleProceso.do?numConstancia=22-4-13146099&g"]
[245,1045170023,"FERNEY ALBERTO OROZCO QUIROZ ","AUXILIAR FACTURACION","776 -2022",30,"01 de Febrero de 2022","28 de Febrero de 2022",1400000,1,1400000,0,0,"https://www.contratos.gov.co/consultas/detalleProceso.do?numConstancia=22-4-13146208&g"]
[246,72153271,"BORIS ENRIQUE ARROYO ESCOBAR","ORIENTADOR","777 -2022",30,"01 de Febrero de 2022","28 de Febrero de 2022",1400000,1,1400000,0,0,"https://www.contratos.gov.co/consultas/detalleProceso.do?numConstancia=22-4-13146250&g"]
[247,8770590,"RAFAEL MOVILLA FLOREZ ","AUXILIAR FACTURACION","778 -2022",30,"01 de Febrero de 2022","28 de Febrero de 2022",1400000,1,1400000,0,0,"https://www.contratos.gov.co/consultas/detalleProceso.do?numConstancia=22-4-13146326&g"]
[248,8735248,"EDGAR CERVANTES MELGAREJO","MEDICO CONSULTA EXTERNA ","779 -2022",30,"01 de Febrero de 2022","28 de Febrero de 2022",2120000,1,2120000,0,0,"https://www.contratos.gov.co/consultas/detalleProceso.do?numConstancia=22-4-13146424&g"]
[249,1074712390,"EVELIN CRISTINA ZULETA SANCHEZ ","ENFERMERA JEFE DE PROMOCIÓN Y MANTENIMIENTO DE LA SALUD","780 -2022",30,"01 de Febrero de 2022","28 de Febrero de 2022",2000000,1,2000000,0,0,"https://www.contratos.gov.co/consultas/detalleProceso.do?numConstancia=22-4-13146499&g"]
[250,72142837,"MANUEL GUSTAVO PABA GUETE","PSICOLOGO EN PROMOCION Y PREVENCION SSAAJ","781 -2022",30,"01 de Febrero de 2022","28 de Febrero de 2022",2000000,1,2000000,0,0,"https://www.contratos.gov.co/consultas/detalleProceso.do?numConstancia=22-4-13147624&g"]
[251,1042452768,"KATHERYN PAOLA BLANCO VARGAS","ENFERMERIA JEFE  SERVICIOS AMIGABLES","782 -2022",30,"01 de Febrero de 2022","28 de Febrero de 2022",2000000,1,2000000,0,0,"https://www.contratos.gov.co/consultas/detalleProceso.do?numConstancia=22-4-13147653&g"]
[252,1045716621,"JEANNINE GUZMAN OQUENDO","AUXILIAR DE ODONTOLOGIA","783 -2022",30,"01 de Febrero de 2022","28 de Febrero de 2022",1166000,1,1166000,0,0,"https://www.contratos.gov.co/consultas/detalleProceso.do?numConstancia=22-4-13147675&g-"]
[253,1041896760,"LINDA JULIETH  RUIZ PACHECO ","ASISTENTE ADMINISTRATIVO-COORDINACION MEDICA ","784 -2022",30,"01 de Febrero de 2022","28 de Febrero de 2022",2500000,1,2500000,0,0,"https://www.contratos.gov.co/consultas/detalleProceso.do?numConstancia=22-4-13147690&g"]
[254,22612951,"MERIS JUDITH OROZCO HERNANDEZ","PERSONAL DE ASEO Y LIMPIEZA","785 -2022",30,"01 de Febrero de 2022","28 de Febrero de 2022",1400000,1,1400000,0,0,"https://www.contratos.gov.co/consultas/detalleProceso.do?numConstancia=22-4-13147721&g"]
[255,8636538,"OSVALDO ENRIQUE OJEDA SARMIENTO","ORIENTADOR","786 -2022",30,"01 de Febrero de 2022","28 de Febrero de 2022",1400000,1,1400000,0,0,"https://www.contratos.gov.co/consultas/detalleProceso.do?numConstancia=22-4-13147770&g"]
[256,1043005205,"JHON WILLIAM ROBLES MERCADO","ORIENTADOR","787 -2022",30,"01 de Febrero de 2022","28 de Febrero de 2022",1400000,1,1400000,0,0,"https://www.contratos.gov.co/consultas/detalleProceso.do?numConstancia=22-4-13147803&g"]
[257,1041890282,"ARACELLY JOHANNA ARIZA ARIZA","PERSONAL DE ASEO Y LIMPIEZA","788 -2022",30,"01 de Febrero de 2022","28 de Febrero de 2022",1400000,1,1400000,0,0,"https://www.contratos.gov.co/consultas/detalleProceso.do?numConstancia=22-4-13147824&g"]
[258,1042448135,"GISELLA CAMILA ACOSTA SEGURA","AUXILIAR  DE SERVICIOS AMIGABLES ","789 -2022",30,"01 de Febrero de 2022","28 de Febrero de 2022",1300000,1,1300000,0,0,"https://www.contratos.gov.co/consultas/detalleProceso.do?numConstancia=22-4-13147860&g"]
[{"$f":"+A260+1","v":259},1143437950,"ALBA KARINA  ARIAS  ESCOBAR ","MEDICO CONSULTA EXTERNA Y URGENCIAS LA  CENTRAL","790 -2022",30,"01 de Febrero de 2022","28 de Febrero de 2022",5192000,1,5192000,0,0,"https://www.contratos.gov.co/consultas/detalleProceso.do?numConstancia=22-4-13147882&g"]
[260,32869290,"ARGENEDITH YEPEZ ESCALANTE ","MEDICO DE PROMOCIÓN Y MANTENIMIENTO DE LA SALUD","791 -2022",30,"01 de Febrero de 2022","28 de Febrero de 2022",2120000,1,2120000,0,0,"https://www.contratos.gov.co/consultas/detalleProceso.do?numConstancia=22-4-13147909&g"]
[261,8667553,"JUAN EMILIO SANDOVAL BOLIVAR ","ODONTOLOGO","792 -2022",30,"01 de Febrero de 2022","28 de Febrero de 2022",1900000,1,1900000,0,0,"https://www.contratos.gov.co/consultas/detalleProceso.do?numConstancia=22-4-13147933&g"]
[262,32896364,"DAILY CAROLINA PEREZ GUETTE","ODONTOLOGO","793 -2022",30,"01 de Febrero de 2022","28 de Febrero de 2022",1900000,1,1900000,0,0,"https://www.contratos.gov.co/consultas/detalleProceso.do?numConstancia=22-4-13147984&g"]
[263,22694020,"LEDIS DEL SOCORRO BACA ORTIZ","AUXILIAR DE ENFERMERIA  ","794 -2022",30,"01 de Febrero de 2022","28 de Febrero de 2022",1166000,1,1166000,0,0,0]
[264,1042442139,"JOSHIKY ESTHER AHUMADA PACHECO","ENFERMERA JEFE DE PROMOCIÓN Y MANTENIMIENTO DE LA SALUD","795 -2022",30,"01 de Febrero de 2022","28 de Febrero de 2022",2000000,1,2000000,0,0,"https://www.contratos.gov.co/consultas/detalleProceso.do?numConstancia=22-4-13148036&g-"]
[265,32695840,"MARIA HERRERA CUADROS","HIGIENISTA ORAL SERVICIOS AMIGABLES","796 -2022",30,"01 de Febrero de 2022","28 de Febrero de 2022",2000000,1,2000000,0,0,"https://www.contratos.gov.co/consultas/detalleProceso.do?numConstancia=22-4-13148065&g"]
[266,32822947,"NOHORA ISABEL POLO ORTIZ","TRABAJADORA SOCIAL","797 -2022",30,"01 de Febrero de 2022","28 de Febrero de 2022",2000000,1,2000000,0,0,"https://www.contratos.gov.co/consultas/detalleProceso.do?numConstancia=22-4-13148090&g"]
[267,22613314,"MARIA ELENA CANTILLO ARIZA","PERSONAL DE ASEO Y LIMPIEZA","798 -2022",30,"01 de Febrero de 2022","28 de Febrero de 2022",1400000,1,1400000,0,0,0]
[268,22532699,"MILENA DEL CARMEN SILVA BARRAZA","AUXILIAR FACTURACION","799 -2022",30,"01 de Febrero de 2022","28 de Febrero de 2022",1400000,1,1400000,0,0,"https://www.contratos.gov.co/consultas/detalleProceso.do?numConstancia=22-4-13148124&g"]
[269,32887429,"ANA SENET PADILLA RUIZ ","PERSONAL DE ASEO Y LIMPIEZA","800 -2022",30,"01 de Febrero de 2022","28 de Febrero de 2022",1400000,1,1400000,0,0,0]
[270,22644596,"GRACIELA BUSTOS RIVEROS","AUXILIAR FACTURACION ","802 -2022",30,"01 de Febrero de 2022","28 de Febrero de 2022",1400000,1,1400000,0,0,"https://www.contratos.gov.co/consultas/detalleProceso.do?numConstancia=22-4-13148153&g"]
[271,32703976,"MARI ENITH PUELLO BELTRAN","AUXILIAR  DE ENFERMERIA ","803 -2022",30,"01 de Febrero de 2022","28 de Febrero de 2022",1166000,1,1166000,0,0,"https://www.contratos.gov.co/consultas/detalleProceso.do?numConstancia=22-4-13148183&g"]
[272,8771123,"TEDIS RAFAEL VARGAS MONTERO ","ODONTOLOGO","804 -2022",30,"01 de Febrero de 2022","28 de Febrero de 2022",1900000,1,1900000,0,0,"https://www.contratos.gov.co/consultas/detalleProceso.do?numConstancia=22-4-13148230&g"]
[273,1046873154,"CARLOS AUGUSTO ANGULO BANDERA","ORIENTADOR","805 -2022",30,"01 de Febrero de 2022","28 de Febrero de 2022",1400000,1,1400000,0,0,"https://www.contratos.gov.co/consultas/detalleProceso.do?numConstancia=22-4-13148266&g"]
[274,32697306,"MAGALY ESTHER POLO ARNEDO ","ODONTOLOGO ","806 -2022",30,"01 de Febrero de 2022","28 de Febrero de 2022",1900000,1,1900000,0,0,"https://www.contratos.gov.co/consultas/detalleProceso.do?numConstancia=22-4-13150368&g"]
[275,36577201,"SUSANA  AMADOR SURMAY","PROFESIONAL   -DIGITACION CUENTA DE ALTO COSTO EN LA CONSOLIDACION DE INFORMACION - PROGRAMA CARDIOVASCULAR Res. 2463 de 2014.","807 -2022",30,"01 de Febrero de 2022","28 de Febrero de 2022",2000000,1,2000000,0,0,"https://www.contratos.gov.co/consultas/detalleProceso.do?numConstancia=22-4-13150407&g"]
[276,1048212084,"CARLOS ANDRES LLANOS SILVERA","AUXILIAR DE ENFERMERIA RUTA CARDIOVASCULAR","808 -2022",30,"01 de Febrero de 2022","28 de Febrero de 2022",1400000,1,1400000,0,0,"https://www.contratos.gov.co/consultas/detalleProceso.do?numConstancia=22-4-13150429&g"]
[277,1041893111,"MARIA APARICIO  ROJANO","AUXILIAR DE ENFERMERIA RUTA CARDIOVASCULAR ","809 -2022",30,"01 de Febrero de 2022","28 de Febrero de 2022",1400000,1,1400000,0,0,"https://www.contratos.gov.co/consultas/detalleProceso.do?numConstancia=22-4-13150496&g"]
[278,1043027730,"MANUEL JOSE URICOCHEA VASQUEZ","AUXILIAR FACTURACION","810 -2022",30,"01 de Febrero de 2022","28 de Febrero de 2022",1400000,1,1400000,0,0,"https://www.contratos.gov.co/consultas/detalleProceso.do?numConstancia=22-4-13150642&g"]
[279,44159527,"FLORINDA DE LA HOZ PACHECO ","ENFERMERA JEFE DE PROMOCIÓN Y MANTENIMIENTO DE LA SALUD","811 -2022",30,"01 de Febrero de 2022","28 de Febrero de 2022",2000000,1,2000000,0,0,"https://www.contratos.gov.co/consultas/detalleProceso.do?numConstancia=22-4-13150749&g"]
[280,7938572,"BRAYNERD ALVAREZ JIMENEZ ","MEDICO CONSULTA EXTERNA  Y CARDIOVASCULAR","812 -2022",30,"01 de Febrero de 2022","28 de Febrero de 2022",4600000,1,4600000,0,0,"https://www.contratos.gov.co/consultas/detalleProceso.do?numConstancia=22-4-13150830&g"]
[281,26762874,"MARYURIS ALTAHONA  MORENO ","MEDICO DE PROMOCIÓN Y MANTENIMIENTO DE LA SALUD","813 -2022",30,"01 de Febrero de 2022","28 de Febrero de 2022",2120000,1,2120000,0,0,"https://www.contratos.gov.co/consultas/detalleProceso.do?numConstancia=22-4-13150982&g"]
[282,72429429,"YAIR BARRAZA CERVANTES ","MEDICO PROGRAMA CARDIOVASCULAR","814 -2022",30,"01 de Febrero de 2022","28 de Febrero de 2022",2300000,1,2300000,0,0,"https://www.contratos.gov.co/consultas/detalleProceso.do?numConstancia=22-4-13153681&g"]
[283,1045706259,"ANDREA CAROLINA HERRERA ORTEGA","MEDICO  RIPMS Y  CONSULTA EXTERNA ","815 -2022",30,"01 de Febrero de 2022","28 de Febrero de 2022",2120000,1,2120000,0,0,"https://www.contratos.gov.co/consultas/detalleProceso.do?numConstancia=22-4-13153753&g"]
[284,1143456204,"SANDRA MARCELA OVIEDO ROCA","ENFERMERA JEFE PROGRAMA CARDIOVASCULAR Y CONSULTA EXTERNA ","816 -2022",30,"01 de Febrero de 2022","28 de Febrero de 2022",2000000,1,2000000,0,0,"https://www.contratos.gov.co/consultas/detalleProceso.do?numConstancia=22-4-13154151&g"]
[285,7598604,"LEONARDO FABIO  GONZALEZ PERTUZ","PSICOLOGO","817 -2022",30,"01 de Febrero de 2022","28 de Febrero de 2022",2000000,1,2000000,0,0,0]
[286,1042426787,"YULEY LINETH MARIN NIETO","AUXILIAR FACTURACION","818 -2022",30,"01 de Febrero de 2022","28 de Febrero de 2022",1400000,1,1400000,0,0,"https://www.contratos.gov.co/consultas/detalleProceso.do?numConstancia=22-4-13154203&g"]
[287,32664177,"ROSIRIS MONTES REDONDO","AUXILIAR DE ODONTOLOGIA","819 -2022",30,"01 de Febrero de 2022","28 de Febrero de 2022",1166000,1,1166000,0,0,0]
[288,26910232,"NELCY ALMARALES AYALA","TRABAJADORA SOCIAL","820 -2022",30,"01 de Febrero de 2022","28 de Febrero de 2022",2000000,1,2000000,0,0,"https://www.contratos.gov.co/consultas/detalleProceso.do?numConstancia=22-4-13154356&g"]
[289,30568187,"HAIDE ELVIRA MEJIA PRADO","PERSONAL DE ASEO Y LIMPIEZA","821 -2022",30,"01 de Febrero de 2022","28 de Febrero de 2022",1400000,1,1400000,0,0,"https://www.contratos.gov.co/consultas/detalleProceso.do?numConstancia=22-4-13154408&g"]
[290,1042971531,"JULIETH PAOLA FIGUEROA ZAMBRANO","AUXILIAR ADMINISTRATIVO CONTABLE","822 -2022",30,"01 de Febrero de 2022","28 de Febrero de 2022",2000000,1,2000000,0,0,"https://www.contratos.gov.co/consultas/detalleProceso.do?numConstancia=22-4-13154631&g"]
[291,8776861,"CESAR AURELIO DONADO VILLARREAL ","PROFESIONAL  DE APOYO EN PROCESOS DE  CONTABILIADAD","823 -2022",30,"01 de Febrero de 2022","28 de Febrero de 2022",2000000,1,2000000,0,0,"https://www.contratos.gov.co/consultas/detalleProceso.do?numConstancia=22-4-13154736&g"]
[292,22645116,"YORELYS ANNED BARRAZA IBARRA","PROFESIONAL DE APOYO EN  CONTABILIDAD.","824 -2022",30,"01 de Febrero de 2022","28 de Febrero de 2022",2000000,1,2000000,0,0,"https://www.contratos.gov.co/consultas/detalleProceso.do?numConstancia=22-4-13155553&g"]
[293,8789127,"JORGE ELIAS CENTENO SAMPAYO ","PROFESIONAL APOYO  OFICINA ESTADISTICA","826 -2022",30,"01 de Febrero de 2022","28 de Febrero de 2022",2500000,1,2500000,0,0,"https://www.contratos.gov.co/consultas/detalleProceso.do?numConstancia=22-4-13155593&g"]
[294,57105067,"GINA LETICIA  MARCOS FERNANDEZ ","PROFESIONAL APOYO  OFICINA ESTADISTICA","827 -2022",30,"01 de Febrero de 2022","28 de Febrero de 2022",3000000,1,3000000,0,0,"https://www.contratos.gov.co/consultas/detalleProceso.do?numConstancia=22-4-13155609&g"]
[295,22549719,"CARMEN MELINA BOLAÑO COTES ","AUXILIAR ADMINISTRATIVO  ESTADISTICA","828 -2022",30,"01 de Febrero de 2022","28 de Febrero de 2022",2000000,1,2000000,0,0,"https://www.contratos.gov.co/consultas/detalleProceso.do?numConstancia=22-4-13155634&g"]
[296,1048217027,"ONEIDA SAMIRA MARQUEZ NARVAEZ","PROFESIONAL APOYO  OFICINA ESTADISTICA","829 -2022",30,"01 de Febrero de 2022","28 de Febrero de 2022",3000000,1,3000000,0,0,"https://www.contratos.gov.co/consultas/detalleProceso.do?numConstancia=22-4-13155656&g"]
[297,8650103,"LUIS EDUARDO MERCADO ASMAR","PROFESIONAL APOYO  OFICINA ESTADISTICA","830 -2022",30,"01 de Febrero de 2022","28 de Febrero de 2022",3000000,1,3000000,0,0,"https://www.contratos.gov.co/consultas/detalleProceso.do?numConstancia=22-4-13155687&g"]
[298,27895505,"SANDRA GARCIA PEÑA","AUXILIAR FACTURACION","831 -2022",30,"01 de Febrero de 2022","28 de Febrero de 2022",1400000,1,1400000,0,0,"https://www.contratos.gov.co/consultas/detalleProceso.do?numConstancia=22-4-13155781&g-"]
[299,1124026102,"LUISA FERNANDA PANA CARABALLO","LIDER PROCESOS FACTURACION CENTRAL","832 -2022",30,"01 de Febrero de 2022","28 de Febrero de 2022",2500000,1,2500000,0,0,"https://www.contratos.gov.co/consultas/detalleProceso.do?numConstancia=22-4-13155821&g"]
[300,22732194,"MARLEY VASQUEZ VARGAS","APOYO  ADMINISTRATIVO  FACTURACION CENTRAL ","833 -2022",30,"01 de Febrero de 2022","28 de Febrero de 2022",2000000,1,2000000,0,0,"https://www.contratos.gov.co/consultas/detalleProceso.do?numConstancia=22-4-13155859&g"]
[301,1045676054,"JHONNY ALVAREZ TORRENCILLA","LIDER DE RADICACION CUENTAS MEDICAS ","834 -2022",30,"01 de Febrero de 2022","28 de Febrero de 2022",3300000,1,3300000,0,0,"https://www.contratos.gov.co/consultas/detalleProceso.do?numConstancia=22-4-13155883&g"]
[302,72346265,"LUIS ALBERTO VASQUEZ BALLESTAS","AUXILIAR FACTURACION","835 -2022",30,"01 de Febrero de 2022","28 de Febrero de 2022",1400000,1,1400000,0,0,"https://www.contratos.gov.co/consultas/detalleProceso.do?numConstancia=22-4-13155929&g"]
[303,22504159,"FLOR MILENA GOICOCHEA OROZCO ","AUXILIAR  FACTURACION CENTRAL","836 -2022",30,"01 de Febrero de 2022","28 de Febrero de 2022",1400000,1,1400000,0,0,"https://www.contratos.gov.co/consultas/detalleProceso.do?numConstancia=22-4-13156106&g"]
[304,72432594,"RUBEN DARIO UCROS ","AUXILIAR FACTURACION","837 -2022",30,"01 de Febrero de 2022","28 de Febrero de 2022",1400000,1,1400000,0,0,"ontratos.gov.co/consultas/detalleProceso.do?numConstancia=22-4-13156172&g"]
[305,72268005,"MILTON SOLARTE RODRIGUEZ","APOYO EN ANALISIS Y DESARROLLO DE  INFORMACION EN FACTURACION CENTRAL (RIPS)","838 -2022",30,"01 de Febrero de 2022","28 de Febrero de 2022",2500000,1,2500000,0,0,0]
[306,1046813692,"CRISTHOFER DE JESUS  ALVARADO SOLANO ","AUXILIAR  FACTURACION ","839 -2022",30,"01 de Febrero de 2022","28 de Febrero de 2022",1400000,1,1400000,0,0,"https://www.contratos.gov.co/consultas/detalleProceso.do?numConstancia=22-4-13156208&g"]
[307,44158963,"KELLY JHOJANA BARCELO CANTILLO ","AUXILIAR  FACTURACION ","840 -2022",30,"01 de Febrero de 2022","28 de Febrero de 2022",1400000,1,1400000,0,0,"https://www.contratos.gov.co/consultas/detalleProceso.do?numConstancia=22-4-13156246&g"]
[308,8650324,"JORGE LUIS  OLMOS CUENTAS","AUXILIAR FACTURACION CENTRAL","841 -2022",30,"01 de Febrero de 2022","28 de Febrero de 2022",1400000,1,1400000,0,0,"https://www.contratos.gov.co/consultas/detalleProceso.do?numConstancia=22-4-13156284&g-"]
[309,72430879,"CRISTHOPER LEE WEHDEKING LOPEZ","AUXILIAR FACTURACION ","842 -2022",30,"01 de Febrero de 2022","28 de Febrero de 2022",1400000,1,1400000,0,0,0]
[310,1042997169,"CINDY PAOLA CERA MENDOZA","PROFESIONAL DE APOYO EN PRESUPUESTO ","843 -2022",30,"01 de Febrero de 2022","28 de Febrero de 2022",2000000,1,2000000,0,0,"https://www.contratos.gov.co/consultas/detalleProceso.do?numConstancia=22-4-13156320&g"]
[311,1140874429,"ALBERTO DE LA OSSA DE AVILA","PROFESIONAL  PRESUPUESTO ","844 -2022",30,"01 de Febrero de 2022","28 de Febrero de 2022",3500000,1,3500000,0,0,0]
[312,84453299,"LUIS FERNANDO CUELLAR CANTILLO","ASESOR FINANCIERO","845 -2022",30,"01 de Febrero de 2022","28 de Febrero de 2022",3000000,1,3000000,0,0,"https://www.contratos.gov.co/consultas/detalleProceso.do?numConstancia=22-4-13156358&g"]
[313,32651445,"MARITZA SARMIENTO  SANTOS ","ASESOR DE PLANEACION ESTRATÉGICA  Y SISTEMAS DE  GESTIÓN CALIDAD /AMBIENTE/SST ","846 -2022",30,"01 de Febrero de 2022","28 de Febrero de 2022",5000000,1,5000000,0,0,"https://www.contratos.gov.co/consultas/detalleProceso.do?numConstancia=22-4-13156696&g"]
[314,72314953,"LEONEL DANIEL SILVA TAPIAS","REVISOR FISCAL","847 -2022",30,"01 de Febrero de 2022","28 de Febrero de 2022",9952417,1,9952417,0,0,0]
[315,78079152,"JUSTO MANUEL PETRO COGOLLO","ABOGADO EXTERNO","849 -2022",30,"01 de Febrero de 2022","28 de Febrero de 2022",3500000,1,3500000,0,0,0]
[316,1043842997,"OSNAIDER DE JESUS RUIZ PACHECO","AUXILIAR ADMINISTRATIVO-JURIDICA","850 -2022",30,"01 de Febrero de 2022","28 de Febrero de 2022",2500000,1,2500000,0,0,0]
[317,1045732710,"VICTOR JOSE AGUILAR CRUZADO"," TECNICO  ADMINISTRATIVO- CONTRATACION  BIENES Y SERVICIOS","851 -2022",30,"01 de Febrero de 2022","28 de Febrero de 2022",3000000,1,3000000,0,0,0]
[318,1042451224,"BRAYAN ALBERTO QUERALES RAMBAO","AUXILIAR  ADMINISTRATIVO -CONTRATCION BIENES Y SERVICIOS ","852 -2022",30,"01 de Febrero de 2022","28 de Febrero de 2022",1500000,1,1500000,0,0,"https://www.contratos.gov.co/consultas/detalleProceso.do?numConstancia=22-4-13156749&g"]
[319,8733921,"LUIS LEONARDO ANTOLINEZ FERNANDEZ","ABOGADO EXTERNO","853 -2022",30,"01 de Febrero de 2022","28 de Febrero de 2022",4000000,1,4000000,0,0,"https://www.contratos.gov.co/consultas/detalleProceso.do?numConstancia=22-4-13156800&g"]
[320,1001798325,"CINDY MILENA SARMIENTO MERIÑO","PROFESIONAL DE  APOYO EN  CONTRATACION  BIENES Y SERVICIOS ","854 -2022",30,"01 de Febrero de 2022","28 de Febrero de 2022",2500000,1,2500000,0,0,0]
[321,72286138,"MANUEL ALFONSO LOPEZ SANTANA","ABOGADO EXTERNO","855 -2022",30,"01 de Febrero de 2022","28 de Febrero de 2022",3000000,1,3000000,0,0,0]
[322,1046336333,"CLAUDIA MARIA APARICIO OROZCO ","ABOGADO EXTERNO","856 -2022",30,"01 de Febrero de 2022","28 de Febrero de 2022",4500000,1,4500000,0,0,0]
[{"$f":"+A324+1","v":323},19598762,"JULIO CESAR BERRIO LARA ","ABOGADO EXTERNO ","857 -2022",30,"01 de Febrero de 2022","28 de Febrero de 2022",5000000,1,5000000,0,0,"https://www.contratos.gov.co/consultas/detalleProceso.do?numConstancia=22-4-13156872&g"]
[324,1043843754,"ARMANDO JOSE OCAMPO PAEZ","ABOGADO EXTERNO ","858 -2022",30,"01 de Febrero de 2022","28 de Febrero de 2022",3500000,1,3500000,0,0,"https://www.contratos.gov.co/consultas/detalleProceso.do?numConstancia=22-4-13156938&g-"]
[325,32733819,"BRISEIDA PALOMINO DELGADO","ENFERMERA JEFE DE URGENCIAS","860 -2022",30,"01 de Febrero de 2022","28 de Febrero de 2022",2280000,1,2280000,0,0,"https://www.contratos.gov.co/consultas/detalleProceso.do?numConstancia=22-4-13157322&g"]
[326,32827778,"OSIRIS DAGER DE LEON ","FISIOTERAPEUTA","861 -2022",30,"01 de Febrero de 2022","28 de Febrero de 2022",2000000,1,2000000,0,0,"https://www.contratos.gov.co/consultas/detalleProceso.do?numConstancia=22-4-13157364&g"]
[327,32583401,"ELSY LIZETH CHARRIS CONTRERAS","MEDICO CONSULTA EXTERNA ","862 -2022",30,"01 de Febrero de 2022","28 de Febrero de 2022",4240000,1,4240000,0,0,"https://www.contratos.gov.co/consultas/detalleProceso.do?numConstancia=22-4-13157416&g"]
[328,55243161,"YOSELIN JOHANA  PEREZ ESCORCIA ","AUXILIAR DE ENFERMERIA URGENCIAS","863 -2022",30,"01 de Febrero de 2022","28 de Febrero de 2022",1653600,1,1653600,0,0,"https://www.contratos.gov.co/consultas/detalleProceso.do?numConstancia=22-4-13157461&g-"]
[329,26853643,"JUDITH MARIA CHARRIS MACHADO","ENFERMERA JEFE DE URGENCIAS","864 -2022",30,"01 de Febrero de 2022","28 de Febrero de 2022",2280000,1,2280000,0,0,"https://www.contratos.gov.co/consultas/detalleProceso.do?numConstancia=22-4-13157539&g"]
[330,1042443708,"JULIETH ANDREA CAMACHO CHACON","ENFERMERA  JEFE  - PROGRAMA DISCAPACIDADES","865 -2022",30,"01 de Febrero de 2022","28 de Febrero de 2022",3300000,1,3300000,0,0,"https://www.contratos.gov.co/consultas/detalleProceso.do?numConstancia=22-4-13160188&g"]
[331,1042433217,"FABIANA LEMUS HERNANDEZ","AUXILIAR DE ENFERMERIA URGENCIAS","866 -2022",30,"01 de Febrero de 2022","28 de Febrero de 2022",1653600,1,1653600,0,0,"https://www.contratos.gov.co/consultas/detalleProceso.do?numConstancia=22-4-13160263&g"]
[332,32849597,"BERCELYS ISABEL  PEREZ SARMIENTO ","AUXILIAR DE ENFERMERIA URGENCIAS","867 -2022",30,"01 de Febrero de 2022","28 de Febrero de 2022",1653600,1,1653600,0,0,0]
[333,1143447475,"SANDRA CUETO VASQUEZ","AUXILIAR DE ENFERMERIA RUTA CARDIOVASCULAR -ECK","868 -2022",30,"01 de Febrero de 2022","28 de Febrero de 2022",1400000,1,1400000,0,0,0]
[334,8541048,"JUAN SEBASTIAN OROZCO  ARTETA ","ENFERMERO JEFE URGENCIAS ","869 -2022",30,"01 de Febrero de 2022","28 de Febrero de 2022",2280000,1,2280000,0,0,"https://www.contratos.gov.co/consultas/detalleProceso.do?numConstancia=22-4-13160345&g"]
[335,1042994837,"CARMEN GREGORIA TORRES DIAZ ","AUXILIAR DE ENFERMERIA URGENCIAS","870 -2022",30,"01 de Febrero de 2022","28 de Febrero de 2022",1653600,1,1653600,0,0,0]
[336,22565455,"KARIN PAOLA VIZCAINO  SOLANO","MEDICO DE URGENCIAS  Y   PERINATAL ","871 -2022",30,"01 de Febrero de 2022","28 de Febrero de 2022",5616000,1,5616000,0,0,"https://www.contratos.gov.co/consultas/detalleProceso.do?numConstancia=22-4-13160463&g"]
[337,1083434037,"MARIANA DEL AMPARO CERVANTES PERALTA","AUXILIAR DE ENFERMERIA URGENCIAS","872 -2022",30,"01 de Febrero de 2022","28 de Febrero de 2022",1653600,1,1653600,0,0,0]
[338,72429926,"JAIRO ESCOBAR ROMERO ","MEDICO DE URGENCIAS ","873 -2022",30,"01 de Febrero de 2022","28 de Febrero de 2022",6000000,1,6000000,0,0,"https://www.contratos.gov.co/consultas/detalleProceso.do?numConstancia=22-4-13163245&g"]
[339,72242552,"JUAN CAMILO CASTILLO ARIZA","MEDICO DE URGENCIAS ","874 -2022",30,"01 de Febrero de 2022","28 de Febrero de 2022",6000000,1,6000000,0,0,"https://www.contratos.gov.co/consultas/detalleProceso.do?numConstancia=22-4-13163285&g"]
[340,19535725,"RAFAEL ALFONSO PALACIO BLANCO","MEDICO DE URGENCIAS ","875 -2022",30,"01 de Febrero de 2022","28 de Febrero de 2022",6000000,1,6000000,0,0,"https://www.contratos.gov.co/consultas/detalleProceso.do?numConstancia=22-4-13163306&g"]
[341,22564359,"NINI JOHANNA QUIROZ  SANTOS ","MEDICO DE URGENCIAS ","876 -2022",30,"01 de Febrero de 2022","28 de Febrero de 2022",6000000,1,6000000,0,0,"https://www.contratos.gov.co/consultas/detalleProceso.do?numConstancia=22-4-13163356&g"]
[342,1045700355,"EDUARDO LUIS PAUTH HERNANDEZ","MEDICO DE URGENCIAS -APOYO PROGRAMA COVID 19","0876-2022-COVID20",30,"01 de Febrero de 2022","28 de Febrero de 2022",6000000,1,6000000,0,0,"https://www.contratos.gov.co/consultas/detalleProceso.do?numConstancia=22-4-13163509&g"]
[343,60355382,"YEIGNE CONTRERAS BAYONA","DIGITADOR PROCESO  DIARIO VACUNACION ","878 -2022",30,"01 de Febrero de 2022","28 de Febrero de 2022",1500000,1,1500000,0,0,"https://www.contratos.gov.co/consultas/detalleProceso.do?numConstancia=22-4-13163591&g"]
[344,32646304,"LILIAN ESTHER ANTEQUERA MANTILLA","AUXILIAR DE ENFERMERIA RUTA CARDIOVASCULAR -ECK","879 -2022",30,"01 de Febrero de 2022","28 de Febrero de 2022",1400000,1,1400000,0,0,"https://www.contratos.gov.co/consultas/detalleProceso.do?numConstancia=22-4-13163642&g"]
[345,1042445460,"YURLEIDIS PAOLA BOVEA PEREZ","AUXILIAR DE ENFERMERIA URGENCIAS","880 -2022",30,"01 de Febrero de 2022","28 de Febrero de 2022",1653600,1,1653600,0,0,"https://www.contratos.gov.co/consultas/detalleProceso.do?numConstancia=22-4-13163682&g"]
[346,22532392,"SUGEY PATRICIA CERVANTES BARCELO","AUXILIAR DE ENFERMERIA URGENCIAS","881 -2022",30,"01 de Febrero de 2022","28 de Febrero de 2022",1653600,1,1653600,0,0,"https://www.contratos.gov.co/consultas/detalleProceso.do?numConstancia=22-4-13163722&g"]
[347,1081799915,"PAULA ANDREA PIMIENTA ANDRADES","AUXILIAR DE ENFERMERIA URGENCIAS","882 -2022",30,"01 de Febrero de 2022","28 de Febrero de 2022",1653600,1,1653600,0,0,"https://www.contratos.gov.co/consultas/detalleProceso.do?numConstancia=22-4-13163824&g"]
[348,1045712889,"LEYDILLY ROJANO GOMEZ","ENFERMERA JEFE DE URGENCIAS","883 -2022",30,"01 de Febrero de 2022","28 de Febrero de 2022",2280000,1,2280000,0,0,"https://www.contratos.gov.co/consultas/detalleProceso.do?numConstancia=22-4-13163926&g"]
[349,1042447595,"JOYCER CARLOS BONILLA OYOLA ","ORIENTADOR","884 -2022",30,"01 de Febrero de 2022","28 de Febrero de 2022",1400000,1,1400000,0,0,"https://www.contratos.gov.co/consultas/detalleProceso.do?numConstancia=22-4-13163974&g"]
[350,32716780,"LORAINE PASION ARDILA ","TRABAJADORA SOCIAL","885 -2022",30,"01 de Febrero de 2022","28 de Febrero de 2022",2000000,1,2000000,0,0,"https://www.contratos.gov.co/consultas/detalleProceso.do?numConstancia=22-4-13164655&g"]
[351,32864774,"GLADYS ESTER VARGAS DE LA CRUZ","PERSONAL DE ASEO Y LIMPIEZA URGENCIAS ","886 -2022",30,"01 de Febrero de 2022","28 de Febrero de 2022",1400000,1,1400000,0,0,"https://www.contratos.gov.co/consultas/detalleProceso.do?numConstancia=22-4-13164750&g"]
[352,1042424953,"DARWIN HERNAN RACEDO PAREDES","PROFESIONAL DE APOYO A COORDINACION URGENCIAS ","887 -2022",30,"01 de Febrero de 2022","28 de Febrero de 2022",2500000,1,2500000,0,0,0]
[353,1042347015,"NARCIZA CONSUEGRA BERDEJO","FISIOTERAPEUTA","888 -2022",30,"01 de Febrero de 2022","28 de Febrero de 2022",1900000,1,1900000,0,0,"https://www.contratos.gov.co/consultas/detalleProceso.do?numConstancia=22-4-13164814&g"]
[354,72219844,"DARIO ALFONSO HERNANDEZ HERRERA","SERVICIOS GENERALES","889 -2022",30,"01 de Febrero de 2022","28 de Febrero de 2022",1400000,1,1400000,0,0,0]
[355,72302231,"GABINO JOSE CERVANTES CASSIANI","ORIENTADOR","890 -2022",30,"01 de Febrero de 2022","28 de Febrero de 2022",1400000,1,1400000,0,0,"https://www.contratos.gov.co/consultas/detalleProceso.do?numConstancia=22-4-13164891&g"]
[356,8572269,"ERQUIS DAVID REALES MERCADO ","ORIENTADOR","891 -2022",30,"01 de Febrero de 2022","28 de Febrero de 2022",1400000,1,1400000,0,0,0]
[357,32886152,"LUZ DARI OLIVEROS CEPEDA ","PERSONAL DE ASEO Y LIMPIEZA URGENCIAS ","892 -2022",30,"01 de Febrero de 2022","28 de Febrero de 2022",1400000,1,1400000,0,0,0]
[358,1005679352,"YESENIA PATRICIA DIAZ JARABA ","PERSONAL DE ASEO Y LIMPIEZA URGENCIAS ","893 -2022",30,"01 de Febrero de 2022","28 de Febrero de 2022",0,1,0,0,0,0]
[359,8530634,"RONALD  ENRIQUE ARENAS  MEYER ","CONDUCTOR DE AMBULANCIA","894 -2022",30,"01 de Febrero de 2022","28 de Febrero de 2022",2000000,1,2000000,0,0,"https://www.contratos.gov.co/consultas/detalleProceso.do?numConstancia=22-4-13164999&g"]
[360,57105527,"ZOILA PATRICIA PABON  HERNANDEZ","AUXILIAR ADMINISTRATIVO COORDINACION MEDICA","895 -2022",30,"01 de Febrero de 2022","28 de Febrero de 2022",3000000,1,3000000,0,0,0]
[361,1047334999,"MARTHA SALCEDO HUN ","ASESORA AMBIENTAL ","896 -2022",30,"01 de Febrero de 2022","28 de Febrero de 2022",5000000,1,5000000,0,0,"https://www.contratos.gov.co/consultas/detalleProceso.do?numConstancia=22-4-13165073&g-"]
[362,32618430,"CARMEN SOFIA  ROBLES DE LASCARRO","PERSONAL DE ASEO Y LIMPIEZA","897 -2022",30,"01 de Febrero de 2022","28 de Febrero de 2022",1400000,1,1400000,0,0,"https://www.contratos.gov.co/consultas/detalleProceso.do?numConstancia=22-4-13165143&g"]
[363,1042446178,"JUAN CARLOS RODRIGUEZ  MIRANDA ","ORIENTADOR","898 -2022",30,"01 de Febrero de 2022","28 de Febrero de 2022",1400000,1,1400000,0,0,"https://www.contratos.gov.co/consultas/detalleProceso.do?numConstancia=22-4-13165206&g"]
[364,22515180,"YEIMY JHOANA SALTARIN ACUÑA","AUXILIAR DE FARMACIA ","899 -2022",30,"01 de Febrero de 2022","28 de Febrero de 2022",1400000,1,1400000,0,0,"https://www.contratos.gov.co/consultas/detalleProceso.do?numConstancia=22-4-13165251&g"]
[365,1043671104,"ANA MILENA  GAMARRA HERRERA","AUXILIAR DE FARMACIA ","900 -2022",30,"01 de Febrero de 2022","28 de Febrero de 2022",1400000,1,1400000,0,0,"https://www.contratos.gov.co/consultas/detalleProceso.do?numConstancia=22-4-13166962&g"]
[366,9132998,"GABRIEL ARIAS RAMIREZ","QUIMICO FARMACEUTICO","901 -2022",30,"01 de Febrero de 2022","28 de Febrero de 2022",3000000,1,3000000,0,0,"https://www.contratos.gov.co/consultas/detalleProceso.do?numConstancia=22-4-13167004&g"]
[367,1143232830,"JENIFFER DALINE VILLA ORDOÑEZ","AUDITOR DE APOYO EN SUBGERENCIA CIENTIFICA ","902 -2022",30,"01 de Febrero de 2022","28 de Febrero de 2022",5000000,1,5000000,0,0,0]
[368,72283743,"DANIEL  ESTEBAN PAZ REYES","CONDUCTOR AMBULANCIA","903 -2022",30,"01 de Febrero de 2022","28 de Febrero de 2022",2000000,1,2000000,0,0,"https://www.contratos.gov.co/consultas/detalleProceso.do?numConstancia=22-4-13167037&g"]
[369,55221348,"MERCEDES SUSANA ESTARITA GUTIERERZ DE PIÑEREZ ","AUXILIAR FACTURACION ","904 -2022",30,"01 de Febrero de 2022","28 de Febrero de 2022",1400000,1,1400000,0,0,0]
[370,1129519216,"MILAGRO HERRERA MOJICA","MEDICO DE URGENCIAS ","905 -2022",30,"01 de Febrero de 2022","28 de Febrero de 2022",3072000,1,3072000,0,0,0]
[371,19619279,"GUSTAVO SEGUNDO FLORIDO HATUN","AUDITOR DE CALIDAD Y SERVICIOS DE SALUD","906 -2022",30,"01 de Febrero de 2022","28 de Febrero de 2022",4000000,1,4000000,0,0,"https://www.contratos.gov.co/consultas/detalleProceso.do?numConstancia=22-4-13167168&g"]
[372,57270649,"MARTHA MATILDE JIMENEZ ROMERO ","AUDITOR DE CALIDAD Y SERVICIOS DE SALUD","907 -2022",30,"01 de Febrero de 2022","28 de Febrero de 2022",4000000,1,4000000,0,0,0]
[373,1081792917,"YENISA LORENA PEÑARREDONDA CANTILLO","FISIOTERAPUETA","908 -2022",30,"01 de Febrero de 2022","28 de Febrero de 2022",2200000,1,2200000,0,0,0]
[374,1143156027,"JESUS DAVID BARRIOS  IBARRA","AUXILIAR FACTURACION","910 -2022",30,"01 de Febrero de 2022","28 de Febrero de 2022",1400000,1,1400000,0,0,"https://www.contratos.gov.co/consultas/detalleProceso.do?numConstancia=22-4-13167233&g"]
[375,72430814,"CARLOS ANDRES MARTINEZ IBAÑEZ","AUXILIAR FACTURACION","911 -2022",30,"01 de Febrero de 2022","28 de Febrero de 2022",1400000,1,1400000,0,0,"https://www.contratos.gov.co/consultas/detalleProceso.do?numConstancia=22-4-13167274&g"]
[376,72312670,"EDGAR ENRIQUE ARROYO FONTALVO","AUXILIAR FACTURACION","912 -2022",30,"01 de Febrero de 2022","28 de Febrero de 2022",1400000,1,1400000,0,0,"https://www.contratos.gov.co/consultas/detalleProceso.do?numConstancia=22-4-13167382&g"]
[377,1048266302,"LIARIS DARIANIS BARRIOS CUEVAS","AUXILIAR FACTURACION","913 -2022",30,"01 de Febrero de 2022","28 de Febrero de 2022",1400000,1,1400000,0,0,"https://www.contratos.gov.co/consultas/detalleProceso.do?numConstancia=22-4-13167469&g"]
[378,1129514030,"VALLERY PAUL  MARZAN RAMOS ","AUXILIAR FACTURACION","914 -2022",30,"01 de Febrero de 2022","28 de Febrero de 2022",1400000,1,1400000,0,0,"https://www.contratos.gov.co/consultas/detalleProceso.do?numConstancia=22-4-13167548&g"]
[379,9191876,"RAFAEL MOLINA CASTILLO","AUXILIAR FACTURACION","915 -2022",30,"01 de Febrero de 2022","28 de Febrero de 2022",1400000,1,1400000,0,0,"https://www.contratos.gov.co/consultas/detalleProceso.do?numConstancia=22-4-13167599&g"]
[380,22605801,"MARCELA PATRICIA TORRES CARROLL","AUXILIAR DE FACTURACION LIQUIDACION DE EVENTOS ","916 -2022",30,"01 de Febrero de 2022","28 de Febrero de 2022",1400000,1,1400000,0,0,"https://www.contratos.gov.co/consultas/detalleProceso.do?numConstancia=22-4-13167673&g"]
[381,1001912257,"KATHERINE GAITAN LOPEZ","AUXILIAR EN FACTURACION ","917 -2022",30,"01 de Febrero de 2022","28 de Febrero de 2022",1400000,1,1400000,0,0,"https://www.contratos.gov.co/consultas/detalleProceso.do?numConstancia=22-4-13167734&g"]
[382,32769708,"CLAUDIA ARENAS ALVAREZ","PROFESIONAL DE APOYO  A   LA  OFICINA  DE  CONTROL INTERNO ","918 -2022",30,"01 de Febrero de 2022","28 de Febrero de 2022",3000000,1,3000000,0,0,"https://www.contratos.gov.co/consultas/detalleProceso.do?numConstancia=22-4-13167789&g"]
[383,1043611198,"CRISTIAN JESUS RODRIGUEZ QUIROZ","PROFESIONAL DE APOYO  A   LA  OFICINA  DE  CONTROL INTERNO ","919 -2022",30,"01 de Febrero de 2022","28 de Febrero de 2022",3000000,1,3000000,0,0,0]
[384,72304271,"LUIS FERNANDO ESCORCIA  MARQUEZ ","PROFESIONAL DE APOYO  A   LA  OFICINA  DE  CONTROL INTERNO ","920 -2022",30,"01 de Febrero de 2022","28 de Febrero de 2022",3000000,1,3000000,0,0,"https://www.contratos.gov.co/consultas/detalleProceso.do?numConstancia=22-4-13167861&g"]
[385,8647878,"DARIO JUNIOR CUENTAS MANOTAS","PROFESIONAL DE APOYO EN CONTROL INTERNO","921 -2022",30,"01 de Febrero de 2022","28 de Febrero de 2022",3000000,1,3000000,0,0,"https://www.contratos.gov.co/consultas/detalleProceso.do?numConstancia=22-4-13167928&g"]
[386,1001962891,"SHARON MICHEL PEÑALOZA CARDONA","AUXILIAR ADMINISTRATIVO","922 -2022",30,"01 de Febrero de 2022","28 de Febrero de 2022",1400000,1,1400000,0,0,0]
[{"$f":"+A388+1","v":387},88033645,"CARLOS TORRES COVILLA","PROFESIONAL DE APOYO EN TALENTO HUMANO","923 -2022",30,"01 de Febrero de 2022","28 de Febrero de 2022",3500000,1,3500000,0,0,"https://www.contratos.gov.co/consultas/detalleProceso.do?numConstancia=22-4-13167968&g"]
[388,1010019836,"WILFRIN JESUS ROMERO HERNANDEZ","TECNICO DE SISTEMAS","925 -2022",30,"01 de Febrero de 2022","28 de Febrero de 2022",1600000,1,1600000,0,0,0]
[389,1043121395,"SHEYLA DEL CARMEN ESTRADA ARIZA","TECNICO DE SISTEMAS","926 -2022",30,"01 de Febrero de 2022","28 de Febrero de 2022",1600000,1,1600000,0,0,"https://www.contratos.gov.co/consultas/detalleProceso.do?numConstancia=22-4-13168216&g"]
[390,1129531818,"CARLOS ALFONSO MAESTRE JIMENEZ","INGENIERO DE SISTEMAS ","927 -2022",30,"01 de Febrero de 2022","28 de Febrero de 2022",2500000,1,2500000,0,0,"https://www.contratos.gov.co/consultas/detalleProceso.do?numConstancia=22-4-13168258&g"]
[391,1042416953,"GABRIEL JOSE MONTIEL CERVANTES","INGENIERO DE REDES Y HARDWARE ","928 -2022",30,"01 de Febrero de 2022","28 de Febrero de 2022",2500000,1,2500000,0,0,"https://www.contratos.gov.co/consultas/detalleProceso.do?numConstancia=22-4-13168330&g"]
[392,1140846298,"LENIN ALVAREZ PINEDA","AUDITOR DE SISTEMAS Y RESOLUCION 4505","929 -2022",30,"01 de Febrero de 2022","28 de Febrero de 2022",2500000,1,2500000,0,0,"https://www.contratos.gov.co/consultas/detalleProceso.do?numConstancia=22-4-13168369&g"]
[393,1043931096,"ESTEBAN MANUEL ROLONG LAGUNA","INGENIERO DE SISTEMAS","930 -2022",30,"01 de Febrero de 2022","28 de Febrero de 2022",2500000,1,2500000,0,0,"https://www.contratos.gov.co/consultas/detalleProceso.do?numConstancia=22-4-13168839&g"]
[394,32767778,"BEATRIZ ELENA GUTIERREZ AHUMADA ","FACTURADOR -DIGITADORES PAIWEB- VACUNACION COVID19","0931-2022-COVID20",30,"01 de Febrero de 2022","28 de Febrero de 2022",1400000,1,1400000,0,0,"https://www.contratos.gov.co/consultas/detalleProceso.do?numConstancia=22-4-13168965&g"]
[395,32826839,"BEATRIZ ISABEL SANMARTIN ESCORCIA","FACTURADOR -DIGITADORES PAIWEB- VACUNACION COVID19","933 -2022",30,"01 de Febrero de 2022","28 de Febrero de 2022",1400000,1,1400000,0,0,0]
[396,32820220,"YARLENE DEL SOCORRO DE AVILA DE ALBA","FACTURADOR -DIGITADORES PAIWEB- VACUNACION COVID19","934 -2022",30,"01 de Febrero de 2022","28 de Febrero de 2022",1400000,1,1400000,0,0,"https://www.contratos.gov.co/consultas/detalleProceso.do?numConstancia=22-4-13178781&g"]
[397,22613586,"CLAUDIA PATRICIA HERNANDEZ REALES","DIGITADOR (a) PAIWEB","935 -2022",30,"01 de Febrero de 2022","28 de Febrero de 2022",1400000,1,1400000,0,0,"https://www.contratos.gov.co/consultas/detalleProceso.do?numConstancia=22-4-13178829&g"]
[398,1044801178,"ANDREINA LUCIA JIMENEZ GARCIA","DIGITADOR (a) PAIWEB","936 -2022",30,"01 de Febrero de 2022","28 de Febrero de 2022",1400000,1,1400000,0,0,"https://www.contratos.gov.co/consultas/detalleProceso.do?numConstancia=22-4-13178871&g"]
[399,1140862492,"MELISSA JOHANA ROSALES SANTANA","ASISTENTE  ADMINISTRATIVO  APOYO  PROCESOS EN PAIWEB","937 -2022",30,"01 de Febrero de 2022","28 de Febrero de 2022",1400000,1,1400000,0,0,"https://www.contratos.gov.co/consultas/detalleProceso.do?numConstancia=22-4-13178932&g"]
[400,1041899588,"YICELA SILVANA ARIZA ARAQUE","DIGITADOR (a) PAIWEB","938 -2022",30,"01 de Febrero de 2022","28 de Febrero de 2022",1400000,1,1400000,0,0,"https://www.contratos.gov.co/consultas/detalleProceso.do?numConstancia=22-4-13178981&g"]
[401,1041902190,"TANIA CAROLINA DEL RIO GONZALEZ","DIGITADOR (a) PAIWEB","939 -2022",30,"01 de Febrero de 2022","28 de Febrero de 2022",1400000,1,1400000,0,0,"https://www.contratos.gov.co/consultas/detalleProceso.do?numConstancia=22-4-13179049&g"]
[402,22612712,"MARELBIS DE JESUS VIZCAINO MERCADO","DIGITADOR (a) PAIWEB","940 -2022",30,"01 de Febrero de 2022","28 de Febrero de 2022",1400000,1,1400000,0,0,"https://www.contratos.gov.co/consultas/detalleProceso.do?numConstancia=22-4-13179136&g"]
[403,1041899907,"MARYIS LORENA  PINEDA HERNADEZ","DIGITADOR (a) PAIWEB","941 -2022",30,"01 de Febrero de 2022","28 de Febrero de 2022",1400000,1,1400000,0,0,"https://www.contratos.gov.co/consultas/detalleProceso.do?numConstancia=22-4-13179951&g"]
[404,8735156,"GUILLERMO ANTONIO CARDOZO MARQUEZ","FACTURADOR -DIGITADORES PAIWEB- VACUNACION COVID19","0941-2022-COVID20",30,"01 de Febrero de 2022","28 de Febrero de 2022",1400000,1,1400000,0,0,"https://www.contratos.gov.co/consultas/detalleProceso.do?numConstancia=22-4-13179994&g"]
[405,1001800224,"SILVANA  FERNANDA PEREZ MIRANDA ","DIGITADOR (a) PAIWEB","943 -2022",30,"01 de Febrero de 2022","28 de Febrero de 2022",1400000,1,1400000,0,0,"https://www.contratos.gov.co/consultas/detalleProceso.do?numConstancia=22-4-13180045&g"]
[406,1042448667,"YENIFER  DEL CARMEN  HERRERA PARRA","DIGITADOR (a) PAIWEB","944 -2022",30,"01 de Febrero de 2022","28 de Febrero de 2022",1400000,1,1400000,0,0,"https://www.contratos.gov.co/consultas/detalleProceso.do?numConstancia=22-4-13180078&g"]
[407,72315454,"ANGEL DE  JESUS HERRERA SARMIENTO","FACTURADOR -DIGITADORES PAIWEB- VACUNACION COVID19","0944-2022-COVID20",30,"01 de Febrero de 2022","28 de Febrero de 2022",1400000,1,1400000,0,0,"https://www.contratos.gov.co/consultas/detalleProceso.do?numConstancia=22-4-13180343&g"]
[408,1001799232,"KEINER  DANIEL MARTINEZ BLANCO","FACTURADOR -DIGITADORES PAIWEB- VACUNACION COVID19","0945-2022-COVID20",30,"01 de Febrero de 2022","28 de Febrero de 2022",1400000,1,1400000,0,0,"https://www.contratos.gov.co/consultas/detalleProceso.do?numConstancia=22-4-13180382&g"]
[409,32803670,"KATHERINE PAOLA GUTIERREZ HERNANDEZ","FACTURADOR -DIGITADORES PAIWEB- VACUNACION COVID19","0946-2022-COVID20",30,"01 de Febrero de 2022","28 de Febrero de 2022",1400000,1,1400000,0,0,"https://www.contratos.gov.co/consultas/detalleProceso.do?numConstancia=22-4-13180422&g"]
[410,1041892889,"YICELA MARIA RIVERA VILORIA","DIGITADOR (a) PAIWEB","948 -2022",30,"01 de Febrero de 2022","28 de Febrero de 2022",1400000,1,1400000,0,0,"https://www.contratos.gov.co/consultas/detalleProceso.do?numConstancia=22-4-13180463&g-"]
[411,22585192,"DIANA LUZ ACOSTA DEMARES","FACTURADOR -DIGITADORES PAIWEB- VACUNACION COVID19","0948-2022-COVID20",30,"01 de Febrero de 2022","28 de Febrero de 2022",1400000,1,1400000,0,0,"https://www.contratos.gov.co/consultas/detalleProceso.do?numConstancia=22-4-13180496&g"]
[412,1042449000,"CARLOS ALFREDO MONTERROZA GOMEZ","FACTURADOR -DIGITADORES PAIWEB- VACUNACION COVID19","0949-2022-COVID20",30,"01 de Febrero de 2022","28 de Febrero de 2022",1400000,1,1400000,0,0,"https://www.contratos.gov.co/consultas/detalleProceso.do?numConstancia=22-4-13180562&g"]
[413,72170268,"FABIAN FERNANDO MERCADO","DIGITADOR (a) PAIWEB","951 -2022",30,"01 de Febrero de 2022","28 de Febrero de 2022",1400000,1,1400000,0,0,"https://www.contratos.gov.co/consultas/detalleProceso.do?numConstancia=22-4-13180708&g-"]
[414,55250327,"YURANIS KARINA BONIFAS CAÑAS ","LIDER PROCESO PAIWEB REGULAR Y COVID 19","0951-2022-COVID20",30,"01 de Febrero de 2022","28 de Febrero de 2022",2500000,1,2500000,0,0,"https://www.contratos.gov.co/consultas/detalleProceso.do?numConstancia=22-4-13180767&g"]
[415,73140179,"JULIO CESAR LOPEZ ROMERO","DIGITADOR (a) PAIWEB","953 -2022",30,"01 de Febrero de 2022","28 de Febrero de 2022",1400000,1,1400000,0,0,"https://www.contratos.gov.co/consultas/detalleProceso.do?numConstancia=22-4-13180852&g"]
[416,1143114437,"KAREN PAOLA ZABALA MEDINA ","DIGITADOR -FACTURADOR  COVID 19","0953-2022-COVID20",30,"01 de Febrero de 2022","28 de Febrero de 2022",1400000,1,1400000,0,0,0]
[417,32871139,"ELLA CECILIA  VIZCAINO SENIOR ","ENFERMERA JEFE ","956 -2022",30,"01 de Febrero de 2022","28 de Febrero de 2022",2000000,1,2000000,0,0,"https://www.contratos.gov.co/consultas/detalleProceso.do?numConstancia=22-4-13180930&g-"]
[418,1140814033,"STEFANY MELISSA RINCON TORRES","PROFESIONAL DE APOYO  COORDINACION COVID 19","0956-2022-COVID20",30,"01 de Febrero de 2022","28 de Febrero de 2022",1400000,1,1400000,0,0,0]
[419,32829531,"MILENA DONADO OCHOA","APOYO  COORDINACION  ODONTOLOGIA ","958 -2022",30,"01 de Febrero de 2022","28 de Febrero de 2022",3000000,1,3000000,0,0,"https://www.contratos.gov.co/consultas/detalleProceso.do?numConstancia=22-4-13181004&g"]
[420,1140818354,"SAEN DAVID TAJAN NIEBLES","AUXILIAR ADMINISTRATIVO DE SISTEMAS DE INFORMACION EN PROMOCION Y PREVENCION","959 -2022",30,"01 de Febrero de 2022","28 de Febrero de 2022",2000000,1,2000000,0,0,"https://www.contratos.gov.co/consultas/detalleProceso.do?numConstancia=22-4-13181055&g"]
[421,55225494,"ULDYS ESTHER PONZON PORTO","LIDER  DE  PROCESOS  SERVICIOS MEDICOS","960 -2022",30,"01 de Febrero de 2022","28 de Febrero de 2022",3300000,1,3300000,0,0,0]
[422,1045729080,"MARIA DE LOS  ANGELES CASTRO MAESTRE ","FISIOTERAPEUTA -EMERGENCIA COVID19 ","0960-2022-COVID20",30,"01 de Febrero de 2022","28 de Febrero de 2022",2000000,1,2000000,0,0,0]
[423,1129532724,"MICHELLY SANDOVAL ACUÑA","LIDER EMERGENCIA COVID19-MEDICO  EPIDEMIOLOGA","0961-2022-COVID20",30,"01 de Febrero de 2022","28 de Febrero de 2022",5000000,1,5000000,0,0,0]
[424,8745568,"LUIS ENRIQUE PEREA VASQUEZ","ASESOR SUBGERENCIA CIENTIFICA","963 -2022",30,"01 de Febrero de 2022","28 de Febrero de 2022",3000000,1,3000000,0,0,0]
[425,1045721126,"MARYURIS JOANNA GALVAN NAVARRO","LIDER APOYO DIAGNOSTICO","964 -2022",30,"01 de Febrero de 2022","28 de Febrero de 2022",4000000,1,4000000,0,0,"https://www.contratos.gov.co/consultas/detalleProceso.do?numConstancia=22-4-13181124&g"]
[426,44205287,"MARTHA KATERINE MEJIA FRUTO","AUXILIAR ADMINISTRATIVO -  SUBGERENCIA CIENTIFICA","965 -2022",30,"01 de Febrero de 2022","28 de Febrero de 2022",1900000,1,1900000,0,0,"https://www.contratos.gov.co/consultas/detalleProceso.do?numConstancia=22-4-13181269&g"]
[427,5055447,"CARLOS ALBERTO CARBONELL ALVAREZ","AUDITOR DE CUENTAS MEDICAS ","966 -2022",30,"01 de Febrero de 2022","28 de Febrero de 2022",4000000,1,4000000,0,0,0]
[428,45757809,"MILADIS MARINA MARTINEZ MEDINA","LIDER SIAU","967 -2022",30,"01 de Febrero de 2022","28 de Febrero de 2022",3000000,1,3000000,0,0,"https://www.contratos.gov.co/consultas/detalleProceso.do?numConstancia=22-4-13181343&g"]
[429,32817243,"MARIBEL MARIA  MORENO MARIN ","AUDITOR DE CALIDAD Y SERVICIOS DE SALUD","968 -2022",30,"01 de Febrero de 2022","28 de Febrero de 2022",4000000,1,4000000,0,0,0]
[430,1042421404,"MARIAM DEL CARMEN CANTILLO MONTERO","AUDITOR DE CALIDAD Y SERVICIOS DE SALUD","969 -2022",30,"01 de Febrero de 2022","28 de Febrero de 2022",3000000,1,3000000,0,0,"https://www.contratos.gov.co/consultas/detalleProceso.do?numConstancia=22-4-13181410&g"]
[431,55307328,"YULEINIS LILIANA SANCHEZ DUARTE","AUDITOR DE CALIDAD Y SERVICIOS DE SALUD","970 -2022",30,"01 de Febrero de 2022","28 de Febrero de 2022",3000000,1,3000000,0,0,"https://www.contratos.gov.co/consultas/detalleProceso.do?numConstancia=22-4-13184486&g"]
[432,22642515,"NOHEMI ESPERANZA CASTRO LOPEZ","AUDITOR DE CALIDAD Y SERVICIOS DE SALUD","971 -2022",30,"01 de Febrero de 2022","28 de Febrero de 2022",3000000,1,3000000,0,0,"https://www.contratos.gov.co/consultas/detalleProceso.do?numConstancia=22-4-13184528&g"]
[433,32870174,"SIRLEY PAOLA PEREZ CARMONA","AUDITOR DE CALIDAD Y SERVICIOS DE SALUD","973 -2022",30,"01 de Febrero de 2022","28 de Febrero de 2022",3000000,1,3000000,0,0,"https://www.contratos.gov.co/consultas/detalleProceso.do?numConstancia=22-4-13184612&g"]
[434,1045765981,"ADALGIZA  POLO MARIN ","ASISTENTE ADMINISTRATIVO ","974 -2022",30,"01 de Febrero de 2022","28 de Febrero de 2022",2500000,1,2500000,0,0,"https://www.contratos.gov.co/consultas/detalleProceso.do?numConstancia=22-4-13184667&g"]
[435,32872397,"MONICA  PATRICIA DOVALES GALLEGO ","AUDITORA DE INVESTIGACIONES EPIDEMOLOGICAS","976 -2022",30,"01 de Febrero de 2022","28 de Febrero de 2022",3000000,1,3000000,0,0,"https://www.contratos.gov.co/consultas/detalleProceso.do?numConstancia=22-4-13184701&g-"]
[436,1001800132,"YARIMA CHARRIS BOLAÑO","AUXILIAR DE ARCHIVO ","977 -2022",30,"01 de Febrero de 2022","28 de Febrero de 2022",1800000,1,1800000,0,0,"https://www.contratos.gov.co/consultas/detalleProceso.do?numConstancia=22-4-13184750&g"]
[437,8635888,"JORGE EMILIO MUÑOZ AVILA ","ORIENTADOR ","978 -2022",30,"01 de Febrero de 2022","28 de Febrero de 2022",1500000,1,1500000,0,0,"https://www.contratos.gov.co/consultas/detalleProceso.do?numConstancia=22-4-13184802&g"]
[438,32869223,"LUCILA ISABEL FONTALVO HERRERA","AUXILIAR  ADMINISTRATIVO  APOYO  EN  PROCESOS DE CONTRATACION  EN  TALENTO HUMANO","979 -2022",30,"01 de Febrero de 2022","28 de Febrero de 2022",2500000,1,2500000,0,0,"https://www.contratos.gov.co/consultas/detalleProceso.do?numConstancia=22-4-13184875&g"]
[439,45768362,"MARIBEL RAMIREZ CAÑAVERAS","TECNICO ADMINISTRATIVO","980 -2022",30,"01 de Febrero de 2022","28 de Febrero de 2022",2500000,1,2500000,0,0,"https://www.contratos.gov.co/consultas/detalleProceso.do?numConstancia=22-4-13184973&g"]
[440,32866006,"ERIKA MARIA  ASCENCIO MARQUEZ","PROFESIONAL EN  CONTRATACION Y SISTEMAS DE INFORMACION DE  TALENTO HUMANO","981 -2022",30,"01 de Febrero de 2022","28 de Febrero de 2022",3500000,1,3500000,0,0,"https://www.contratos.gov.co/consultas/detalleProceso.do?numConstancia=22-4-13185023&g"]
[441,8571868,"ERINSON RAFAEL GUZMAN DE  LA HOZ","PROFESIONAL DE APOYO EN  PROCESOS DE  CONTRATACION - TALENTO HUMANO","982 -2022",30,"01 de Febrero de 2022","28 de Febrero de 2022",3500000,1,3500000,0,0,"https://www.contratos.gov.co/consultas/detalleProceso.do?numConstancia=22-4-13185094&g"]
[442,44190907,"YENIS LUCIA  AHUMADA LECHUGA","APOYO  A LA GESTION -SST ","983 -2022",30,"01 de Febrero de 2022","28 de Febrero de 2022",2500000,1,2500000,0,0,"https://www.contratos.gov.co/consultas/detalleProceso.do?numConstancia=22-4-13185217&g"]
[443,72053529,"LEINER DARIO MEDINA HERRERA","PROFESIONAL DE  APOYO EN  TALENTO HUMANO ","984 -2022",30,"01 de Febrero de 2022","28 de Febrero de 2022",3000000,1,3000000,0,0,"https://www.contratos.gov.co/consultas/detalleProceso.do?numConstancia=22-4-13185359&g"]
[444,1043006327,"MARI PAZ AVILA CANTILLO ","TECNICO APOYO A SST ","985 -2022",30,"01 de Febrero de 2022","28 de Febrero de 2022",2000000,1,2000000,0,0,"https://www.contratos.gov.co/consultas/detalleProceso.do?numConstancia=22-4-13185461&g"]
[445,22704983,"EGUIS ODILA ROLONG  LAGUNA ","ABOGADO  TALENTO HUMANO ","986 -2022",30,"01 de Febrero de 2022","28 de Febrero de 2022",4000000,1,4000000,0,0,"https://www.contratos.gov.co/consultas/detalleProceso.do?numConstancia=22-4-13185591&g"]
[446,8603175,"NILSON  ORTEGA JIMENEZ","AUXILIAR  ADMINISTRATIVO ","987 -2022",30,"01 de Febrero de 2022","28 de Febrero de 2022",2000000,1,2000000,0,0,"https://www.contratos.gov.co/consultas/detalleProceso.do?numConstancia=22-4-13185686&g"]
[447,40981378,"LIDYS CASTILLO TOVAR","PROFESIONAL OFICINA PAGADURIA  ","988 -2022",30,"01 de Febrero de 2022","28 de Febrero de 2022",2500000,1,2500000,0,0,"https://www.contratos.gov.co/consultas/detalleProceso.do?numConstancia=22-4-13185727&g"]
[448,1043023724,"JAILENE MARCELA  SOLANO MERCADO ","PROFESIONAL  DE APOYO EN PROCESOS DE TESORERIA","989 -2022",30,"01 de Febrero de 2022","28 de Febrero de 2022",2000000,1,2000000,0,0,"https://www.contratos.gov.co/consultas/detalleProceso.do?numConstancia=22-4-13185760&g"]
[449,8798540,"MANUEL EUSEBIO GUTIERREZ BORRERO ","ASISTENTE ADMINISTRATIVO ","990 -2022",30,"01 de Febrero de 2022","28 de Febrero de 2022",2000000,1,2000000,0,0,"https://www.contratos.gov.co/consultas/detalleProceso.do?numConstancia=22-4-13185785&g"]
[450,1047238631,"CAMILO ANDRES GUTIERREZ OROZCO ","ASISTENTE ADMINISTRATIVO ","991 -2022",30,"01 de Febrero de 2022","28 de Febrero de 2022",2000000,1,2000000,0,0,"https://www.contratos.gov.co/consultas/detalleProceso.do?numConstancia=22-4-13185920&g"]
[{"$f":"+A452+1","v":451},1047224457,"YOVANY JAVIER GUTIERREZ HERNANDEZ","PROFESIONAL  APOYO PROCESOS TESORERIA ","992 -2022",30,"01 de Febrero de 2022","28 de Febrero de 2022",2500000,1,2500000,0,0,"https://www.contratos.gov.co/consultas/detalleProceso.do?numConstancia=22-4-13185946&g"]
[452,1043010822,"LISNEY TOVAR MARRIAGA","AUXILIAR ADMINISTRATIVO  TESORERIA","993 -2022",30,"01 de Febrero de 2022","28 de Febrero de 2022",2000000,1,2000000,0,0,"https://www.contratos.gov.co/consultas/detalleProceso.do?numConstancia=22-4-13185968&g"]
[453,1042417608,"KELLY DEL CARMEN PARDO RODRIGUEZ","VACUNADOR(A)REGULAR","995 -2022",30,"01 de Febrero de 2022","28 de Febrero de 2022",1500000,1,1500000,0,0,"ttps://www.contratos.gov.co/consultas/detalleProceso.do?numConstancia=22-4-13185994&g"]
[454,8767993,"HAROLD MANUEL CABARCAS GONZALEZ","VACUNADOR(A)REGULAR","996 -2022",30,"01 de Febrero de 2022","28 de Febrero de 2022",1500000,1,1500000,0,0,"https://www.contratos.gov.co/consultas/detalleProceso.do?numConstancia=22-4-13186037&g"]
[455,1042439481,"YADELIS MERCEDES PARDO DE  ALBA","JEFE TERRENO","997 -2022",30,"01 de Febrero de 2022","28 de Febrero de 2022",2500000,1,2500000,0,0,"https://www.contratos.gov.co/consultas/detalleProceso.do?numConstancia=22-4-13186103&g"]
[456,32772357,"LIDYS ESTHER REALES CASTRO","AUXILIAR DE  ENFERMERIA -VACUNACION COVID19","0997-2022-COVID20",30,"01 de Febrero de 2022","28 de Febrero de 2022",1500000,1,1500000,0,0,"https://www.contratos.gov.co/consultas/detalleProceso.do?numConstancia=22-4-13186248&g"]
[457,1043606794,"OSLARY PAOLA JIMENEZ MARTINEZ","VACUNADOR(A)REGULAR","999 -2022",30,"01 de Febrero de 2022","28 de Febrero de 2022",1500000,1,1500000,0,0,"https://www.contratos.gov.co/consultas/detalleProceso.do?numConstancia=22-4-13186372&g"]
[458,22697890,"YESMINA ALVAREZ POLO ","AUXILIAR DE  ENFERMERIA -VACUNACION COVID19","0999-2022-COVID20",30,"01 de Febrero de 2022","28 de Febrero de 2022",1500000,1,1500000,0,0,"https://www.contratos.gov.co/consultas/detalleProceso.do?numConstancia=22-4-13186473&g"]
[459,32848373,"IVETH RODRIGUEZ CARABALLO","VACUNADOR(A)REGULAR","1001 -2022",30,"01 de Febrero de 2022","28 de Febrero de 2022",1500000,1,1500000,0,0,"https://www.contratos.gov.co/consultas/detalleProceso.do?numConstancia=22-4-13186619&g"]
[460,1043607122,"TATIANA CASTELLAR TAPIAS","VACUNADOR(A)REGULAR","1002 -2022",30,"01 de Febrero de 2022","28 de Febrero de 2022",1500000,1,1500000,0,0,"https://www.contratos.gov.co/consultas/detalleProceso.do?numConstancia=22-4-13186771&g"]
[461,1234888275,"YULITZA ANDREA  JIMENEZ FERNANDEZ","VACUNADOR (A) PROGRAMA  COVID 19","1002-2022-COVID20",30,"01 de Febrero de 2022","28 de Febrero de 2022",1500000,1,1500000,0,0,"https://www.contratos.gov.co/consultas/detalleProceso.do?numConstancia=22-4-13186880&g"]
[462,1001979677,"DANIELA CAROLINA  CAHUANA SALGUEDO","VACUNADOR (A) PROGRAMA  COVID 19","1003-2022-COVID20",30,"01 de Febrero de 2022","28 de Febrero de 2022",1500000,1,1500000,0,0,"https://www.contratos.gov.co/consultas/detalleProceso.do?numConstancia=22-4-13186984&g"]
[463,22819397,"MARIBEL PONCE  MACHACADO ","LIDER PROCESO PROGRAMA VACUNACION COVID19","1004-2022-COVID20",30,"01 de Febrero de 2022","28 de Febrero de 2022",3000000,1,3000000,0,0,"https://www.contratos.gov.co/consultas/detalleProceso.do?numConstancia=22-4-13187192&g"]
[464,44159335,"VANESA  DE LAS MERCEDES GUTIERREZ  PEREZ","VACUNADOR (A) PROGRAMA  COVID 19","1005-2022-COVID20",30,"01 de Febrero de 2022","28 de Febrero de 2022",1500000,1,1500000,0,0,"https://www.contratos.gov.co/consultas/detalleProceso.do?numConstancia=22-4-13187321&g"]
[465,22528498,"YANETH MARIA AREVALO GUTIERREZ","VACUNADOR (A) PROGRAMA  COVID 19","1006-2022-COVID20",30,"01 de Febrero de 2022","28 de Febrero de 2022",1500000,1,1500000,0,0,"https://www.contratos.gov.co/consultas/detalleProceso.do?numConstancia=22-4-13188790&g"]
[466,22650947,"LENYS MONTERO GOMEZ ","VACUNADOR (A) PROGRAMA  COVID 19","1007-2022-COVID20",30,"01 de Febrero de 2022","28 de Febrero de 2022",1500000,1,1500000,0,0,"https://www.contratos.gov.co/consultas/detalleProceso.do?numConstancia=22-4-13188860&g"]
[467,32771594,"JUANA ESTHER DIAZ CARABALLO","VACUNADOR (A) PROGRAMA  COVID 19","1008-2022-COVID20",30,"01 de Febrero de 2022","28 de Febrero de 2022",1500000,1,1500000,0,0,"https://www.contratos.gov.co/consultas/detalleProceso.do?numConstancia=22-4-13188906&g"]
[468,32613493,"ROSA ANGELINA ESCOBAR FANDIÑO ","VACUNADOR (A) PROGRAMA  COVID 19","1009-2022-COVID20",30,"01 de Febrero de 2022","28 de Febrero de 2022",1500000,1,1500000,0,0,"https://www.contratos.gov.co/consultas/detalleProceso.do?numConstancia=22-4-13188954&g"]
[469,1048276024,"SIRLEY JOHANNA GUTIERREZ CARILLO ","VACUNADOR (A) PROGRAMA  COVID 19","1010-2022-COVID20",30,"01 de Febrero de 2022","28 de Febrero de 2022",1500000,1,1500000,0,0,"https://www.contratos.gov.co/consultas/detalleProceso.do?numConstancia=22-4-13189043&g"]
[470,32822135,"YANETH ELVIRA DOMINGUEZ DE LA ROSA ","AUXILIAR DE  ENFERMERIA -VACUNACION COVID19","1011-2022-COVID20",30,"01 de Febrero de 2022","28 de Febrero de 2022",1500000,1,1500000,0,0,"https://www.contratos.gov.co/consultas/detalleProceso.do?numConstancia=22-4-13189192&g"]
[471,1010050522,"LUZ ELENA GONZALEZ CARRILLO","VACUNADOR (A) PROGRAMA  COVID 19","1012-2022-COVID20",30,"01 de Febrero de 2022","28 de Febrero de 2022",1500000,1,1500000,0,0,"https://www.contratos.gov.co/consultas/detalleProceso.do?numConstancia=22-4-13188905&g"]
[472,1140891004,"KATERIN MILENA ESCOBAR MUNIVE ","VACUNADOR (A) PROGRAMA  COVID 19","1013-2022-COVID20",30,"01 de Febrero de 2022","28 de Febrero de 2022",1500000,1,1500000,0,0,"https://www.contratos.gov.co/consultas/detalleProceso.do?numConstancia=22-4-13189354&g"]
[473,32611116,"DILCIA ISABEL  BARRAZA  SANCHEZ ","VACUNADOR (A) PROGRAMA  COVID 19","1014-2022-COVID20",30,"01 de Febrero de 2022","28 de Febrero de 2022",1500000,1,1500000,0,0,"https://www.contratos.gov.co/consultas/detalleProceso.do?numConstancia=22-4-13189503&g"]
[474,32864708,"LOURDES ESTELLA GARCIA CAHUANA,","AUXILIAR DE  ENFERMERIA -VACUNACION COVID19","1015-2022-COVID20",30,"01 de Febrero de 2022","28 de Febrero de 2022",1500000,1,1500000,0,0,"https://www.contratos.gov.co/consultas/detalleProceso.do?numConstancia=22-4-13189597&g"]
[475,22651747,"TATIANA  RODRIGUEZ GOMEZ","VACUNADOR (A) PROGRAMA  COVID 19","1016-2022-COVID20",30,"01 de Febrero de 2022","28 de Febrero de 2022",1500000,1,1500000,0,0,"https://www.contratos.gov.co/consultas/detalleProceso.do?numConstancia=22-4-13189677&g"]
[476,22645247,"JENNY  ENITH  JULIAO ORTIZ ","VACUNADOR (A) PROGRAMA  COVID 19","1017-2022-COVID20",30,"01 de Febrero de 2022","28 de Febrero de 2022",1500000,1,1500000,0,0,"https://www.contratos.gov.co/consultas/detalleProceso.do?numConstancia=22-4-13189868&g"]
[477,55313269,"KAREN MARGARITA MARTINEZ BRANGO","VACUNADOR(A)REGULAR","1019 -2022",30,"01 de Febrero de 2022","28 de Febrero de 2022",1500000,1,1500000,0,0,"contratos.gov.co/consultas/detalleProceso.do?numConstancia=22-4-13189945&g"]
[478,32824393,"ELIZABETH RODRIGUEZ BARRIOS ","VACUNADOR(A)REGULAR","1020 -2022",30,"01 de Febrero de 2022","28 de Febrero de 2022",1500000,1,1500000,0,0,"https://www.contratos.gov.co/consultas/detalleProceso.do?numConstancia=22-4-13190373&g"]
[479,22467133,"ESMERALDA COTE BORNACELY ","VACUNADOR(A)REGULAR","1021 -2022",30,"01 de Febrero de 2022","28 de Febrero de 2022",1500000,1,1500000,0,0,"https://www.contratos.gov.co/consultas/detalleProceso.do?numConstancia=22-4-13190406&g"]
[480,22570955,"FARLEY DEL CARMEN OSORIO REYES","VACUNADOR(A)REGULAR","1022 -2022",30,"01 de Febrero de 2022","28 de Febrero de 2022",1500000,1,1500000,0,0,"contratos.gov.co/consultas/detalleProceso.do?numConstancia=22-4-13189945&g"]
[481,32812585,"NESLIE OSORIO PARODIS","VACUNADOR(A)REGULAR","1023 -2022",30,"01 de Febrero de 2022","28 de Febrero de 2022",1500000,1,1500000,0,0,"https://www.contratos.gov.co/consultas/detalleProceso.do?numConstancia=22-4-13190497&g"]
[482,32863854,"OLGA BARRIOS BACCA","VACUNADOR(A)REGULAR","1024 -2022",30,"01 de Febrero de 2022","28 de Febrero de 2022",1500000,1,1500000,0,0,"https://www.contratos.gov.co/consultas/detalleProceso.do?numConstancia=22-4-13190538&g"]
[483,55222617,"OLGA REBECA SANDOVAL PEDRAZA","VACUNADOR(A)REGULAR","1025 -2022",30,"01 de Febrero de 2022","28 de Febrero de 2022",1500000,1,1500000,0,0,"https://www.contratos.gov.co/consultas/detalleProceso.do?numConstancia=22-4-13162206&g-recaptcha-response=03AGdBq26m7dNxl64NT0PbNA1kSL6ISdkXpduQYPZ7kDoCcFLeQXIn8BuiKIz05QUZYCID_VlTtMggOVDDh9ghKmN4ztx5bSE_D-xb-X7A6Otb1sam_0dHXrKo46rI0rnbHLByz0OyRCeRzq--DviFzotmfqvM-G2ZJZUtHXGY9CtrQZf5lh4GTCtMEGxwLXELII2jE8lhhFoW7nM_kAyO9KO8Qowgs7vt4DVtF-wWMXsVsyqGJsd_H8RcZuS_QgrSBFbFeDyFe2YMbGlpZl8aV0BmM_iqpjL2c7z1duZBNOiU_EUGH7teRWZwbDK2zvWbeEcL_kr7ltLJon8vOMViB1tiMvCXicQr2LxsbmbiHgFcI8gS-EawoWKP1L8RZ4uQvYOuMPtlQIMZf3csrUiwTU-UWBcYqHU3NO2x7wGrdpAB5poBIet_5eYFvveOI4cEnYOoVIjqJK7lmHB02cbvySL2FG4lo6JnTtUOnFht3iJxylR11FoRRjs"]
[484,22643912,"ANGELA MORALES SANMARTIN ","VACUNADOR(A)REGULAR","1026 -2022",30,"01 de Febrero de 2022","28 de Febrero de 2022",1500000,1,1500000,0,0,"https://www.contratos.gov.co/consultas/detalleProceso.do?numConstancia=22-4-13162209&g-recaptcha-response=03AGdBq26yTDom2TncenKoVj4P8l1J5S2p15TUmSZZHc9eEGVHP0ctsEn4MlCnNHXA1Dn2l7CocRyOxpobn4pZD_QZPcEnz5hGxA0HwAPkk2rmu_MXCsvHzu8sV8_YcoBWMl2yqKFdfaCv21z442MqPuCCthqDQ6FpmoDRXxVhGFJFykSZNgwKRl5BgQI7wJTbxpiov9lYthdcXJY-UqBMwYuecNfPlV7pmWtNtMmWuqCW88Te6S3TRguA66AkE3fI-OpC2aFDc8WBOVVuAc8MGsTCdhH5WVukH_rDlQO0D6O4pz8HX8waFpszU7xw4_uEfkSuLgOxbyINbYOcwhi3N-m3dGl7VaOTNRAOhOyAs1EAp7dnb4kZf77OoMCQ1e2IIBkyxKJ_YnmVzJZ7K5eR29OBLH_gkUnqPXupjj3cSmnsuruABI9hNZGUtbXI1k5KSNzOpm2yyyLjTOG1dppF1XRthAebhg3l7vD9Awtkn39D3RQXaril9OQ"]
[485,32811232,"YOLANDA SOFIA MORALES BERMUDEZ","VACUNADOR(A)  CUARTO FRIO ","1027 -2022",30,"01 de Febrero de 2022","28 de Febrero de 2022",1500000,1,1500000,0,0,"https://www.contratos.gov.co/consultas/detalleProceso.do?numConstancia=22-4-13162214&g-recaptcha-response=03AGdBq27flhz14_QiCg8o-uF5yQ2DQumibnjcwI543FolHxrh9QkxnF6codQw3ZYzfXj47f-PVWpmPU7vBONKFA_6Tse0D_iqojM8Ruekynv6QkcEbv2WWmfAlAu1zpEDuU1arrkouqSK9WICSbZx6JQ6DjMuND1nSkZ0CtMr1vpw0Goi25-7IEvVSVppD--SEMHM_HueQzoZGna5t8xOx8_XYJ6UrFdu3QrBL9mGMhPC24sohp3rhwx_ok5xzWiQsus91wj-wvXkHet66WBW0dmQgLInzZpObTdPBLc5-YhvA65DgJY81kUKkFucsZze0kbn2iRN9nMu9hDzxW5yFuOSSnuUEho3uJ5jYsM1ZuXv3eUELF5gUffyxVLNFFwFt5B7ngG5D22KZKdNZytxcRDLBGAtGod7XcOls3i-mnNshO1lzA2NrEb6ab3KpRQMWu7hFp1odo04zxObt65FQMJAfV1Qm1La7g"]
[486,1143225644,"JENIFER SABRINA BARRIOS SANTOS","AUXILIAR DE  ENFERMERIA -VACUNACION COVID19","1027-2022-COVID20",30,"01 de Febrero de 2022","28 de Febrero de 2022",1500000,1,1500000,0,0,"https://www.contratos.gov.co/consultas/detalleProceso.do?numConstancia=22-4-13162217&g-recaptcha-response=03AGdBq27ZN_jbxT21cnL2lucq-nHBGaf2ttyfYok6NELY_6AB3wdqxmJEAni54YZag50HuJTuED195PfZoIFjghHKxwwx70wjBgNXKAG56aM9Nd6wi-ABE40WrhYImhPWkhWEF7wc3bNEs_DfM0BEVqf1jX0zF7l3phhP71j_We4vrCqxBM6dm4e82dmtze4l8c4MbYTAjdkVPIvoL_S5u7DkQvsfc_AZLzTESBij8PkeSgERFd3HdOLsZLU0damVQsK0d5U1cwjP8v_CPtTXBGyGciZLr_N7zdUGgFam92WC1we-qbgi3bQM0r2ktQwA9pgTrkWUiMP--1B9mKCJmPdS9LjFJOsdDUIIl-BddQ2SoZB9wu2RxHci4Ybd65yKR4-HLiU35EEYjzrShff3HYqqGIA0UILInKBWPOLuRYm46ZFBhOOVH5AcWTxk8hvzUBKscRlkbgdcJUuLDH8Cw6C1A_13GXnOvfUYxQV52d6rIQ4JDATRX7g"]
[487,32868699,"MARCELIS JUDITH SALCEDO SARMIENTO","AUXILIAR DE  ENFERMERIA -VACUNACION COVID19","1028-2022-COVID20",30,"01 de Febrero de 2022","28 de Febrero de 2022",1500000,1,1500000,0,0,"https://www.contratos.gov.co/consultas/detalleProceso.do?numConstancia=22-4-13162219&g-recaptcha-response=03AGdBq25mBxm3FvfFNYR5h_cY27G3yTPCv7AnWqBtIbDRbTfwIDGtV1VfGe1UtyRrcFhmMas8158TieBw_uuqKZGo5neP6mfFEJDgLdhpUfEgEw_xc33pFV1QZZrg9nDoaczWVNt6YPF4uYX2XVdBeB4wxmv_hUaVnzZ5TFfQiFG2LRaRJkYo6t-ouhf0pBqHMlyTActPftpoNJ6YjS7zkm-UkNJNbgAbjHiCV9jayT24eZdHuFrnxmu4gAh1pXWzcHK-7vM3StyNTHBv8V9PYWakt4azI1iH_Ja3-c7tJpG3L2NkSHgzw7xPKdjuw_ZJ8P1NnDVmuMJSjhodlzULO9cqbljoRS2Q1Yeo2ABnrrYtWhANcdE1lN3qQoJP2_EANYFaVmXcuP0sO55si0hxVejcp--V0Co0GF7XKeyNPUFSohEZO5uENMqLPokF51rahr54LCF5AxT16JiPmgq4r_O1MRBF2UQBRmL3KjbPtqd-2j6jpFc_rIc"]
[488,1042433511,"MARY CARMEN PARDO HERRREA","AUXILIAR DE  ENFERMERIA -VACUNACION COVID19","1029-2022-COVID20",30,"01 de Febrero de 2022","28 de Febrero de 2022",1500000,1,1500000,0,0,"https://www.contratos.gov.co/consultas/detalleProceso.do?numConstancia=22-4-13162223&g-recaptcha-response=03AGdBq27faKKhQFkvwI1HCVHSVep3kyd8FxOf5twpdDCtIp2S277qW_XpIMR0apu-Q8OU0wq_gbBF36gcZAKhr0Eu8f75Midplv05IbvYnljtmQyjig6mIlE9-YJZ_F7Vb38zpKe5zE9rS0_D-J-Al6nHMpXwn7XDBZIDrfQktMB05vWbqwUGTyxHPSwg8K9hGOXmf0tQ-jKwUoGwkZCpBxUUgYUz-fcDULJBPf7ElvDUAPUyZWk-KDfonhcwlt6J9aowMiuxuZyP8NWYmztHcFLvwfqy0XMa9kMjcOD__cgICvHII5gEvNPCU5GGhTOZSKJKqyi7yO-o6jrMAIYJkDu6QZfyviKSbMg05GmwvZ473cUfJd8Zy5ArbZdVg0s0bFaJTrHbnouqwXAOC46-yP_DbUPHl7MxSoluObowMfpn9BzkPZ5Ro0qAu7IhKNO0HEo8ScER9AgVI_XtigMv94a6YHyCNUy2KA"]
[489,22545645,"DEISY EMPERATRIZ OROZCO CAMAÑO","VACUNADOR(A)REGULAR","1031 -2022",30,"01 de Febrero de 2022","28 de Febrero de 2022",1500000,1,1500000,0,0,"https://www.contratos.gov.co/consultas/detalleProceso.do?numConstancia=22-4-13162225&g-recaptcha-response=03AGdBq24k9ZO5TBgBd0ow-WNHMoHFdTU3UzbjmvFOuR99-bDdV9GK8qOHmTfKx_s0iIJbIpn1tGkFbf_Yd1jIDRbgPxsvq7miEx-hdZmU7Bk7S1ZPPa3cWwRJdgYbLESBOhRQr7inFgtp8S43aJQhwdQybBqR5Ndvh2cb2jWQrIUTZ809GRQaI4YC7fpm-18Sot5NPUiot5BTZY0mE6GXSOpr7nW1m06CAV7wxlv5JcwzafukckaN6KjBMc17WCr-YDc2ntI62kJuefxAmsqLFwBw7GJsQ_DTn419iv0Iy-qyarlGGdMuzEE9qs-xmDDmMj8DqXihO-oAZ9ODqLJ8QtIQ44TbQCNGNFAMTGDOQgHKRoCfVZUsCzJ_AwJ2t_X680o9Q2wlfPcpoOktzHKTxiJyguVvg-JGJnfoemxtBrzX8i7EA2If__wb65PqlBAiyM4hcqmtcAST-Uq851ApfOT8x0GAaRP3nw"]
[490,22430756,"MARITZA MARINO OSORIO ","VACUNADOR(A)REGULAR","1032 -2022",30,"01 de Febrero de 2022","28 de Febrero de 2022",1500000,1,1500000,0,0,"https://www.contratos.gov.co/consultas/detalleProceso.do?numConstancia=22-4-13162226&g-recaptcha-response=03AGdBq26GwkA81r-RRBoa_iRg_hJOser_hZ2kUqv2x7Q5lRnZpMsznCtBKl56voNAJO3ioZdY1jGqhB2oA3WEozCRKduEuSC0zvIyjzPnzxvubC-3VMlWhw0BRnM1Zr9SWE0HxNiuDYhD4kyutP-c43wq9vqkEbV1diO1of_YG-f1HrbbfC_VUwF7_xSK7cIAgwETKSzqbkgLmjqoGU55vFipkxTsr019HulF7zCEqhd_FhGFSfPo7ea2liST-pPt8SH9GOtXks2I8ZrZTEO6-98W4QSP_cdC1VXrB1BNF3v6JPzbDUbr0xs3OXwWWQafE3zS0hAYfiT9I1GV9Gmw1Ssxl131gJA11ND_hLOFRmKiS2r1hQ4YcckA1eStExYYHowA0mEHtWZ3YrcnbYD-lF0o4H174id7joIRdBqJfxbfIgAEuKXaDrmi_AeY5HwTTy2PW_yqZ37jLcZyQ6k0_kR0t8rfH_JLpzFimldw5xpIVZ6FUyff2mc"]
[491,32822248,"BEATRIZ ELENA ZAMBRANO BENITEZ","VACUNADOR (A) PROGRAMA  COVID 19","1032-2022-COVID20",30,"01 de Febrero de 2022","28 de Febrero de 2022",1500000,1,1500000,0,0,"https://www.contratos.gov.co/consultas/detalleProceso.do?numConstancia=22-4-13162229&g-recaptcha-response=03AGdBq24UTYuABTarTg18RRJtUVdqT1YX4V45c80r5E_JKQ751LoeGC4V_6t-0RY4bD6KW7_1Udqnb4OajWXGLBIWPGAPaw6qZJQfwj6YbTleAmL1K5zKBlDQ9vGNUlxmEG1P2U_Pr8Lvcz8FAJG14tpN3MqO8b4LO1dguwgIt8bPSywp1UcBqfbkMjS662pPMFTzE9-8rfWfYbUM7hhOlvmiA5fIPT392PPE7VGQQypkaUeiGaPjbkgkzrXxOdVXVlBiEcFBoYi9Ef4_j-BCAD3UKTP96o_gpWJl1Vc8h-zz7p7JBUK7eDuzvaA5-56xZg6fyGj_8fx35PELRHgNmUneZpmq6iA9t3i30o6JJInOD7f4gQpz-7bvbSRMarz9bVyxp5w3UQP_jOx1sKh8X2HXAkDRQVJe47zPwwwoq6tBIMphEMwA34kB-EQNW2LVKoGtB30mUW-1BZHSmZ2WF5mkiNOiJL4SyCjWwzrboLmXOr9PcLh2B5g"]
[492,1047338911,"MERCEDES GALINDA MIRANDA DE LEON ","VACUNADOR (A) PROGRAMA  COVID 19","1033-2022-COVID20",30,"01 de Febrero de 2022","28 de Febrero de 2022",1500000,1,1500000,0,0,"https://www.contratos.gov.co/consultas/detalleProceso.do?numConstancia=22-4-13162530&g-recaptcha-response=03AGdBq26KtcMd0_wUngK1ibaqj93_PrK7XjcZVJ-dy-OJ0q-j1Jb0_0mPEKDQKkKumC7wf-FyS-SarISnnyxFjByItHcNp5p5cV_UeLgXeVy_6b3MIbDHgiwblti63wHH0KyW6-lmv9ENOFW2PCln1pGy0Yi8n2qlbbdo7scM6nBY4gS9i5XjOXVl71wDbBIFcHXoeyiN7_5oPNii2VFy-j3_hYSeXSCTPULGCPYWKV3oRgYxA05XOUv5KPj2CkcCb7dhbLSUlvXzD3aDgRoggeMFlov3z1_TtZ_z-Es-pXFXCH8ZLZAphpENTQtEWsgwgWEqaX4k0gg4HJFItk83O3yuBZD1Tj-s4LM9lUoVAXOs_Zd6WAidr_CqXQPzH661ZXqP2b6nq5kid8pWFlMmgK2g9SxM31P7e4mNiYjqPs0S5HfMg5zCqTymlg6XuhOroc8zuMOZm4OU6v80wZ-dgMDPray-otl8EQ"]
[493,64543985,"ALCIRA GOMEZ ARRIETA ","LIDER PAI REGULAR","1035 -2022",30,"01 de Febrero de 2022","28 de Febrero de 2022",4000000,1,4000000,0,0,"https://www.contratos.gov.co/consultas/detalleProceso.do?numConstancia=22-4-13162534&g-recaptcha-response=03AGdBq26FVhMrPDEDGwSKbQrdnHAW3sj0Gg-urjXI0jYH4VBwPk6QtPEGp2TLL6m7CPMlfI-DV93vSaWnDN50-glm_VDK03ogB52RK-e7xbKHKc9mGigROd0HoFM3jDxV6jJuo9hJllTGjr46Ciq8t_QEXvyorhkNWvaKYZu7tZQQYqyyrnSAuIYhOczLnUW_lUpRE3keW5FO7Y_qfScuFk45OCGNAWGaVpE1jw66Tnne4BMovLyuNO6g2DXAbTQ9NMnZE4su_eIw1-T_J_nKfkmm0OyAubjeLS7bz2WZLTjp4gFnGO-xDlZq-3HOyX6jfZAeNKQv8P7JD0fzB0iHWgGouYY4JOn4zovLsj3wr5o_jKTZPXUlpyspFXezaruziEuKq2gwMABdNHnLLrdr6KEccOp4mdtef5e9D5SMsG4L0itCuWu65S7_8Ru4OOE72Vl_KvSdCUQud9oI-70olD73Qum0Us0pJjhu9JeQhKcfMr8NIJqd_mA"]
[494,32867404,"PATRICIA DEL CARMEN IBAÑEZ OSORIO","VACUNADOR(A)REGULAR","1036 -2022",30,"01 de Febrero de 2022","28 de Febrero de 2022",1500000,1,1500000,0,0,"https://www.contratos.gov.co/consultas/detalleProceso.do?numConstancia=22-4-13162570&g-recaptcha-response=03AGdBq261F6zFQINW3Ysaq-xF-4e6QrgdZavYC-VHAY5JgVi7_n4pU3JjzIKtNP3_2fiAGr65499K74-oa3BQ9J3-hoY-dDgZ1n1g-TXUy8pp4-Jp-kk2fRqHJpU5TS5dvxxs7NaiGeI4OSnG7BOXQt8SLit-UVAFSP95PoQP5R6ZUryCLRPG7STzIkV_C_H5XGGNyUQWxuAphrSL6L9nBHkp5WK1Kovmkf2xbiap53bp39-rL1GGvBf3YZNvXZHhegSabbPQN0h2tvPK8KnsrBPDZ3_SrUtrXeEF-Xj0uIadUYa9OkALrzwvuKXOWQJpR6OU5jQVKY_hP8Qmj83RGnpM0jldABOtAFx-3_g-Pg-QdGKBGIanGMjodMlUgc1n9xUZFi1kgxa1Ag33lW9GQGGtyzUGz_hP4rlinZ7adBnDZSIeSzxmCZkYrR1Hl4RG2yzylukUqYJjwDDCux-fDFGzAtHwxezfaw"]
[495,52703063,"XIOMARA TERESA BELLO ORTEGA","AUXILIAR DE  ENFERMERIA -VACUNACION COVID19","1036-2022-COVID20",30,"01 de Febrero de 2022","28 de Febrero de 2022",1500000,1,1500000,0,0,"https://www.contratos.gov.co/consultas/detalleProceso.do?numConstancia=22-4-13162574&g-recaptcha-response=03AGdBq26txIFbZZJNyeE3cfVrXUk-Hx24jBb352jrnDF0mN9teYTpiYN9WEvk_ZFw6OF9lMjzcWAgpw-3FgTjRL7lvPHkiSXYZzty3pkKp4RRAneg-imJEU0dms7cZ8hVOnYhLfVGn7BDGUfNExPpsqcgyhyI3rvG0VAJStjNUxGOVu1XM4JNZBGmmJrhgeYKqHc_j1Hbgaj5GqFRwuFG0zdEoAjWlpmVc4rOPhIwnP3n2nMi-s2MFrrVlplCoBbFFP3CWw7vHevtbd9DO2F2h7TprmlVo8ouYnNu946g0YfKoy-E3Yv6ZKUzTQIU5DvUk9Y1pW9IcR5u4Orj2SOQHxTqrpajluNzuq4p7I0zcztTvaNa8oWeyU2wX8z74DXKFvEV4yUtb3LzinUY0m1x39o-AJtajes1YXpHhL8nh-WP6Aw-xiieH_Shxq9Tr_PITfGHjO0sXIUuNKbHXDqjtzCDwQg8NSwWxnw-dHsIl5EWshCsbqEIF_U"]
[496,22446125,"GENOVEVA MARIA LLANES JEREZ","VACUNADOR(A)REGULAR","1038 -2022",30,"01 de Febrero de 2022","28 de Febrero de 2022",1500000,1,1500000,0,0,"https://www.contratos.gov.co/consultas/detalleProceso.do?numConstancia=22-4-13162576&g-recaptcha-response=03AGdBq26ypVbBJGojFrmcnXssV2NsyCkAulvzaDn55pPuGolNM4aJHJA0N7pagCpJHdCUQSDaEesDLv-DbUZyX4Ltogk66w4K3S27wZcRK45XRGBcIQvxScWfgSAskD7Y2khiBd4qPpV6UFI5xG_66XTIEOFnjA2IkMiw8hLTQBbE-9AMQ6Lcyn9p6pMoP5WP1nJXFwE0yTTI5HtkjzEg-oMHs3d-d1DM-Mf2TkRRi8MJup8_O1pUy5gfBFJQrfY13lNFdAqLQgFDU4rxI3q1R_CX-n6yOHyk3LcrG0BrIKw3TK1wAxYY92hUF2LFm27ldPZzSXC2T6H-jR1CC-D-veuajxr2VH6pIzyjeE_mj8knxYQUnXd1y8UC0erNPrdPYLuierA8dF5COM4cdtVyTZR-GRGLciMvj_Efuo4Dz3UlNc-2mrRHMx-a0KaRnQeO-093DKHR5uQDdizo8oR5O0y3RE3rZWXVsaKO00rxUNmnoiZdmhbXkXM"]
[497,64578458,"ILDA DEL PILAR PACHECO AGUIRRE","VACUNADOR (A) PROGRAMA  COVID 19","1038-2022-COVID20",30,"01 de Febrero de 2022","28 de Febrero de 2022",1500000,1,1500000,0,0,"https://www.contratos.gov.co/consultas/detalleProceso.do?numConstancia=22-4-13162582&g-recaptcha-response=03AGdBq24wPzqt7NdimG5sd_Dx5DXPU0IA8Lh8Lu2lo1qPmph2A27veb2KbXz1MnGvqxGevb-DQxWT4HotR8z9PI-PmB6shOP0ispzAf87ZOLHt29w3dm1bcHVwroZSW5FPy_ANmzq-K_AeFg94vhSoCo5ua6jKIVzbRbESe5m78Yk262e483PUynJ3UBB6o76if4TNUSn9XsvshZRQADI2dbcuVNHQkoxoMTqiUTxxdmo7t4KQgDCp197Lz133FPvjhjZgkc6F3eMR2StQ5rzSoY43V6GjgVada2E8R1FXJT1YL05lBvvIUuVnHzflBsokP-3apoeqU9h3UIf_Dmigx_W31n2gwRc4HeJtkwtFxph5dgkTV8MGZxCEl37UEFUP3BQ2PJLd-bzH7CPV0wiQfzh3h6m4eVGKIe7p4ED0WCYVA41LVaLjbrvnTMse5eUKYcQhW9hDCyiEeJNMvBiGmCYdwrzH1kw7A"]
[498,22528921,"ROSARIO DEL CARMEN CAMARGO GOMEZ","VACUNADOR(A)  CUARTO FRIO ","1040 -2022",30,"01 de Febrero de 2022","28 de Febrero de 2022",1500000,1,1500000,0,0,"https://www.contratos.gov.co/consultas/detalleProceso.do?numConstancia=22-4-13162586&g-recaptcha-response=03AGdBq25bwoTZNv4zqNvLm2pz-C6mtgo3KvpNFiBgTTBT2zBt7mZOvFsVIgzG7do8Wv0JmCoHfpykzw3tfIHptkvpYSufj3tO5foEHEJmiJCpU6x4tfzapOccc-ucpKkVWKXWXZk47E6peg7D-yf5voTMiN9JL1LtI3WZ8DCuS7k9ikLx2AUmEnoDkvfr9h7ope7kyHNRyT16JKUJUMgEt6lqNL_rojutIms3jWe5ShMdrSR9KRrBrDf3vwvpq7R1H_pvS-skP5DLePjstN33nQ7WM786c4sDRoaLZIJALkZ07mPOOhcD7e51F5qrpHCbfO77OKtEi5niL8_usHwr1u6iLfAep5CLHZ7pN--5BNSnkMeJBwgt7GCvLUfueP8uJc7ALBDvbK2I29WUKUSQlhl_gtj7VCW2dmfBC378vyPR2kHoS3Hy9u9ZyCu_mXKAjRzSg9Q7zljlIf9UCqwFZMb_cyT4QbnQcmh1PVbBfTPGdg3FEsqBgbQ"]
[499,1048289131,"LAURA MARCELA GARRIDO GONZALEZ","VACUNADOR (A) PROGRAMA  COVID 19","1040-2022-COVID20",30,"01 de Febrero de 2022","28 de Febrero de 2022",1500000,1,1500000,0,0,"https://www.contratos.gov.co/consultas/detalleProceso.do?numConstancia=22-4-13162590&g-recaptcha-response=03AGdBq24wU18eZHK0qDe00BhGfPpWF11KiI59tS24tH_wdcXgxG0_Od4OPgvQUJwAHSzzPa2JyjyKzEB5koVnOcBxlalntTWoBtRKDHKwB1PEkCGdBZN769EHf0n9EnZtEcIBrCRyPeUt8Q4x-lAdM41GwWgw3rHzlA2vnDe1JVqEFwK0pwAYFXlrCk_k3rtc5f9v0Z8iz99EgH5i_Rd66Wu4gLzr006nZAlO8zJTsqnXbw_fHoCzQjw1QXOEdV27UZpPnxyccfXvowkn57eKBsVjy1qM2VdRE5hxqM0SBW-XARHU2Yu6b6RkPvitrtjM5YSi2WJ3PEEE5-tpGCiBToJrxO2nV1w5a02tSOhkrMtV9LnGJ9iamx1o0OGSnHcpvJgubfH5uDO6Y-5fvI12KTFQpmaiYyEDlygD11AXhQxqkz-9iUMUp3jsaytNYb6PLCERmcfVjsKqOjqSYWDw3imiyIlasgYjpA"]
[500,32865375,"LEDIA DEL CARMEN MARTINEZ DE MOYA ","VACUNADOR (A) PROGRAMA  COVID 19","1041-2022-COVID20",30,"01 de Febrero de 2022","28 de Febrero de 2022",1500000,1,1500000,0,0,"https://www.contratos.gov.co/consultas/detalleProceso.do?numConstancia=22-4-13162530&g-recaptcha-response=03AGdBq26KtcMd0_wUngK1ibaqj93_PrK7XjcZVJ-dy-OJ0q-j1Jb0_0mPEKDQKkKumC7wf-FyS-SarISnnyxFjByItHcNp5p5cV_UeLgXeVy_6b3MIbDHgiwblti63wHH0KyW6-lmv9ENOFW2PCln1pGy0Yi8n2qlbbdo7scM6nBY4gS9i5XjOXVl71wDbBIFcHXoeyiN7_5oPNii2VFy-j3_hYSeXSCTPULGCPYWKV3oRgYxA05XOUv5KPj2CkcCb7dhbLSUlvXzD3aDgRoggeMFlov3z1_TtZ_z-Es-pXFXCH8ZLZAphpENTQtEWsgwgWEqaX4k0gg4HJFItk83O3yuBZD1Tj-s4LM9lUoVAXOs_Zd6WAidr_CqXQPzH661ZXqP2b6nq5kid8pWFlMmgK2g9SxM31P7e4mNiYjqPs0S5HfMg5zCqTymlg6XuhOroc8zuMOZm4OU6v80wZ-dgMDPray-otl8EQ"]
[501,32769980,"MARYURIS POLO  HERRERA","VACUNADOR (A) PROGRAMA  COVID 19","1043 -2022",30,"01 de Febrero de 2022","28 de Febrero de 2022",1500000,1,1500000,0,0,"https://www.contratos.gov.co/consultas/detalleProceso.do?numConstancia=22-4-13162534&g-recaptcha-response=03AGdBq26FVhMrPDEDGwSKbQrdnHAW3sj0Gg-urjXI0jYH4VBwPk6QtPEGp2TLL6m7CPMlfI-DV93vSaWnDN50-glm_VDK03ogB52RK-e7xbKHKc9mGigROd0HoFM3jDxV6jJuo9hJllTGjr46Ciq8t_QEXvyorhkNWvaKYZu7tZQQYqyyrnSAuIYhOczLnUW_lUpRE3keW5FO7Y_qfScuFk45OCGNAWGaVpE1jw66Tnne4BMovLyuNO6g2DXAbTQ9NMnZE4su_eIw1-T_J_nKfkmm0OyAubjeLS7bz2WZLTjp4gFnGO-xDlZq-3HOyX6jfZAeNKQv8P7JD0fzB0iHWgGouYY4JOn4zovLsj3wr5o_jKTZPXUlpyspFXezaruziEuKq2gwMABdNHnLLrdr6KEccOp4mdtef5e9D5SMsG4L0itCuWu65S7_8Ru4OOE72Vl_KvSdCUQud9oI-70olD73Qum0Us0pJjhu9JeQhKcfMr8NIJqd_mA"]
[502,1001798625,"LILIETH  VANESSA CERPA GONZALEZ","VACUNADOR (A) PROGRAMA  COVID 19","1043-2022-COVID20",30,"01 de Febrero de 2022","28 de Febrero de 2022",1500000,1,1500000,0,0,"https://www.contratos.gov.co/consultas/detalleProceso.do?numConstancia=22-4-13162570&g-recaptcha-response=03AGdBq261F6zFQINW3Ysaq-xF-4e6QrgdZavYC-VHAY5JgVi7_n4pU3JjzIKtNP3_2fiAGr65499K74-oa3BQ9J3-hoY-dDgZ1n1g-TXUy8pp4-Jp-kk2fRqHJpU5TS5dvxxs7NaiGeI4OSnG7BOXQt8SLit-UVAFSP95PoQP5R6ZUryCLRPG7STzIkV_C_H5XGGNyUQWxuAphrSL6L9nBHkp5WK1Kovmkf2xbiap53bp39-rL1GGvBf3YZNvXZHhegSabbPQN0h2tvPK8KnsrBPDZ3_SrUtrXeEF-Xj0uIadUYa9OkALrzwvuKXOWQJpR6OU5jQVKY_hP8Qmj83RGnpM0jldABOtAFx-3_g-Pg-QdGKBGIanGMjodMlUgc1n9xUZFi1kgxa1Ag33lW9GQGGtyzUGz_hP4rlinZ7adBnDZSIeSzxmCZkYrR1Hl4RG2yzylukUqYJjwDDCux-fDFGzAtHwxezfaw"]
[503,1001089373,"MAIRA   ALEJANDRA ROJANO CANTILLO ","VACUNADOR (A) PROGRAMA  COVID 19","1044-2022-COVID20",30,"01 de Febrero de 2022","28 de Febrero de 2022",1500000,1,1500000,0,0,"https://www.contratos.gov.co/consultas/detalleProceso.do?numConstancia=22-4-13162574&g-recaptcha-response=03AGdBq26txIFbZZJNyeE3cfVrXUk-Hx24jBb352jrnDF0mN9teYTpiYN9WEvk_ZFw6OF9lMjzcWAgpw-3FgTjRL7lvPHkiSXYZzty3pkKp4RRAneg-imJEU0dms7cZ8hVOnYhLfVGn7BDGUfNExPpsqcgyhyI3rvG0VAJStjNUxGOVu1XM4JNZBGmmJrhgeYKqHc_j1Hbgaj5GqFRwuFG0zdEoAjWlpmVc4rOPhIwnP3n2nMi-s2MFrrVlplCoBbFFP3CWw7vHevtbd9DO2F2h7TprmlVo8ouYnNu946g0YfKoy-E3Yv6ZKUzTQIU5DvUk9Y1pW9IcR5u4Orj2SOQHxTqrpajluNzuq4p7I0zcztTvaNa8oWeyU2wX8z74DXKFvEV4yUtb3LzinUY0m1x39o-AJtajes1YXpHhL8nh-WP6Aw-xiieH_Shxq9Tr_PITfGHjO0sXIUuNKbHXDqjtzCDwQg8NSwWxnw-dHsIl5EWshCsbqEIF_U"]
[504,1043842105,"ADRIANA PATRICIA MERCADO SALAS","VACUNADOR (A) PROGRAMA  COVID 19","1045-2022-COVID20",30,"01 de Febrero de 2022","28 de Febrero de 2022",1500000,1,1500000,0,0,"https://www.contratos.gov.co/consultas/detalleProceso.do?numConstancia=22-4-13162576&g-recaptcha-response=03AGdBq26ypVbBJGojFrmcnXssV2NsyCkAulvzaDn55pPuGolNM4aJHJA0N7pagCpJHdCUQSDaEesDLv-DbUZyX4Ltogk66w4K3S27wZcRK45XRGBcIQvxScWfgSAskD7Y2khiBd4qPpV6UFI5xG_66XTIEOFnjA2IkMiw8hLTQBbE-9AMQ6Lcyn9p6pMoP5WP1nJXFwE0yTTI5HtkjzEg-oMHs3d-d1DM-Mf2TkRRi8MJup8_O1pUy5gfBFJQrfY13lNFdAqLQgFDU4rxI3q1R_CX-n6yOHyk3LcrG0BrIKw3TK1wAxYY92hUF2LFm27ldPZzSXC2T6H-jR1CC-D-veuajxr2VH6pIzyjeE_mj8knxYQUnXd1y8UC0erNPrdPYLuierA8dF5COM4cdtVyTZR-GRGLciMvj_Efuo4Dz3UlNc-2mrRHMx-a0KaRnQeO-093DKHR5uQDdizo8oR5O0y3RE3rZWXVsaKO00rxUNmnoiZdmhbXkXM"]
[505,1048319852,"DINA LUZ MENDOZA OROZCO","JEFE TERRENO ","1047 -2022",30,"01 de Febrero de 2022","28 de Febrero de 2022",2500000,1,2500000,0,0,"https://www.contratos.gov.co/consultas/detalleProceso.do?numConstancia=22-4-13162582&g-recaptcha-response=03AGdBq24wPzqt7NdimG5sd_Dx5DXPU0IA8Lh8Lu2lo1qPmph2A27veb2KbXz1MnGvqxGevb-DQxWT4HotR8z9PI-PmB6shOP0ispzAf87ZOLHt29w3dm1bcHVwroZSW5FPy_ANmzq-K_AeFg94vhSoCo5ua6jKIVzbRbESe5m78Yk262e483PUynJ3UBB6o76if4TNUSn9XsvshZRQADI2dbcuVNHQkoxoMTqiUTxxdmo7t4KQgDCp197Lz133FPvjhjZgkc6F3eMR2StQ5rzSoY43V6GjgVada2E8R1FXJT1YL05lBvvIUuVnHzflBsokP-3apoeqU9h3UIf_Dmigx_W31n2gwRc4HeJtkwtFxph5dgkTV8MGZxCEl37UEFUP3BQ2PJLd-bzH7CPV0wiQfzh3h6m4eVGKIe7p4ED0WCYVA41LVaLjbrvnTMse5eUKYcQhW9hDCyiEeJNMvBiGmCYdwrzH1kw7A"]
[506,1129487307,"GLORIA MERCEDES SANTANA GALAN","JEFE TERRENO ","1048 -2022",30,"01 de Febrero de 2022","28 de Febrero de 2022",2500000,1,2500000,0,0,"https://www.contratos.gov.co/consultas/detalleProceso.do?numConstancia=22-4-13162586&g-recaptcha-response=03AGdBq25bwoTZNv4zqNvLm2pz-C6mtgo3KvpNFiBgTTBT2zBt7mZOvFsVIgzG7do8Wv0JmCoHfpykzw3tfIHptkvpYSufj3tO5foEHEJmiJCpU6x4tfzapOccc-ucpKkVWKXWXZk47E6peg7D-yf5voTMiN9JL1LtI3WZ8DCuS7k9ikLx2AUmEnoDkvfr9h7ope7kyHNRyT16JKUJUMgEt6lqNL_rojutIms3jWe5ShMdrSR9KRrBrDf3vwvpq7R1H_pvS-skP5DLePjstN33nQ7WM786c4sDRoaLZIJALkZ07mPOOhcD7e51F5qrpHCbfO77OKtEi5niL8_usHwr1u6iLfAep5CLHZ7pN--5BNSnkMeJBwgt7GCvLUfueP8uJc7ALBDvbK2I29WUKUSQlhl_gtj7VCW2dmfBC378vyPR2kHoS3Hy9u9ZyCu_mXKAjRzSg9Q7zljlIf9UCqwFZMb_cyT4QbnQcmh1PVbBfTPGdg3FEsqBgbQ"]
[507,1048294317,"ISBELIA ESTHER MARIN ESCOBAR","VACUNADORA ","1050 -2022",30,"01 de Febrero de 2022","28 de Febrero de 2022",1500000,1,1500000,0,0,"https://www.contratos.gov.co/consultas/detalleProceso.do?numConstancia=22-4-13162590&g-recaptcha-response=03AGdBq24wU18eZHK0qDe00BhGfPpWF11KiI59tS24tH_wdcXgxG0_Od4OPgvQUJwAHSzzPa2JyjyKzEB5koVnOcBxlalntTWoBtRKDHKwB1PEkCGdBZN769EHf0n9EnZtEcIBrCRyPeUt8Q4x-lAdM41GwWgw3rHzlA2vnDe1JVqEFwK0pwAYFXlrCk_k3rtc5f9v0Z8iz99EgH5i_Rd66Wu4gLzr006nZAlO8zJTsqnXbw_fHoCzQjw1QXOEdV27UZpPnxyccfXvowkn57eKBsVjy1qM2VdRE5hxqM0SBW-XARHU2Yu6b6RkPvitrtjM5YSi2WJ3PEEE5-tpGCiBToJrxO2nV1w5a02tSOhkrMtV9LnGJ9iamx1o0OGSnHcpvJgubfH5uDO6Y-5fvI12KTFQpmaiYyEDlygD11AXhQxqkz-9iUMUp3jsaytNYb6PLCERmcfVjsKqOjqSYWDw3imiyIlasgYjpA"]
[508,1048268887,"INGRID ESTHER CABRERA AGUILAR","VACUNADORA ","1051 -2022",30,"01 de Febrero de 2022","28 de Febrero de 2022",1500000,1,1500000,0,0,"https://www.contratos.gov.co/consultas/detalleProceso.do?numConstancia=22-4-13162677&g-recaptcha-response=03AGdBq26h2ELHUhCpOOns43Ve0XFRBnEi8tgh291nx-XB3xsT9Pufw9hJlWIb-j_vIExO_-EKGjrCkmsWv_cjI2Zniy-IX_3u3AppFmO7IFSqkw7vdi-Z3qx17nv4eo10eqpbsYKBoMIL7fyzuplo_P6KmZHin-SH_yKKPQdSHD1Qeofb_aybXKdmTqk4yd54Rf3EWQtgvFu5OZzrbKTlon-E9fSd2uG1wN14TDv537GfwXF7HV7rDNsKMSfFCBK6Cs8qZZS_T5RURmQuheqjkNztGmFqJag1LhH5QphYW2gjKZjcksAy2Awl5WIQr5IEBH1LGXqDxDCGIcSfAu90CBpr_knS-CAiRM3_e4cGPltZ5PG5JHoXG1XqIlLp3GLvw7yIpxgoU_BRG_LSi14NbPqj7QiJSCkFiT2eqQX_Ggv5hkIYn11j1rCzCfe4J_fC-f53pvKVxnORd-FxuRidOYklUt4lSsDzGgSnkVX_iRqelnRLGOJCiGY"]
[509,1048283773,"MAITE PAHOLA  RODRIGUEZ MIRANDA","VACUNADORA ","1052 -2022",30,"01 de Febrero de 2022","28 de Febrero de 2022",1500000,1,1500000,0,0,"https://www.contratos.gov.co/consultas/detalleProceso.do?numConstancia=22-4-13162681&g-recaptcha-response=03AGdBq24fI6lwPDSgG-ouHj26icoLRvoXwOz1QbWZNmhrhIkjKj-GxlIwQDpMCIiHDVBeJiZMMt1F63ENs3E1bH3x2w7q3HQpe3tKdB3Goge6t-eaHozSdm6UjOtfO_w1RRee481VMwxeh44kwj5p6s7L1NHR0MrVA01bSDqg_QSBMcaP1MpI9r-7I6jjREDTzRnMXCfMKP5m3HlohoA9V5Cykl20_5OIRU0nD3OXJJk5y89fUEOHZxspjBs3eSz9b65oJ09gstzynHreI3kIBxEgEwpYd0SSdrFECZUhUHSae_nH3rPoASslWB06VV4CHtFYFQaaG3WVnT_A_ZgnhWEb0LPLTx1jH9dgSoaECWRzAyshcYEBE202efQWm5q5I8cBSR2qk-iTCs7fPkuY6fbU9SjwVPI7FPY2VslaAXOGYTLtHX-JVqRxpsmWDBfVkoYl4V8f1aI4TKBTNEswaQ4BHHEHUaK6EtwmlDte7yrKkvG-9FVgo84"]
[510,1129567400,"MELISSA BEATRIZ BARRAZA MARTINEZ","ENFERMERA JEFE-LIDER CUARTO FRIO PROGRAMA VACUNACION COVID","1053 -2022",30,"01 de Febrero de 2022","28 de Febrero de 2022",3000000,1,3000000,0,0,"https://www.contratos.gov.co/consultas/detalleProceso.do?numConstancia=22-4-13162688&g-recaptcha-response=03AGdBq25O5eePIaTj_v0MmxhKWrLlRBdE26d3TpNy2ddNpllqXbgxgpi4ST9T48GAqDPbz441rZXnLl5_soO3ArBipCLlTy5LF3stvw5KR3MOwv0PIkAL96ZJuL5tq4SObbKWQmKihO8v2P0QTd47ErRnv07ymVlVbVf2D8Ui6CsNVA1UScjqgUnkCeNmWY-pTq9hhm87TmzcjQZXx2rXf13z28izUldO0pRx5jsIhVrKm7PASALKxYrcGXUTck6vZLbxzDZJU7tJ6TzBp-aVfprw--XvH0yBUgXZoGmA0Ad4dwJgVpRm66Nj4jxwjzRRstO7-ZFBwaSp8rL0x4kU0DvcVKthL0GH6ncYvuwEn6egEwqGro7nRMqEpUACOKVYw_dcUU1Pfkb5G4AIURXpYAEOZ_2CuQPd55idHR2EpacrjfCh1f8P9uyuDeDA8_ftwaD_HB8Zn1XFgmzyG90r5BcTZNeitDxdEzfNIl6Y1gtk-ecfmZMhPzM"]
[511,72292086,"JOHN JEREMY PERCYBROOKS BOLIVAR","INGENIERO DE DESARROLLO ADSCRITO A TIC","1054 -2022",30,"01 de Febrero de 2022","28 de Febrero de 2022",2200000,1,2200000,0,0,"https://www.contratos.gov.co/consultas/detalleProceso.do?numConstancia=22-4-13162695&g-recaptcha-response=03AGdBq25SDrRjVi7ftbOhUFuiWJ7rJlNHU7y6CVDYFXWAw2x_4t4dsJ4ndaPoarvK7n-d4z_l3la8_3jpWozyEiYjzeP8kvilohdVk1HHyv-egVI1-BQrWn2aNtTG-VuEL1CWK8H_XKDIRhKr8Fz7LULcKfKCRzDQwsvluCDlifQqy8EnXwp3s23tv2PFo4RxSHIG5UxxqId29-UykHrwrHRRu1eWA-RB4RDEUI8FZPyH-i5zbGRvUZUdQEW9ujY4gCHdw6UBbGwtF_awJKxvm7Nt4OwKvo9QwyvdwramuoPKso4H73atsAPlj9iLnO5CORuU5xVSoIfPKbJ7ckouByZCFS_A08noxGApZoiO46OATCdhClXjcWBHilpUxOwMbBZiU_TH0WrTh5XICbhSfPbbLc82Sp6EH8kFrNyurTDgbmhWmpT3hlAPcjz0w_y79L37vXuLdd4BT9oiMRmRQVKbc4Z5rUYNB_bicK5C4VotobzhbwejOLw"]
[512,1001800501,"OMAIRA  ALEJANDRA GUERRA CHARRIS","VACUNADORA ","1055 -2022",30,"01 de Febrero de 2022","28 de Febrero de 2022",1500000,1,1500000,0,0,"https://www.contratos.gov.co/consultas/detalleProceso.do?numConstancia=22-4-13162702&g-recaptcha-response=03AGdBq26DDmz6Zq1xk3PcjPrImJj5JKYyCg2F_LAjDtTg29QEShLzFeeXeEYiIegZUjuHRG5UHk0oXVFrAFsmiDv-L-8brnr4fIZlMI1N8oSwedXc30KDHukZXloJ7eUyxVHTD5wdh9lTkPUlqLz8Soqg7oAIM7mfgnzhYgvuG1vU3604pVnenoVrMU_dItBfWHm8JprbgnlScnyY4iXVk7uV7fAAORuFq9W_WAyvH3X5aHFXhLXy5u_s4_uhp0YKRnhTXMSq0ih91CVV-32BDgbqj1hKky1y8Xhfv8pFAyeQhk0wpVKJwWZ_hXxrlXGYK6WimKNc5OgE49O7dw_0YMCH5MxiU4rrOGVtIDn3OqufkD_7KCErNjA89kWIP0dMDZoIGBtNcvT6VGYrU8yVlmtvUF0BVM7EnlEq2s691uJ37xqstMdN9inUxuG9ad-OSInfH56tYhqmRNBhk_m0fi-s9DmaLmVETnECrEQNIpCWkcsqkVHJFGA"]
[513,1041896820,"SHEILA MARGARITA CARRACEDO MERCADO","VACUNADORA ","1056 -2022",30,"01 de Febrero de 2022","28 de Febrero de 2022",1500000,1,1500000,0,0,"https://www.contratos.gov.co/consultas/detalleProceso.do?numConstancia=22-4-13162707&g-recaptcha-response=03AGdBq26KwgGH-dX1QRBUQhpcAXFNy90Q6yTFKIXfOTwpyMWJtcrvF_OtBZ-PIsV8Ho2TLR3yhhLiPLvk04SKAN_rUQ8Y37wRycNdQcCqxjC-ZuVfrwWFJJDhHPt65orw89J4CWIBFnZ9crGHVfVKmUkNMFINNyItyiOdWGKhXyUPTLBCRJ5GtBUIb7GhDPzbSkfwHANu6pvT9A7AqhRzowHKr8-GZGv2aOjeHeG7ya_5pQI1R6hzWGk0fgTaYDXElIzONAb-tjm3dgd4-StyA9TxPO0BetECdAke8Bf8WIhdzrl-VKOAqAjr6wf-HLYlE2ckresaZpYcT7hu05Itk9mt0SspFAmmmD24dn8AOfUQQ2Lo3BE5EdpJOB7Mvjo6ISwT4A6V48RMat-aNkMw2mI_-zn_rxz_zrF-yXHmhuT95V856KmLFNmSNA4II9T7fuJYC5kWP99TOnIQqpg5FvohofXcJ1gOefDosnG7EB0RvUgXMqF-qis"]
[514,22601279,"ELENA DEL CARMEN ORTIZ RIES","VACUNADORA ","1057 -2022",30,"01 de Febrero de 2022","28 de Febrero de 2022",1500000,1,1500000,0,0,"https://www.contratos.gov.co/consultas/detalleProceso.do?numConstancia=22-4-13162710&g-recaptcha-response=03AGdBq24rPVDCKNF7IYf2sIS13Q3vQkwgFkUXpZDQH1Q6HyY4_0rcW0FCknZ7upJdGng2zL8YbMlDVVeLaKa0EQ6F0N0KqyPToqPzunR__7wMUrN2E1SZxL2doysM9cWNccOUlSmS8B1utbfaAIQsMpq2E59ILPStd_qYUKKydDM0FC1fwnl4XM_nsACUYmNdrwAn4rLL8cEsFV2F_uZLUvorj-u9i-tDgmJuTQMlB93EVxvU6mEOr9q1zUyR-CScW9o2iJV2UmHPRekHa0VmYdI0_1m_MtqNbiC07MzvaxxWU-mH_pR2rhrD2zRIAIJEMrtB-IzoBo4hd96sH83hJtmGjlJbftMIPXQBm7eLsaNAU0LqDd1xv-1FMWP1NvN84R722UrucwI0UbEaaBKFLdYRC-WtOoor48HEqjIirFj13Wp88GKy3AlR8eN2dV4wqFIQ-lzcOGeQVEzogAED26yH_wUDwX6YbW5--4O5OAmA95Jq_wrWYSI"]
[{"$f":"+A516+1","v":515},1001799583,"MOISES EUGENIO BORNACELLY CERVANTES","ORIENTADOR ","1058 -2022",30,"01 de Febrero de 2022","28 de Febrero de 2022",1400000,1,1400000,0,0,"https://www.contratos.gov.co/consultas/detalleProceso.do?numConstancia=22-4-13162715&g-recaptcha-response=03AGdBq24m7FsYyONMQWVP1lbw6WpS3vBFgx22jS1EyI-hcWiPL0zs2uXz1EcABTrmMv916WNKSZyeGRLGmwdWKi7oVQ7UJN7GN9xD8pl6tuxSGmvxR00G6UVMH-jtTmsfsun79lzq87jO32Ouq8KiO7lRQHPKDYcxNuMYJ081TwkeJsr7M4H4New9SjMOn7YmESMC66ogw_0I6vLiL4njhwNTidNjFNH0GvQ9dHO9g077eUhVS4E1M4BRp6M8fwcxjT5EOtQjsPFItQrly1vMs910Ayo6TjYwb0Cb0OL9wQUhwoHZrDhMcsBpjZbsevOWlnUVD-3nTi29joKCaT0RUBjpkas_EcB7Grz08f0nxeJkpt52RV39gVEvBhgRpdlsj1Y7c3tR-2CgV9HIL45BU1yQCFePwcIen8DF2AjQLR474wJf2z706TAMyAA9zi-gnUKjg-S_nIT3A95xReHgsnOENwN4ur9a_u_dyiuf0u5mUhRogAjr-S4"]
[516,1083867299,"CLAUDIA PATRICIA JORGE HOYOS ","PSICOLOGA","1059 -2022",30,"01 de Febrero de 2022","28 de Febrero de 2022",3000000,1,3000000,0,0,"https://www.contratos.gov.co/consultas/detalleProceso.do?numConstancia=22-4-13162718&g-recaptcha-response=03AGdBq26EmSks8JyRe6rW5bH7wNO6DgW6nXjfK1vcNHUsjLybcXt0-6hsqevlnp1AAPUINF7w28cshhNATRJh546rHTCoTsk7iaqzSUd94hGeSG0gHTndj33o5B4ByMbNgwOvAj2PC_266Dk00qolLKqOam15PaZ3TAuTdD49repKz_IiYMB1D4p-1HPNybNSlyGxF25srxIYKNgKDr_Jejr6hmDpwm2sKzw6c-KSVQkjrsCwBEJf0Bo4keLEvduYLpiIM0h-8j4V0t0EpctRCxAKX50TZUzDkg5bY31AsHaNxW5Iy0UelFhiPVD08hA9u2CuSiPvbjg-UE2T7RjO7rmv6cDj6gk9x1ujHhvBIOTsUIMgODfy9yg1H_B76oOG-Pp07gmPzVMsvLLrR1M7vZCF5yOWYonXlqn_wKZwC04ZDrtYPVfhw0s5DPBZdLkRgwTgRqujD6tTSgWm9FTFePBqPuT7kRcz6MhLaCsq_6chB0G8F5KvQB0"]
[517,1041898433,"DANIELA  ANDREA BARRIOS MARTINEZ","PERSONAL DE ASEO Y LIMPIEZA","1060 -2022",30,"01 de Febrero de 2022","28 de Febrero de 2022",1400000,1,1400000,0,0,"https://www.contratos.gov.co/consultas/detalleProceso.do?numConstancia=22-4-13162677&g-recaptcha-response=03AGdBq26h2ELHUhCpOOns43Ve0XFRBnEi8tgh291nx-XB3xsT9Pufw9hJlWIb-j_vIExO_-EKGjrCkmsWv_cjI2Zniy-IX_3u3AppFmO7IFSqkw7vdi-Z3qx17nv4eo10eqpbsYKBoMIL7fyzuplo_P6KmZHin-SH_yKKPQdSHD1Qeofb_aybXKdmTqk4yd54Rf3EWQtgvFu5OZzrbKTlon-E9fSd2uG1wN14TDv537GfwXF7HV7rDNsKMSfFCBK6Cs8qZZS_T5RURmQuheqjkNztGmFqJag1LhH5QphYW2gjKZjcksAy2Awl5WIQr5IEBH1LGXqDxDCGIcSfAu90CBpr_knS-CAiRM3_e4cGPltZ5PG5JHoXG1XqIlLp3GLvw7yIpxgoU_BRG_LSi14NbPqj7QiJSCkFiT2eqQX_Ggv5hkIYn11j1rCzCfe4J_fC-f53pvKVxnORd-FxuRidOYklUt4lSsDzGgSnkVX_iRqelnRLGOJCiGY"]
[518,1043604286,"EUCARIS MARIA ARRIETA DE LA HOZ","AUXILIAR DE ARCHIVO","1061 -2022",30,"01 de Febrero de 2022","28 de Febrero de 2022",1400000,1,1400000,0,0,"https://www.contratos.gov.co/consultas/detalleProceso.do?numConstancia=22-4-13162681&g-recaptcha-response=03AGdBq24fI6lwPDSgG-ouHj26icoLRvoXwOz1QbWZNmhrhIkjKj-GxlIwQDpMCIiHDVBeJiZMMt1F63ENs3E1bH3x2w7q3HQpe3tKdB3Goge6t-eaHozSdm6UjOtfO_w1RRee481VMwxeh44kwj5p6s7L1NHR0MrVA01bSDqg_QSBMcaP1MpI9r-7I6jjREDTzRnMXCfMKP5m3HlohoA9V5Cykl20_5OIRU0nD3OXJJk5y89fUEOHZxspjBs3eSz9b65oJ09gstzynHreI3kIBxEgEwpYd0SSdrFECZUhUHSae_nH3rPoASslWB06VV4CHtFYFQaaG3WVnT_A_ZgnhWEb0LPLTx1jH9dgSoaECWRzAyshcYEBE202efQWm5q5I8cBSR2qk-iTCs7fPkuY6fbU9SjwVPI7FPY2VslaAXOGYTLtHX-JVqRxpsmWDBfVkoYl4V8f1aI4TKBTNEswaQ4BHHEHUaK6EtwmlDte7yrKkvG-9FVgo84"]
[519,32610734,"DANIANA MENDOZA MALDONADO","MEDICO DE URGENCIAS ","1060-A-2023",15,"01 de Febrero de 2022","15 de Febrero de 2022",1536000,1,1536000,0,0,"https://www.contratos.gov.co/consultas/detalleProceso.do?numConstancia=22-4-13162688&g-recaptcha-response=03AGdBq25O5eePIaTj_v0MmxhKWrLlRBdE26d3TpNy2ddNpllqXbgxgpi4ST9T48GAqDPbz441rZXnLl5_soO3ArBipCLlTy5LF3stvw5KR3MOwv0PIkAL96ZJuL5tq4SObbKWQmKihO8v2P0QTd47ErRnv07ymVlVbVf2D8Ui6CsNVA1UScjqgUnkCeNmWY-pTq9hhm87TmzcjQZXx2rXf13z28izUldO0pRx5jsIhVrKm7PASALKxYrcGXUTck6vZLbxzDZJU7tJ6TzBp-aVfprw--XvH0yBUgXZoGmA0Ad4dwJgVpRm66Nj4jxwjzRRstO7-ZFBwaSp8rL0x4kU0DvcVKthL0GH6ncYvuwEn6egEwqGro7nRMqEpUACOKVYw_dcUU1Pfkb5G4AIURXpYAEOZ_2CuQPd55idHR2EpacrjfCh1f8P9uyuDeDA8_ftwaD_HB8Zn1XFgmzyG90r5BcTZNeitDxdEzfNIl6Y1gtk-ecfmZMhPzM"]
[520,1045716759,"ALFREDO GABRIEL ANGULO JULIAO","AUXILIAR DE FACTURACION","1062 -2022",27,"04  de Febrero de 2022","28 de Febrero de 2022",1260000,1,1260000,0,0,"https://www.contratos.gov.co/consultas/detalleProceso.do?numConstancia=22-4-13162695&g-recaptcha-response=03AGdBq25SDrRjVi7ftbOhUFuiWJ7rJlNHU7y6CVDYFXWAw2x_4t4dsJ4ndaPoarvK7n-d4z_l3la8_3jpWozyEiYjzeP8kvilohdVk1HHyv-egVI1-BQrWn2aNtTG-VuEL1CWK8H_XKDIRhKr8Fz7LULcKfKCRzDQwsvluCDlifQqy8EnXwp3s23tv2PFo4RxSHIG5UxxqId29-UykHrwrHRRu1eWA-RB4RDEUI8FZPyH-i5zbGRvUZUdQEW9ujY4gCHdw6UBbGwtF_awJKxvm7Nt4OwKvo9QwyvdwramuoPKso4H73atsAPlj9iLnO5CORuU5xVSoIfPKbJ7ckouByZCFS_A08noxGApZoiO46OATCdhClXjcWBHilpUxOwMbBZiU_TH0WrTh5XICbhSfPbbLc82Sp6EH8kFrNyurTDgbmhWmpT3hlAPcjz0w_y79L37vXuLdd4BT9oiMRmRQVKbc4Z5rUYNB_bicK5C4VotobzhbwejOLw"]
[521,72098690,"JAVIER ENRIQUE BARANDICA ACENDRA","TECNICO DE ALMACEN","1063 -2022",27,"04  de Febrero de 2022","28 de Febrero de 2022",1350000,1,1350000,0,0,"https://www.contratos.gov.co/consultas/detalleProceso.do?numConstancia=22-4-13162702&g-recaptcha-response=03AGdBq26DDmz6Zq1xk3PcjPrImJj5JKYyCg2F_LAjDtTg29QEShLzFeeXeEYiIegZUjuHRG5UHk0oXVFrAFsmiDv-L-8brnr4fIZlMI1N8oSwedXc30KDHukZXloJ7eUyxVHTD5wdh9lTkPUlqLz8Soqg7oAIM7mfgnzhYgvuG1vU3604pVnenoVrMU_dItBfWHm8JprbgnlScnyY4iXVk7uV7fAAORuFq9W_WAyvH3X5aHFXhLXy5u_s4_uhp0YKRnhTXMSq0ih91CVV-32BDgbqj1hKky1y8Xhfv8pFAyeQhk0wpVKJwWZ_hXxrlXGYK6WimKNc5OgE49O7dw_0YMCH5MxiU4rrOGVtIDn3OqufkD_7KCErNjA89kWIP0dMDZoIGBtNcvT6VGYrU8yVlmtvUF0BVM7EnlEq2s691uJ37xqstMdN9inUxuG9ad-OSInfH56tYhqmRNBhk_m0fi-s9DmaLmVETnECrEQNIpCWkcsqkVHJFGA"]
[522,1042418352,"MERJORIE JULEIMY CABEZA CASTILLO ","AUXILIAR DE ENFERMERIA DE PROMOCION Y MANTENIMIENTO DE LA SALUD","1064 -2022",24,"07 de Febrero de  2022","28 de Febrero de 2022",1040000,1,1040000,0,0,"https://www.contratos.gov.co/consultas/detalleProceso.do?numConstancia=22-4-13162707&g-recaptcha-response=03AGdBq26KwgGH-dX1QRBUQhpcAXFNy90Q6yTFKIXfOTwpyMWJtcrvF_OtBZ-PIsV8Ho2TLR3yhhLiPLvk04SKAN_rUQ8Y37wRycNdQcCqxjC-ZuVfrwWFJJDhHPt65orw89J4CWIBFnZ9crGHVfVKmUkNMFINNyItyiOdWGKhXyUPTLBCRJ5GtBUIb7GhDPzbSkfwHANu6pvT9A7AqhRzowHKr8-GZGv2aOjeHeG7ya_5pQI1R6hzWGk0fgTaYDXElIzONAb-tjm3dgd4-StyA9TxPO0BetECdAke8Bf8WIhdzrl-VKOAqAjr6wf-HLYlE2ckresaZpYcT7hu05Itk9mt0SspFAmmmD24dn8AOfUQQ2Lo3BE5EdpJOB7Mvjo6ISwT4A6V48RMat-aNkMw2mI_-zn_rxz_zrF-yXHmhuT95V856KmLFNmSNA4II9T7fuJYC5kWP99TOnIQqpg5FvohofXcJ1gOefDosnG7EB0RvUgXMqF-qis"]
[523,1042438173,"JEIMY ESTHER BARRIOS MARTINEZ","VACUNADORA ","1065 -2022",24,"07 de Febrero de  2022","28 de Febrero de 2022",1200000,1,1200000,0,0,"https://www.contratos.gov.co/consultas/detalleProceso.do?numConstancia=22-4-13162710&g-recaptcha-response=03AGdBq24rPVDCKNF7IYf2sIS13Q3vQkwgFkUXpZDQH1Q6HyY4_0rcW0FCknZ7upJdGng2zL8YbMlDVVeLaKa0EQ6F0N0KqyPToqPzunR__7wMUrN2E1SZxL2doysM9cWNccOUlSmS8B1utbfaAIQsMpq2E59ILPStd_qYUKKydDM0FC1fwnl4XM_nsACUYmNdrwAn4rLL8cEsFV2F_uZLUvorj-u9i-tDgmJuTQMlB93EVxvU6mEOr9q1zUyR-CScW9o2iJV2UmHPRekHa0VmYdI0_1m_MtqNbiC07MzvaxxWU-mH_pR2rhrD2zRIAIJEMrtB-IzoBo4hd96sH83hJtmGjlJbftMIPXQBm7eLsaNAU0LqDd1xv-1FMWP1NvN84R722UrucwI0UbEaaBKFLdYRC-WtOoor48HEqjIirFj13Wp88GKy3AlR8eN2dV4wqFIQ-lzcOGeQVEzogAED26yH_wUDwX6YbW5--4O5OAmA95Jq_wrWYSI"]
[524,32829349,"NADIA BOVEA NIETO","AUXILIAR DE ENFERMERIA URGENCIAS","1066 -2022",24,"07 de Febrero de  2022","28 de Febrero de 2022",1322900,1,1322900,0,0,"https://www.contratos.gov.co/consultas/detalleProceso.do?numConstancia=22-4-13162715&g-recaptcha-response=03AGdBq24m7FsYyONMQWVP1lbw6WpS3vBFgx22jS1EyI-hcWiPL0zs2uXz1EcABTrmMv916WNKSZyeGRLGmwdWKi7oVQ7UJN7GN9xD8pl6tuxSGmvxR00G6UVMH-jtTmsfsun79lzq87jO32Ouq8KiO7lRQHPKDYcxNuMYJ081TwkeJsr7M4H4New9SjMOn7YmESMC66ogw_0I6vLiL4njhwNTidNjFNH0GvQ9dHO9g077eUhVS4E1M4BRp6M8fwcxjT5EOtQjsPFItQrly1vMs910Ayo6TjYwb0Cb0OL9wQUhwoHZrDhMcsBpjZbsevOWlnUVD-3nTi29joKCaT0RUBjpkas_EcB7Grz08f0nxeJkpt52RV39gVEvBhgRpdlsj1Y7c3tR-2CgV9HIL45BU1yQCFePwcIen8DF2AjQLR474wJf2z706TAMyAA9zi-gnUKjg-S_nIT3A95xReHgsnOENwN4ur9a_u_dyiuf0u5mUhRogAjr-S4"]
[525,22387913,"OMEIRA   CECILIA BARRIOS DE ESTRENS","VACUNADORA ","1067 -2022",24,"07 de Febrero de  2022","28 de Febrero de 2022",1200000,1,1200000,0,0,"https://www.contratos.gov.co/consultas/detalleProceso.do?numConstancia=22-4-13162718&g-recaptcha-response=03AGdBq26EmSks8JyRe6rW5bH7wNO6DgW6nXjfK1vcNHUsjLybcXt0-6hsqevlnp1AAPUINF7w28cshhNATRJh546rHTCoTsk7iaqzSUd94hGeSG0gHTndj33o5B4ByMbNgwOvAj2PC_266Dk00qolLKqOam15PaZ3TAuTdD49repKz_IiYMB1D4p-1HPNybNSlyGxF25srxIYKNgKDr_Jejr6hmDpwm2sKzw6c-KSVQkjrsCwBEJf0Bo4keLEvduYLpiIM0h-8j4V0t0EpctRCxAKX50TZUzDkg5bY31AsHaNxW5Iy0UelFhiPVD08hA9u2CuSiPvbjg-UE2T7RjO7rmv6cDj6gk9x1ujHhvBIOTsUIMgODfy9yg1H_B76oOG-Pp07gmPzVMsvLLrR1M7vZCF5yOWYonXlqn_wKZwC04ZDrtYPVfhw0s5DPBZdLkRgwTgRqujD6tTSgWm9FTFePBqPuT7kRcz6MhLaCsq_6chB0G8F5KvQB0"]
[526,45496113,"BEATRIZ ELENA JIMENO CARDENAS","AUXILIAR DE ARCHIVO","1068 -2022",24,"07 de Febrero de  2022","28 de Febrero de 2022",1120000,1,1120000,0,0,"https://www.contratos.gov.co/consultas/detalleProceso.do?numConstancia=22-4-13168868&g-recaptcha-response=03ANYolqs8T8sgVTj0TZkexz3TtZSpT5F9ksWk3C_IR9l4jvlJICt4vlZ75jG-xMg8gE6ER-Do6FQVNKgl_ygu1DghY1mPqnopso8toOlxxB0UPZWSG3KpsFdrqz6gextOPIqxwtPUmReFareB6UILg8kw_THuUA_6tn05viyqBdwFMJlrR7tsf-kvK5E5_4lKVUrAPTsEkTKftm6Zk5PEx0Ku7RyNpElYn0c73JDnygFftTEf9HxXAt_WMPwQnLFAIiSdJFZzjUXTyOvVYwOLWle-oDr2ckFkJSYto09xOvOCwWIjimBwSPVVJiDBeiAbsaTCOCYvJI7WPUeK60v9Z23li3h9dlm82_YOVU4xfiTxMlMPDxvMw495YiLombgIcsCQRSj53iD02HykbLvMavCp18VlfTs7MCH6cytwUvKAdBDpWTb_-yKwMfZpKDjGcxAFeMCMnMFiMH8rxSeku9ES9_RsBQ7e-Ei52ktYeWBnDqd6UGG2b8g"]
[527,19590090,"LUIS EDUARDO RODRIGUEZ RAMIREZ","ODONTOLOGO","1069 -2022",24,"07 de Febrero de  2022","28 de Febrero de 2022",1900000,1,1900000,0,0,"https://www.contratos.gov.co/consultas/detalleProceso.do?numConstancia=22-4-13168926&g-recaptcha-response=03ANYolqu85WfkP0njdhKmotzBrAxwH1Rj-tp8kKGLz8FOnMNiCGxKmSVDXvOUtz-LQ0iI9pCkILD0ayaFAgxXuSZIwf-enH_dJHoGf37fNKJOhLf5nnhVOfPkEzDv_3ccpcgmhr96UitbC9_JgsteMWFBygwWHcaVhDwkbKc0XmG9VptTLC0JRHIVKfNpYUGTVAnlacK4Ub0MT8xcMeQLUj7D47xHONdx6gpVGTPQBMpV2_SATo-zbkkLJy87BJKWBUbh0Sl9cmz6KAtFyngkdcnArbYFYEQWc7JH5uud8gRHa6Odpl3pRmU9tf8CDe5B8mWB57iB8dQ6mn_yoHjxhmxIhvrMhWktB_XoWWcn-ExaJjGBA4lUzrzMLE79t1CaV7A53XP_J1Kf82ysNGvmIlWF_HeDx-GS5BK-_hCm9LLIvkBKaWk3elYlVFkMrSRjQlrTiAluxcGBnhJZCfp5i8VCo67ynL2j-fgjDAJF27biOz8mq1O4DKc"]
[528,72126658,"ARNOLDO TADEO  TORRES PUPO","AUXILIAR FACTURADOR","1070 -2022",24,"07 de Febrero de  2022","28 de Febrero de 2022",1120000,1,1120000,0,0,"https://www.contratos.gov.co/consultas/detalleProceso.do?numConstancia=22-4-13168962&g-recaptcha-response=03ANYolqtVk53SEaRHS1Q6kDYAsddboFtsifU69PWPpzeeES31jDtoU6uQXjQvZzvwN2aSfIu2rHWUAlBXHeZ1jUUdOw1piXzNqnhZCBl-AB8_8rPgCKz2JY54RNL0vLABy2725l-_og1aGPGpLVX2Pxf7CPQwwpzRky3SGX6PW88j8KfUlRaHRHl509srU8toq_tgQ5PN9lVTaLKG7D6MPa5eDB6n5fuZBMXoljEScHbWbsCuijz92mDV_va99aH0WyFEjKdFPOcRUkWUCSBM8ruqW8bo6J2A3xtNKIVtD0LChQfN9vPh6fG4mcl4V1D3ZqoTvamnMDIeN8Z-xyARq3uToIzEUkBFrD3dX9ENwoPbVy-6fx0sHaqUspniyUNFHDj__eE1aZacQ4SxPPjrmGF7zp0MWhlDO6SC4v3p9gGyRnye-hUvYy0WzwsAmbrhzZKhCkzAs5q3dmgvjAuUz9oYr1O75-4ycA"]
[529,1140883085,"MARIA FATIMA  HERNADEZ ORTIZ","AUXILIAR SERVICIOS AMIGABLES","1071 -2022",24,"07 de Febrero de  2022","28 de Febrero de 2022",1040000,1,1040000,0,0,"https://www.contratos.gov.co/consultas/detalleProceso.do?numConstancia=22-4-13168994&g-recaptcha-response=03ANYolqsvObE-ozNO7nL7djl2NXWg4tXSbKb4-A36OhMRP5ybEpi7wQOjqKs9v5TTxI5cJSetfC-fBsH3dfQ8c_y_NOlxI94QDr5CtHHGzzE9AKIbrWro0IC5xoMqhspP5MNTqAEd8PmpTJqD6Wz5wJfx38izGB-N_qlQ48brlOawpR_ypbsaNH0uK0Ypjd1SZ173cs-sX-oRRUJqefgwWPIep3-9WeWfZnaP_hyaXZPrk5b5uolQZawsm3chEg3o859qmpQKEMc8sk_Jf6-VfEkqV2cIK2SHztTwyfoQoNOYY3PKA5ELO_x1YVczdsU4Ye_O_Gd-DCmFK0Cz6utIzidHsvzDkRuihbT88XRzS_uaYy2j7cdgqps3QKzq3FvJ4N5UNt2BJMvjw19fIyVbPQYYit7BhUkUoMQcN9AbFJQKVE7Ujw1vHBiTiAf94_OroYLDcprG_2FPzKFJ8t9BctG3mmToQYfSRg"]
[530,8505956,"ALBERTO ENRIQUE NAVARRO MORALES","AUXILIAR DE FACTURACION","1072 -2022",23,"08 de Febrero de 2022","28 de Febrero de 2022",1074000,1,1074000,0,0,"https://www.contratos.gov.co/consultas/detalleProceso.do?numConstancia=22-4-13169028&g-recaptcha-response=03ANYolqs2_nIEDhYuKEIngr8WMftCQPI5BpS6HrTdZZsB6yqhq1Uwp6Xc2-j3rNSvXovoYEV1xwkpjgk8ErXRQ_WO_RyvaYP2EmP2OO2_f4WsuGOVgbJkynOerXUmfefvygECYAwgijr5nvo9eD6KkETZ0z-3we_sDh3uvUQRQJQJZKMmqIqm9rLnJQ8-AEmodBdxUvyJSnQeo0golBNmClgaKVQ2hr9Ki8DgGg-wV37h_Di2Fr4z353ije0de2K1K2DbEmuhWpoFX9eAm_1NdjbRLvHLsAKJqgrz_YQafKjsPy25Jqo8hMZsU2Eo2X1wi7QG3P0gPxwGt5ooilb__DOhYpsKRcRAqXBNSqzCStHCdL0-VybgPzEKmyRGL_VlSQb6YT2kuNt-7fqfeJWH-_oTUDah-bbHVWHoUuVlVn34v1AGD-vE4BBeDKWva-5uG7JhWbEaxCappERgDxKbmWQsfPWv_QJXNA"]
[531,44153062,"OLIDYS TATIANA FABREGAS NIEBLES","AUXILIAR SERVICIOS FARMACEUTICOS","1073 -2022",20,"10 de Febrero de 2022","28 de Febrero de 2022",1000000,1,1000000,0,0,"https://www.contratos.gov.co/consultas/detalleProceso.do?numConstancia=22-4-13169456&g-recaptcha-response=03ANYolqsSjknEhZkS7oKbyn8zhHjHbZfSKA01YaGSDJkJYu_KPMnTP6Rpuzs_BQGBuZftSMmZV9m8TKQhFv2QfM_fMhqK3jTt6ZFx2BwxEckc9ZL5Fs6eN46oAxllSs5fqw372M2DL122ShGJituXPvrURNh6EC9Ecr5cF9uZ1MA8BwDtLwvRV496GzHIs35JtFkh8_J03-h6CjWwZrCKVAFRpj10J8qAVhv7qEAhOtzIXZfyJFwDzy5EJzMad3Ubiac6mRbZNFFZyrrCtPt8hSmyZrrNjuLJn2Gj5OiTH3OiFvdohg_m9amCxOSSmQjFo83SktcpJCC_p9voBj5hqg5GzW2hKbNyESERUZmXryggQAvOAp0vDX5OFVnuiYga5SL8R0OewQYUHSWLblmw9IBm8u-wsq7H5zu0lE6FeqtRSr3gS7XtqlQiWr5q_1JcnZvdqbkB2panmZ2Um8WlPj3HspzoH77csA"]
[532,1043027335,"EIDETH SOFIA CASTRO ZAMBRANO","MEDICO DE URGENCIA ","1074 -2022",20,"11 de Febrero de 2022","28 de Febrero de 2022",2048000,1,2048000,0,0,"https://www.contratos.gov.co/consultas/detalleProceso.do?numConstancia=22-4-13169493&g-recaptcha-response=03ANYolqtH7w6_rHYHYnRYeAxdhNqie_SnbDX2heB7Vv4TeNyA3jHXmNyyqmXugr0xCGMcYsBatq0iK-OlCdVmsLuA8OAbRl7wSfwqfisR7AlghJ4sILKqDiGHW5yqKr4N0FZ9PB46ZZMS_C7wNmi3TaPj14ld7Vet6HugfJt8qjLylPnzXOSa84Rn8YgAFzQRdhPGI0OkuWMhJR1K9Ro-aHD23OnAx7p2E3PrRj7t1r18iD5flGhr_lgYUYGZEahwyWbomOSNyaoi_KFEGlCAqYvJi_slD_BPt1TUYUOsyD0mgeXQwTU4_gTkq7RJIZM07GCbkZd9YmU4tnwZbgqlFQgvxzeLhutbWdzfaaV0yNM3XvaYX--wunAGe-9h8UWEg6zIkewRNf3URACrc6ykzAY0zrnnMCqTi-xURQVrAioywY7VbevXlb-7VCyMvsaFsvu9omtppcUkjG5itPT4D7AkN5Qkam4qGcmU5uGtPtgrGrLAAYatXVE"]
[533,32619158,"ISABEL MARIA HERRERA PACHECO","DIGITADOR PAIWEB","1075 -2022",20,"11 de Febrero de 2022","28 de Febrero de 2022",934000,1,934000,0,0,"https://www.contratos.gov.co/consultas/detalleProceso.do?numConstancia=22-4-13169634&g-recaptcha-response=03ANYolquHZwZpJQ4GZB7IzkA1Wh0geGUok-EttNYoMh1QwI6ava4EW-Ap3Om202bGJAnmHl8Nxm-oLBRcoMxw1SSgxtXVkEJbmf4agisPeASKY7IW-1o9An1sLvBhvvoDnIouPOdW1q1soeAK3Sjyktg7y5LT7AYr2X6XHKeoXPCYvcPxwzRvNNjjIUODpzglTVT9Gb6JydLka6Zlk4q6GqzcoVRHAvIul-sSSfjwf0Zjg6jyBHOdlgXNw6eLo0f1aHO4eFz9lJW_dr23wV3xW20oCwlg9Yj1ULpFYsSE5i29qrjMa8U7FQwWNI_0rJxQohWaKJyHr6jFwtdzupePtZoTIOlqjoUSHjSpMfKdbQXGd0udJ8I59zgkNve0o8b-UkG4YIKZZxDOXa9Spf9A-6XOrQo1oeyHyhSsS31pJZ_yxRXoaVbpc-hvkxvT-pXqxLPNQRNCMkCJ"]
[534,32818534,"CONSUELO DEL SOCORRO MENDOZA CASTRO","AUXILIAR DE ENFERMERIA RUTA MATERNO PERINATAL","1076 -2022",17,"14 de Febrero de 2022","28 de Febrero de 2022",794000,1,794000,0,0,"https://www.contratos.gov.co/consultas/detalleProceso.do?numConstancia=22-4-13169655&g-recaptcha-response=03ANYolqv7_Xv4XapDOrYbeP_q0m70xrdERlWmGrlWalaHWXU0-QUgXev4RVM8O-hiw5W2WgsH58E3V4_v8KpqzRhGFyniDNxs4Y2q48LThBf02nonbGbcTX3dPic46uPHUpo3X45S4rK9TIydXKZ0lGqyuS0HLrxeH2GZktv5aE0Q7eCvxNqlKY6gm4D9qsjKHkgbAYQEPyBXRUVkEFkxexbHYiyKot3j8aYNi7P-LqTYfBtdHy1y5Mdw_sYbd2QMBaLA7EvKgB6G_ulmggVRPwJkOD3EbaVL0htL55HR4oR-NcoFzylI48BmQi2OzN2fW0yG2Rvbz97Uv7nYlCm4txu1O8J7fsYUJ3fcBUvbZBstWRpvrluf__SYO0TGD67QTTVT3TPy8pUDUC40gu1b4p2KQ2COqfUQN51XbuSsRHOhASEUsjCtgaGxNt08FPXksr0st9WZK35_P5o3jjKujtUMeoD1jsXedsIQSWRsCQg2X9X5_-cUFQE"]
[535,1140897820,"FRANCISCO JAVIER RANGEL BALLESTAS","MEDICO  RIPMS Y  CONSULTA EXTERNA ","1077 -2022",17,"14 de Febrero de 2022","28 de Febrero de 2022",1202000,1,1202000,0,0,"https://www.contratos.gov.co/consultas/detalleProceso.do?numConstancia=22-4-13169934&g-recaptcha-response=03ANYolqs2C1lvEjW3VjrTSQj-sYdoaG2yFpcksChI0gPZn_bkEP_6og9raO1ic2zKIYeqR7MvF0mfPrXsQ9qxa_Zc9hParfJqW4HhsnMCFp1cM9u61NMa4ylJiGdbuGSHUvIXsarn0oy1oEacvwSkw4HwUDF3K3AElvyaCVpZbeJ1AZp4idt8PgwV25FM1kM-lqAhAxMFYUfRU8uId_4128PxdmEUJ9-W_e9AnkPFf65r2bZZr7F07I1zgbhbFu8JAWpb2BURan-pfMVzow-1T4NOVCJcZE7jMryXwm6YO-IsLSrMoyGqexhRnEo7EX2Bn9tgVAPdLahODNraAUn2nVokDmZyqDP1LQD7eYLewa3b4LGRO3nbrT7HEwRA3A_QyUQ6Lp9e0pDK52diC_RG1X6GEqVg0r_FaPYKz4F37M_kC0ksv4cfazhh7bFJlXgSLdK_c3NzBpDRu5mqJPO3iMD0_BDB6-MdKvqECVeYc_uQKvvA2ZYYpyE"]
[536,8734956,"EFRAIN CANTILLO GUERRERO ","CONDUCTOR DE AMBULANCIA","|",17,"14 de Febrero de 2022","28 de Febrero de 2022",1000000,1,1000000,0,0,"https://www.contratos.gov.co/consultas/detalleProceso.do?numConstancia=22-4-13170033&g-recaptcha-response=03ANYolqvrKJGaGPQgaMBvNccnDKE7j2bNl_Nvs5bXp7UNd7YJjD5cHzo7HgeVTP685_W-td2E_zrjsJ3AgokeV9pMP9CeYXzMfUJlixmL3aLYNdz1ZG2S4plZ_thVmtutcCxHQz7VhjiTZhnf0SJaE0WH2No6y0ae0fbxPPeCqzP_4MYF76SiKws66YDJbK68K2jWemwZo9XxI3E0o059y7VpYHMJxlq5dWN61qfggcMMYGztyzH7V67y-i9k2sdDJTxg4J3jtJXFMLM5lc1Mwz1EzEtp0drD7PGkcxHxXKtPP4eTAHjQmH5cXiU5IcixuPdn8LwzpZD50I2uQUesAB9xqIpp7sFpITEHTEVzIJHDw-Tm7c-CshB5b6ab_TcMKn7XW_Dn1WoofxCQu-1YwsmXBjwM6r5KJsRXEYHIWEMrOFcRUmAadQykp8-f6AtaTMVyN4f5nCSCh8r85o5lAejG3G_5ZMCHJUuL5RLb8kfcxAu-UBgMKtA"]
[537,32746118,"MARIA DEL  AMPARO GARCIA GARCIA","AUXILIAR DE ENFERMERIA  -VICTIMAS","1079 -2022",17,"14 de Febrero de 2022","28 de Febrero de 2022",794000,1,794000,0,0,"https://www.contratos.gov.co/consultas/detalleProceso.do?numConstancia=22-4-13170303&g-recaptcha-response=03ANYolqvAONeDPaEs1CYM8mWE91z3VPSLCGkV560HC3kRAqiMQhmI4-DHgGtDQ9kVzYuR262IH9wCXZF0A28qhUVuzYVQXuIfSzWr3GX1kq_qY2XMZP5M0O-VqzNcr1K4CNKrJths-pX2kLEMXSU8NL06mBYRGFtT6ArWgR-Y8oEpKDDqBuWsPw1qJmjls7NqFumbG-_NfezdGFzR8UPITJlC-ZRtF0pEvhqn6dN-Yzg6i2ev51AqQOhcCzCxoBjXRzOkjLA5tLYngPy48TlsfbGpUdmVehUUucoeUNut5Q2AbjVt0HM6rFiMh2uafsKtL9p3ETWoM_wK28ZDQFw_dsJR7egEaMi0GHGwwoz9UmdDdkRA5Bu6VNt9aUOQ4OaxsKUnGMQ_s1DcqlWLHwJIHZHRroXKQ9jg9WhRFIPrjYMObUMBCnF3qKvOlhAhM7pImOxz-MAGzXKcChI5abSQmtyttwKRUQ95DA"]
[538,45550749,"INGRID JOHANA EGUIS CRECO","PERSONAL DE ASEO Y LIMPIEZA  URGENCIAS","1080 -2022",23,"14 de Febrero de 2022","28 de Febrero de 2022",1073333.3333333333,1,1073333.3333333333,0,0,"https://www.contratos.gov.co/consultas/detalleProceso.do?numConstancia=22-4-13170303&g-recaptcha-response=03ANYolqvAONeDPaEs1CYM8mWE91z3VPSLCGkV560HC3kRAqiMQhmI4-DHgGtDQ9kVzYuR262IH9wCXZF0A28qhUVuzYVQXuIfSzWr3GX1kq_qY2XMZP5M0O-VqzNcr1K4CNKrJths-pX2kLEMXSU8NL06mBYRGFtT6ArWgR-Y8oEpKDDqBuWsPw1qJmjls7NqFumbG-_NfezdGFzR8UPITJlC-ZRtF0pEvhqn6dN-Yzg6i2ev51AqQOhcCzCxoBjXRzOkjLA5tLYngPy48TlsfbGpUdmVehUUucoeUNut5Q2AbjVt0HM6rFiMh2uafsKtL9p3ETWoM_wK28ZDQFw_dsJR7egEaMi0GHGwwoz9UmdDdkRA5Bu6VNt9aUOQ4OaxsKUnGMQ_s1DcqlWLHwJIHZHRroXKQ9jg9WhRFIPrjYMObUMBCnF3qKvOlhAhM7pImOxz-MAGzXKcChI5abSQmtyttwKRUQ95DA"]
[539,19588574,"HERNANDO JOSE TERNERA OROZCO ","CONDUCTOR DE AMBULANCIA","1081 -2022",17,"14 de Febrero de 2022","28 de Febrero de 2022",1134000,1,1134000,0,0,"https://www.contratos.gov.co/consultas/detalleProceso.do?numConstancia=22-4-13170303&g-recaptcha-response=03ANYolqvAONeDPaEs1CYM8mWE91z3VPSLCGkV560HC3kRAqiMQhmI4-DHgGtDQ9kVzYuR262IH9wCXZF0A28qhUVuzYVQXuIfSzWr3GX1kq_qY2XMZP5M0O-VqzNcr1K4CNKrJths-pX2kLEMXSU8NL06mBYRGFtT6ArWgR-Y8oEpKDDqBuWsPw1qJmjls7NqFumbG-_NfezdGFzR8UPITJlC-ZRtF0pEvhqn6dN-Yzg6i2ev51AqQOhcCzCxoBjXRzOkjLA5tLYngPy48TlsfbGpUdmVehUUucoeUNut5Q2AbjVt0HM6rFiMh2uafsKtL9p3ETWoM_wK28ZDQFw_dsJR7egEaMi0GHGwwoz9UmdDdkRA5Bu6VNt9aUOQ4OaxsKUnGMQ_s1DcqlWLHwJIHZHRroXKQ9jg9WhRFIPrjYMObUMBCnF3qKvOlhAhM7pImOxz-MAGzXKcChI5abSQmtyttwKRUQ95DA"]
[540,1001965931,"ANDREA CAROLINA  PEREZ JIMENEZ","AUXILIAR  ADINISTRATIVO  DE APOYO EN  PROCESOS  AMBIENTAL ","1081-2023",16,"14 de Febrero de 2022","28 de Febrero de 2022",800000,1,800000,0,0,"https://www.contratos.gov.co/consultas/detalleProceso.do?numConstancia=22-4-13170303&g-recaptcha-response=03ANYolqvAONeDPaEs1CYM8mWE91z3VPSLCGkV560HC3kRAqiMQhmI4-DHgGtDQ9kVzYuR262IH9wCXZF0A28qhUVuzYVQXuIfSzWr3GX1kq_qY2XMZP5M0O-VqzNcr1K4CNKrJths-pX2kLEMXSU8NL06mBYRGFtT6ArWgR-Y8oEpKDDqBuWsPw1qJmjls7NqFumbG-_NfezdGFzR8UPITJlC-ZRtF0pEvhqn6dN-Yzg6i2ev51AqQOhcCzCxoBjXRzOkjLA5tLYngPy48TlsfbGpUdmVehUUucoeUNut5Q2AbjVt0HM6rFiMh2uafsKtL9p3ETWoM_wK28ZDQFw_dsJR7egEaMi0GHGwwoz9UmdDdkRA5Bu6VNt9aUOQ4OaxsKUnGMQ_s1DcqlWLHwJIHZHRroXKQ9jg9WhRFIPrjYMObUMBCnF3qKvOlhAhM7pImOxz-MAGzXKcChI5abSQmtyttwKRUQ95DA"]
[541,32884590,"TATIANA DEL CARMEN SUAREZ ABALLERO","AUXILIAR DE ENFERMERIA  RUTA MATERNO PERINATAL ","1082-2023",16,"16  de febrero de 2022","28 de Febrero de 2022",694000,1,694000,0,0,"https://www.contratos.gov.co/consultas/detalleProceso.do?numConstancia=22-4-13170303&g-recaptcha-response=03ANYolqvAONeDPaEs1CYM8mWE91z3VPSLCGkV560HC3kRAqiMQhmI4-DHgGtDQ9kVzYuR262IH9wCXZF0A28qhUVuzYVQXuIfSzWr3GX1kq_qY2XMZP5M0O-VqzNcr1K4CNKrJths-pX2kLEMXSU8NL06mBYRGFtT6ArWgR-Y8oEpKDDqBuWsPw1qJmjls7NqFumbG-_NfezdGFzR8UPITJlC-ZRtF0pEvhqn6dN-Yzg6i2ev51AqQOhcCzCxoBjXRzOkjLA5tLYngPy48TlsfbGpUdmVehUUucoeUNut5Q2AbjVt0HM6rFiMh2uafsKtL9p3ETWoM_wK28ZDQFw_dsJR7egEaMi0GHGwwoz9UmdDdkRA5Bu6VNt9aUOQ4OaxsKUnGMQ_s1DcqlWLHwJIHZHRroXKQ9jg9WhRFIPrjYMObUMBCnF3qKvOlhAhM7pImOxz-MAGzXKcChI5abSQmtyttwKRUQ95DA"]